Workbook

Sheet 公共财政预算（附表一） (hidden)
A1: 附表一
A2: 2018年部门公共财政预算调整表
H3: 单位：万元（小数点后两位）
A4: 项目 | B4: 功能分类科目 | C4: 调减列入第一次、第二次预算调整的支出（以负数表示） | D4: 调增11-12月新需求支出 | E4: 调整数 | F4: 调减调增的原因 | G4: 调增文件依据 | H4: 所属股室 | I4: 备注
A5: 栏次 | C5: 1 | D5: 2 | E5: 3=1+2 | F5: 4 | G5: 5 | H5: 6 | I5: 7
A17: 合计 | C17: =SUM(C6:C16) -> 0 | D17: =SUM(D6:D16) -> 0 | E17: =SUM(E6:E16) -> 0
A19: 说明：1、1栏：填列已列入第一次、第二次预算调整，但2018年11-12月不需使用的支出。
A20: 2、2栏：填列未列入第一次、第二次预算调整，但2018年11-12月需使用的支出。
A21: 3、如不需调整，请送空表（加盖公章）。
A22: 4、本表可插行。

Sheet 政府性基金预算（附表二） (hidden)
A1: 附表二
A2: 2018年部门政府性基金预算调整表
H3: 单位：万元（小数点后两位）
A4: 项目 | B4: 功能分类科目 | C4: 调减列入第一次、第二次预算调整的支出（以负数表示） | D4: 调增11-12月新需求支出 | E4: 调整数 | F4: 调减调增的原因 | G4: 调增文件依据 | H4: 所属股室 | I4: 备注
A5: 栏次 | C5: 1 | D5: 2 | E5: 3=1+2 | F5: 4 | G5: 5 | H5: 6 | I5: 7
A17: 合计 | C17: =SUM(C6:C16) -> 0 | D17: =SUM(D6:D16) -> 0 | E17: =SUM(E6:E16) -> 0
A19: 说明：1、1栏：填列已列入第一次、第二次预算调整，但2018年11-12月不需使用的支出。
A20: 2、2栏：填列未列入第一次、第二次预算调整，但2018年11-12月需使用的支出。
A21: 3、项目如需跨年度执行，按进度仅填列今年需支出的金额。
A22: 4、如不需调整，请送空表（加盖公章）
A23: 5、本表可插行

Sheet 预算调整封面
C2: [内部资料 妥善保管]
D8: 汕头市濠江区2018年政府预算调整草案
F15: 编制部门： | G15: 汕头市濠江区财政局
F18: 编制时间： | G18: 2018-12-10

Sheet 公共财政预算收入（附表一）
A1: 附表一
A2: 汕头市濠江区2018年公共财政预算收入计划调整表
J3: 单位：万元
A4: 项目 | B4: 第二次调整计划数 | D4: 变动 | F4: 第四次调整计划数 | H4: 比增% | J4: 备注
B5: 总库 | C5: 本级 | D5: 总库 | E5: 本级 | F5: 总库 | G5: 本级 | H5: 总库 | I5: 本级
A6: 一.税收收入 | B6: 290,919 | C6: 51,029 | D6: =F6-B6 -> -3,600 | E6: =G6-C6 -> 360 | F6: =SUM(F7:F23) -> 287,319 | G6: =G7+G8+G9+G10+G11+G12+G14+G13++G15+G16+G17+G18+G19+G20+G21+G22+G23 -> 51,389 | H6: =IF(B6=0,IF(F6=0,0,100),100*(F6/B6-1)) -> -1 | I6: =IF(C6=0,IF(G6=0,0,100),100*(G6/C6-1)) -> 1
A7: 1.增值税 | B7: 61,288 | C7: 9,193 | D7: =F7-B7 -> 2,839 | E7: =G7-C7 -> 426 | F7: =G7/0.15 -> 64,127 | G7: =8965+170+234+250 -> 9,619 | H7: 5 | I7: 5
A8: 2.改征增值税 | B8: 56,972 | C8: 8,545 | D8: 3,854 | E8: 579 | F8: =G8/0.15 -> 60,827 | G8: =8452-49+2900+101-1674-1027+171+250 -> 9,124 | H8: 7 | I8: 7
A9: 3.消费税 | B9: 6 | C9: 0 | D9: 1 | E9: 0 | F9: 7 | H9: 17 | I9: 0
A10: 4.营业税 | B10: 0 | C10: 0 | D10: 0 | E10: 0 | F10: 0 | G10: 0 | H10: 0 | I10: 0
A11: 5.企业所得税 | B11: 98,758 | C11: 11,851 | D11: -8,466 | E11: -1,016 | F11: =G11/0.12 -> 90,292 | G11: =2000+8835 -> 10,835 | H11: -9 | I11: -9
A12: 6.个人所得税 | B12: 12,501 | C12: 1,500 | D12: -210 | E12: -25 | F12: =G12/0.12 -> 12,292 | G12: 1,475 | H12: -2 | I12: -2
A13: 7.资源税 | B13: 970 | C13: 970 | D13: 30 | E13: 30 | F13: =G13 -> 1,000 | G13: 1,000 | H13: 3 | I13: 3
A14: 8.城市维护建设税 | B14: 8,753 | C14: 5,252 | D14: -3 | E14: -2 | F14: =G14/0.6 -> 8,750 | G14: 5,250 | H14: -0 | I14: -0
A15: 9.房产税 | B15: 3,674 | C15: 2,204 | D15: -0 | E15: -0 | F15: =G15/0.6 -> 3,673 | G15: 2,204 | H15: -0 | I15: -0
A16: 10.印花税 | B16: 3,277 | C16: 3,277 | D16: 0 | E16: 0 | F16: =G16 -> 3,277 | G16: 3,277 | H16: 0 | I16: 0
A17: 11.城镇土地使用税 | B17: 3,078 | C17: 0 | D17: 922 | E17: 0 | F17: 4,000 | G17: 0 | H17: 30 | I17: 0
A18: 12.土地增值税 | B18: 20,790 | C18: 6,237 | D18: 877 | E18: 263 | F18: =G18/0.3 -> 21,667 | G18: 6,500 | H18: 4 | I18: 4
A19: 13.车船税 | B19: 19 | C19: 0 | D19: -4 | E19: 0 | F19: 15 | G19: 0 | H19: -21 | I19: 0
A20: 14.耕地占用税 | B20: 3,333 | C20: 2,000 | D20: 0 | E20: 0 | F20: =G20/0.6 -> 3,333 | G20: 2,000 | H20: 0 | I20: 0
A21: 15.契税 | B21: 17,501 | C21: 0 | D21: -3,616 | E21: 0 | F21: 13,885 | H21: -21 | I21: 0
A22: 16.环境保护税 | D22: 175 | E22: 105 | F22: =G22/0.6 -> 175 | G22: 105
A23: 17.其他税收收入 | B23: 0 | C23: 0 | D23: 0 | E23: 0 | H23: =IF(B23=0,IF(F23=0,0,100),100*(F23/B23-1)) -> 0 | I23: =IF(C23=0,IF(G23=0,0,100),100*(G23/C23-1)) -> 0
A24: 二.非税收入 | B24: 32,904 | C24: 22,393 | D24: -12,051 | E24: -6,797 | F24: =SUM(F25:F37) -> 20,852 | G24: =SUM(G25:G37) -> 15,596 | H24: -37 | I24: -30
A25: 1.教育费附加收入（地税） | B25: 3,608 | C25: 2,165 | D25: -323 | E25: -194 | F25: =G25/0.6 -> 3,285 | G25: =2256-51-234 -> 1,971 | H25: -9 | I25: -9
A26: 2.水资源费、排污费收入 | B26: 0 | C26: 0 | D26: 0 | E26: 0 | F26: 0 | G26: 0 | H26: 0 | I26: 0
A27: 3.地方教育费附加收入 | B27: 1,555 | C27: 955 | D27: 1,516 | E27: 335 | F27: =G27/0.42 -> 3,071 | G27: 1,290 | H27: 97 | I27: 35
A28: 4.农田水利建设 | B28: 0 | C28: 0 | D28: 0 | E28: 0 | F28: 0 | G28: 0 | H28: 0 | I28: 0
A29: 5.教育资金 | B29: 0 | C29: 0 | D29: 0 | E29: 0 | F29: 0 | G29: 0 | H29: 0 | I29: 0
A30: 6.矿产资源补偿费 | B30: 0 | C30: 0 | D30: 0 | E30: 0 | F30: 0 | G30: 0 | H30: 0 | I30: 0
A31: 7.船舶港务费 | B31: 0 | C31: 0 | D31: 0 | E31: 0 | F31: 0 | G31: 0 | H31: 0 | I31: 0
A32: 8.行政事业性收费收入 | B32: 1,500 | C32: 1,500 | D32: 2,059 | E32: 2,059 | F32: =G32 -> 3,559 | G32: =259+3300 -> 3,559 | H32: 137 | I32: 137
A33: 9.罚没收入 | B33: 1,900 | C33: 1,900 | D33: 1,700 | E33: 1,700 | F33: 3,600 | G33: 3,600 | H33: 89 | I33: 89
A34: 10.国有资本经营收入 | B34: 11,334 | C34: 11,334 | D34: -10,158 | E34: -10,158 | F34: 1,176 | G34: 1,176 | H34: -90 | I34: -90
A35: 11.国有资源(资产)有偿使用收入 | B35: 9,677 | C35: 1,262 | D35: -6,063 | E35: 238 | F35: =G35+2114 -> 3,614 | G35: 1,500 | H35: -63 | I35: 19
A36: 12.其他收入 | B36: 3,277 | C36: 3,277 | D36: -777 | E36: -777 | F36: =G36 -> 2,500 | G36: 2,500 | H36: -24 | I36: -24
A37: 13.税务部门非税收入 | B37: 52 | C37: 0 | D37: -5 | E37: 0 | F37: 47 | G37: 0 | H37: -10 | I37: 0
A38: 征收收入小计 | B38: 323,822 | C38: 73,423 | D38: =D6+D24 -> -15,652 | E38: -6,437 | F38: 308,171 | G38: 66,985 | H38: -5 | I38: -9
A39: 税务局 | B39: =B6+B25+B27+B37 -> 296,135 | C39: 54,150 | D39: -2,412 | E39: 500 | F39: 293,722 | G39: 54,650 | H39: -1 | I39: 1
A40: 财政局 | B40: 27,688 | C40: 19,273 | D40: =D26+D28+D29+D30+D31+D32+D33+D34+D35+D36 -> -13,239 | E40: =E26+E28+E29+E30+E31+E32+E33+E34+E35+E36 -> -6,938 | F40: =F26+F28+F29+F30+F31+F32+F33+F34+F35+F36 -> 14,449 | G40: =G26+G28+G29+G30+G31+G32+G33+G34+G35+G36 -> 12,335 | H40: -48 | I40: -36
A41: 三.转移性收入 | B41: 0 | C41: 137,760 | D41: =D10+D28 -> 0 | E41: =SUM(E42:E47) -> 28,123 | F41: 0 | G41: =SUM(G42:G47) -> 165,883 | H41: 0 | I41: 20
A42: 1.上级财力性补助收入 | B42: 0 | C42: 18,892 | E42: =G42-C42 -> 1,443 | G42: 20,335 | H42: 0 | I42: 8
A43: 2.上级专项性补助收入 | B43: 0 | C43: 79,122 | E43: 17,188 | G43: 96,310 | H43: 0 | I43: 22
A44: 3、置换债券（借新还旧）收入 | B44: 0 | C44: 0 | E44: 2,260 | G44: 2,260 | H44: 0 | I44: 100
A45: 4.上年结余收入 | B45: 0 | C45: 7,949 | E45: 0 | G45: 7,949 | H45: 0 | I45: 0
A46: 5.预算稳定调节基金 | B46: 0 | C46: 6,351 | E46: 0 | G46: 6,351 | H46: 0 | I46: 0
A47: 6.调入资金 | B47: 0 | C47: 25,446 | E47: 7,232 | G47: 32,678 | H47: 0 | I47: 28
A48: 财力合计 | B48: 323,822 | C48: =C41+C38 -> 211,183 | D48: =D41+D38 -> -15,652 | E48: =E41+E38 -> 21,686 | F48: =F41+F38 -> 308,171 | G48: =G41+G38 -> 232,868 | H48: -5 | I48: 10

Sheet 公共财政预算支出计划调整表（附表二）
A1: 附表二
A2: 汕头市濠江区2018年公共财政预算支出计划调整表
A3: 单位：万元
A4: 功能分类科目 | C4: 第三次调整计划数 | F4: 变动因素 | K4: 第四次调整计划数 | N4: 比增 % | O4: 备注
C5: 本级支出 | D5: 上级支出 | E5: 合计 | F5: 本级支出 | J5: 上级支出 | K5: 本级支出 | L5: 上级支出 | M5: 合计
A6: 代码 | B6: 名称 | F6: 政策性调整 | G6: 其他调整 | H6: 上级资金收回 | I6: 同类及跨类调剂 | J6: 上级专项性补助
A7: 201 | B7: 一般公共服务支出 | C7: 15909 | D7: 621 | E7: =C7+D7 -> 16530 | F7: =SUM(F8,F16,F22,F26,F31,F36,F42,F44,F50,F53,F58,F62,F66,F73,F77,F80,F86,F88,F92,F96,F100,F103,F106,F109) -> -199 | J7: =L7-D7 -> 245 | K7: =C7+F7 -> 15709 | L7: =SUM(L8,L16,L22,L26,L31,L36,L42,L44,L50,L53,L58,L62,L66,L73,L77,L80,L86,L88,L92,L96,L100,L103,L106,L109) -> 866 | M7: =K7+L7 -> 16575 | N7: =(M7/E7-1)*100 -> 0
A8: 20101 | B8: 人大事务 | C8: 571 | E8: 571 | F8: =SUM(F9:F15) -> -0 | J8: =L8-D8 -> 0 | K8: 571 | L8: =SUM(L9:L15) -> 0 | M8: =K8+L8 -> 571 | N8: =(M8/E8-1)*100 -> -0
A9: 2010101 | B9: 行政运行 | C9: 431 | E9: 431 | F9: -0 | J9: 0 | K9: 431 | M9: 431 | N9: =(M9/E9-1)*100 -> -0
A10: 2010102 | B10: 一般行政管理事务 | C10: 16 | E10: 16 | J10: 0 | K10: 16 | M10: 16 | N10: =(M10/E10-1)*100 -> 0
A11: 2010104 | B11: 人大会议 | C11: 29 | E11: 29 | J11: 0 | K11: 29 | M11: 29 | N11: =(M11/E11-1)*100 -> 0
A12: 2010106 | B12: 人大监督 | C12: 9 | E12: 9 | J12: 0 | K12: 9 | M12: 9 | N12: 0
A13: 2010107 | B13: 人大代表履职能力提升 | C13: 4 | E13: 4 | J13: 0 | K13: 4 | M13: 4 | N13: 0
A14: 2010108 | B14: 代表工作 | C14: 72 | E14: 72 | J14: 0 | K14: 72 | M14: 72 | N14: 0
A15: 2010199 | B15: 其他人大事务支出 | C15: 10 | E15: 10 | J15: 0 | K15: 10 | M15: 10 | N15: 0
A16: 20102 | B16: 政协事务 | C16: 282 | E16: 282 | F16: =SUM(F17:F21) -> -3 | J16: 0 | K16: 279 | L16: =SUM(L17:L21) -> 0 | M16: 279 | N16: -1 | O16: 调减人员经费
A17: 2010201 | B17: 行政运行 | C17: 238 | E17: 238 | F17: -3 | J17: 0 | K17: 235 | M17: 235 | N17: -1
A18: 2010204 | B18: 政协会议 | C18: 22 | E18: 22 | J18: 0 | K18: 22 | M18: 22 | N18: 0
A19: 2010205 | B19: 委员视察 | C19: 10 | E19: 10 | J19: 0 | K19: 10 | M19: 10 | N19: 0
A20: 2010206 | B20: 参政议政 | C20: 9 | E20: 9 | J20: 0 | K20: 9 | M20: 9 | N20: 0
A21: 2010299 | B21: 其他政协事务支出 | C21: 3 | E21: 3 | J21: 0 | K21: 3 | M21: 3 | N21: 0
A22: 20103 | B22: 政府办公厅（室）及相关机构事务 | C22: 4187 | E22: 4187 | F22: =SUM(F23:F25) -> -84 | J22: 0 | K22: 4103 | L22: =SUM(L23:L25) -> 0 | M22: 4103 | N22: -2 | O22: 收回区政府大院修缮及设备购置、委大院后勤物业服务社会化购买服务等费用
A23: 2010301 | B23: 行政运行 | C23: 2102 | E23: 2102 | F23: -27 | J23: 0 | K23: 2075 | M23: 2075 | N23: -1
A24: 2010302 | B24: 一般行政管理事务 | C24: 20 | E24: 20 | F24: -14 | J24: 0 | K24: 6 | M24: 6 | N24: -71
A25: 2010399 | B25: 其他政府办公厅（室）及相关机构事务支出 | C25: 2065 | E25: 2065 | F25: -43 | J25: 0 | K25: 2022 | M25: 2022 | N25: -2
A26: 20104 | B26: 发展与改革事务 | C26: 463 | D26: 5 | E26: 468 | F26: =SUM(F27:F30) -> 148 | J26: 0 | K26: 611 | L26: =SUM(L27:L30) -> 5 | M26: 616 | N26: 32 | O26: 调增优质纳税企业奖励经费
A27: 2010401 | B27: 行政运行 | C27: 172 | E27: 172 | F27: -2 | J27: 0 | K27: 170 | M27: 170 | N27: -1
A28: 2010402 | B28: 一般行政管理事务 | C28: 18 | E28: 18 | J28: 0 | K28: 18 | M28: 18 | N28: 0
A29: 2010404 | B29: 战略规划与实施 | C29: 3 | E29: 3 | J29: 0 | K29: 3 | M29: 3 | N29: 0
A30: 2010499 | B30: 其他发展与改革事务支出 | C30: 270 | D30: 5 | E30: 275 | F30: 150 | J30: 0 | K30: 420 | L30: 5 | M30: 425 | N30: 55
A31: 20105 | B31: 统计信息事务 | C31: 266 | E31: 266 | F31: =SUM(F32:F35) -> -1 | J31: 0 | K31: 265 | L31: =SUM(L32:L35) -> 0 | M31: 265 | N31: -0 | O31: 调减人员经费
A32: 2010501 | B32: 行政运行 | C32: 191 | E32: 191 | F32: -1 | J32: 0 | K32: 190 | M32: 190 | N32: -0
A33: 2010502 | B33: 一般行政管理事务 | C33: 10 | E33: 10 | J33: 0 | K33: 10 | M33: 10 | N33: 0
A34: 2010507 | B34: 专项普查活动 | C34: 50 | E34: 50 | J34: 0 | K34: 50 | M34: 50 | N34: 0
A35: 2010508 | B35: 统计抽样调查 | C35: 15 | E35: 15 | J35: 0 | K35: 15 | M35: 15 | N35: 0
A36: 20106 | B36: 财政事务 | C36: 874 | E36: 874 | F36: =SUM(F37:F41) -> -25 | J36: 5 | K36: 849 | L36: =SUM(L37:L41) -> 5 | M36: 854 | N36: -2 | O36: 调减人员经费
A37: 2010601 | B37: 行政运行 | C37: 514 | E37: 514 | F37: -24 | J37: 0 | K37: 490 | M37: 490 | N37: -5
A38: 2010604 | B38: 预算改革业务 | C38: 10 | E38: 10 | J38: 0 | K38: 10 | M38: 10 | N38: 0
A39: 2010605 | B39: 财政国库业务 | C39: 11 | E39: 11 | J39: 0 | K39: 11 | M39: 11 | N39: 0
A40: 2010607 | B40: 信息化建设 | C40: 50 | E40: 50 | J40: 0 | K40: 50 | M40: =K40+L40 -> 50 | N40: 0
A41: 2010699 | B41: 其他财政事务支出 | C41: 289 | E41: 289 | F41: -1 | J41: 5 | K41: 288 | L41: 5 | M41: 293 | N41: 1
A42: 20107 | B42: 税收事务 | C42: 2596 | D42: 36 | E42: 2632 | F42: =SUM(F43) -> 299 | J42: 0 | K42: 2895 | L42: =SUM(L43) -> 36 | M42: 2931 | N42: 11 | O42: 调增税务局征管经费
A43: 2010799 | B43: 其他税收事务支出 | C43: 2596 | D43: 36 | E43: 2632 | F43: 299 | J43: 0 | K43: 2895 | L43: 36 | M43: 2931 | N43: =(M43/E43-1)*100 -> 11
A44: 20108 | B44: 审计事务 | C44: 234 | E44: 234 | F44: =SUM(F45:F49) -> -7 | J44: 0 | K44: 228 | L44: =SUM(L45:L49) -> 0 | M44: 228 | N44: -3 | O44: 调减公用经费
A45: 2010801 | B45: 行政运行 | C45: 163 | E45: 163 | F45: -0 | J45: 0 | K45: 162 | M45: 162 | N45: -0
A46: 2010804 | B46: 审计业务 | C46: 36 | E46: 36 | J46: 0 | K46: 36 | M46: 36 | N46: 0
A47: 2010806 | B47: 信息化建设 | C47: 1 | E47: 1 | J47: 0 | K47: 1 | M47: 1 | N47: 0
A48: 2010850 | B48: 事业运行 | C48: 20 | E48: 20 | F48: -0 | J48: 0 | K48: 20 | M48: 20 | N48: -0
A49: 2010899 | B49: 其他审计事务支出 | C49: 14 | E49: 14 | F49: -6 | J49: 0 | K49: 8 | M49: 8 | N49: -43
A50: 20110 | B50: 人力资源事务 | C50: 62 | D50: 2 | E50: 64 | F50: =SUM(F51:F52) -> -3 | J50: 0 | K50: 60 | L50: =SUM(L51:L52) -> 2 | M50: 61 | N50: -4 | O50: 调减军转干部生活补助
A51: 2011006 | B51: 军队转业干部安置 | C51: 53 | D51: 2 | E51: 55 | F51: -2 | J51: 0 | K51: 51 | L51: 2 | M51: 52 | N51: -5
A52: 2011050 | B52: 事业运行 | C52: 9 | E52: 9 | F52: -0 | J52: 0 | K52: 9 | M52: 9 | N52: -0
A53: 20111 | B53: 纪检监察事务 | C53: 680 | D53: 20 | E53: 700 | F53: =SUM(F54:F57) -> -5 | J53: 0 | K53: 675 | L53: =SUM(L54:L57) -> 20 | M53: 695 | N53: -1 | O53: 调减人员经费
A54: 2011101 | B54: 行政运行 | C54: 558 | E54: 558 | F54: -4 | J54: 0 | K54: 554 | M54: 554 | N54: -1
A55: 2011104 | B55: 大案要案查处 | C55: 26 | E55: 26 | J55: 0 | K55: 26 | M55: 26 | N55: 0
A56: 2011105 | B56: 派驻派出机构 | C56: 30 | E56: 30 | J56: 0 | K56: 30 | M56: 30 | N56: 0
A57: 2011199 | B57: 其他纪检监察事务支出 | C57: 66 | D57: 20 | E57: 86 | F57: -1 | J57: 0 | K57: 64 | L57: 20 | M57: 84 | N57: -2
A58: 20113 | B58: 商贸事务 | C58: 762 | E58: 762 | F58: =SUM(F59:F61) -> -114 | J58: 0 | K58: 649 | L58: =SUM(L59:L61) -> 0 | M58: 649 | N58: -15 | O58: 调减人员经费
A59: 2011301 | B59: 行政运行 | C59: 405 | E59: 405 | F59: -100 | J59: 0 | K59: 305 | M59: 305 | N59: -25
A60: 2011302 | B60: 一般行政管理事务 | C60: 15 | E60: 15 | J60: 0 | K60: 15 | M60: 15 | N60: 0
A61: 2011399 | B61: 其他商贸事务支出 | C61: 343 | E61: 343 | F61: -14 | J61: 0 | K61: 329 | M61: 329 | N61: -4
A62: 20114 | B62: 知识产权事务 | C62: 5 | D62: 192 | E62: 197 | F62: =SUM(F63:F65) -> -5 | J62: 7 | K62: 0 | L62: =SUM(L63:L65) -> 200 | M62: 200 | N62: 1 | O62: 调减知识产权专利申请资金
A63: 2011406 | B63: 专利试点和产业化推进 | C63: 5 | D63: 31 | E63: 36 | F63: -5 | J63: 15 | K63: 0 | L63: 46 | M63: 46 | N63: 28
A64: 2011409 | B64: 知识产权宏观管理 | C64: 0 | D64: 135 | E64: 135 | J64: 0 | K64: 0 | L64: 135 | M64: 135 | N64: 0
A65: 2011499 | B65: 其他知识产权事务支出 | C65: 0 | D65: 26 | E65: 26 | J65: -8 | K65: 0 | L65: 19 | M65: 19 | N65: -29
A66: 20115 | B66: 工商行政管理事务 | C66: 1079 | E66: 1079 | F66: =SUM(F67:F72) -> -11 | J66: 0 | K66: 1069 | L66: =SUM(L67:L72) -> 0 | M66: 1069 | N66: -1 | O66: 调减人员经费
A67: 2011501 | B67: 行政运行 | C67: 946 | E67: 946 | F67: -11 | J67: 0 | K67: 935 | M67: 935 | N67: -1
A68: 2011502 | B68: 一般行政管理事务 | C68: 20 | E68: 20 | J68: 0 | K68: 20 | M68: 20 | N68: 0
A69: 2011504 | B69: 工商行政管理专项 | C69: 40 | E69: 40 | J69: 0 | K69: 40 | M69: 40 | N69: 0
A70: 2011505 | B70: 执法办案专项 | C70: 7 | E70: 7 | J70: 0 | K70: 7 | M70: 7 | N70: 0
A71: 2011507 | B71: 信息化建设 | C71: 10 | E71: =C71+D71 -> 10 | J71: 0 | K71: =C71+F71 -> 10 | M71: 10 | N71: 0
A72: 2011599 | B72: 其他工商行政管理事务支出 | C72: 56 | E72: 56 | J72: =L72-D72 -> 0 | K72: 56 | M72: =K72+L72 -> 56 | N72: 0
A73: 20117 | B73: 质量技术监督与检验检疫事务 | C73: 81 | E73: 81 | F73: =SUM(F74:F76) -> 0 | J73: 0 | K73: 81 | L73: =SUM(L74:L76) -> 0 | M73: 81 | N73: 0
A74: 2011702 | B74: 一般行政管理事务 | C74: 15 | E74: 15 | J74: 0 | K74: 15 | M74: 15 | N74: 0
A75: 2011706 | B75: 质量技术监督行政执法及业务管理 | C75: 55 | E75: 55 | J75: 0 | K75: 55 | M75: 55 | N75: =(M75/E75-1)*100 -> 0
A76: 2011799 | B76: 其他质量技术监督与检验检疫事务支出 | C76: 11 | E76: 11 | J76: 0 | K76: 11 | M76: 11 | N76: 0
A77: 20124 | B77: 宗教事务 | C77: 93 | E77: 93 | F77: =SUM(F78:F79) -> -4 | J77: 0 | K77: 89 | L77: =SUM(L78:L79) -> 0 | M77: 89 | N77: -5 | O77: 调减人员经费
A78: 2012401 | B78: 行政运行 | C78: 78 | E78: 78 | F78: -4 | J78: 0 | K78: 74 | M78: 74 | N78: -5
A79: 2012404 | B79: 宗教工作专项 | C79: 15 | E79: 15 | J79: 0 | K79: 15 | M79: 15 | N79: 0
A80: 20125 | B80: 港澳台侨事务 | C80: 52 | E80: 52 | F80: =SUM(F81:F85) -> -7 | J80: 0 | K80: 45 | L80: =SUM(L81:L85) -> 0 | M80: 45 | N80: -13 | O80: 调减外宾接待经费
A81: 2012502 | B81: 一般行政管理事务 | C81: 4 | E81: 4 | J81: 0 | K81: 4 | M81: 4 | N81: 0
A82: 2012504 | B82: 港澳事务 | C82: 30 | E82: 30 | J82: 0 | K82: 30 | M82: 30 | N82: 0
A83: 2012505 | B83: 台湾事务 | C83: 4 | E83: 4 | J83: 0 | K83: 4 | M83: 4 | N83: 0
A84: 2012506 | B84: 华侨事务 | C84: 4 | E84: 4 | J84: 0 | K84: 4 | M84: 4 | N84: 0
A85: 2012599 | B85: 其他港澳台侨事务支出 | C85: 10 | E85: 10 | F85: -7 | J85: 0 | K85: 3 | M85: 3 | N85: -67
A86: 20126 | B86: 档案事务 | C86: 0 | D86: 100 | E86: =C86+D86 -> 100 | J86: 0 | K86: 0 | L86: =L87 -> 100 | M86: 100 | N86: 0
A87: 2012604 | B87: 档案馆 | C87: 0 | D87: 100 | E87: 100 | J87: 0 | K87: 0 | L87: 100 | M87: 100 | N87: 0
A88: 20128 | B88: 民主党派及工商联事务 | C88: 78 | E88: 78 | F88: =SUM(F89:F91) -> -3 | J88: 0 | K88: 75 | L88: =SUM(L89:L91) -> 0 | M88: 75 | N88: -4
A89: 2012801 | B89: 行政运行 | C89: 75 | E89: 75 | F89: -3 | J89: 0 | K89: 72 | M89: 72 | N89: -4 | O89: 调减人员经费
A90: 2012802 | B90: 一般行政管理事务 | C90: 2 | E90: 2 | J90: 0 | K90: 2 | M90: 2 | N90: 0
A91: 2012899 | B91: 其他民主党派及工商联事务支出 | C91: 1 | E91: 1 | J91: 0 | K91: 1 | M91: 1 | N91: 0
A92: 20129 | B92: 群众团体事务 | C92: 296 | E92: 296 | F92: =SUM(F93:F95) -> -4 | J92: 0 | K92: 292 | L92: =SUM(L93:L95) -> 0 | M92: 292 | N92: -1 | O92: 调减人员经费
A93: 2012901 | B93: 行政运行 | C93: 218 | E93: 218 | F93: -4 | J93: 0 | K93: 214 | M93: 214 | N93: -2
A94: 2012902 | B94: 一般行政管理事务 | C94: 75 | E94: 75 | J94: 0 | K94: 75 | M94: 75 | N94: 0
A95: 2012999 | B95: 其他群众团体事务支出 | C95: 3 | E95: 3 | J95: 0 | K95: 3 | M95: 3 | N95: 0
A96: 20132 | B96: 组织事务 | C96: 484 | D96: 66 | E96: 550 | F96: =SUM(F97:F99) -> -22 | J96: 33 | K96: 462 | L96: =SUM(L97:L99) -> 99 | M96: 560 | N96: 2 | O96: 调减濠江区“不忘初心、牢记使命”主题教育培训活动经费和人员经费等
A97: 2013201 | B97: 行政运行 | C97: 237 | E97: 237 | F97: -3 | J97: 0 | K97: 234 | M97: 234 | N97: -1
A98: 2013202 | B98: 一般行政管理事务 | C98: 2 | E98: 2 | J98: 0 | K98: 2 | M98: 2 | N98: 0
A99: 2013299 | B99: 其他组织事务支出 | C99: 245 | D99: 66 | E99: 310 | F99: -19 | J99: 33 | K99: 225 | L99: 99 | M99: 324 | N99: 4
A100: 20133 | B100: 宣传事务 | C100: 215 | E100: 215 | F100: =F101 -> -0 | J100: 0 | K100: 215 | L100: =L101 -> 0 | M100: 215 | N100: -0
A101: 2013301 | B101: 行政运行 | C101: 200 | E101: 200 | F101: -0 | J101: 0 | K101: 200 | M101: 200 | N101: -0
A102: 2013399 | B102: 其他宣传事务支出 | C102: 15 | E102: 15 | J102: 0 | K102: 15 | M102: 15 | N102: 0
A103: 20134 | B103: 统战事务 | C103: 97 | E103: 97 | F103: =SUM(F104:F105) -> -10 | J103: 0 | K103: 87 | L103: =SUM(L104:L105) -> 0 | M103: 87 | N103: -10 | O103: 调减人员经费
A104: 2013401 | B104: 行政运行 | C104: 86 | E104: 86 | F104: -10 | J104: 0 | K104: 76 | M104: =K104+L104 -> 76 | N104: -12
A105: 2013499 | B105: 其他统战事务支出 | C105: 11 | E105: 11 | J105: 0 | K105: 11 | M105: 11 | N105: 0
A106: 20136 | B106: 其他共产党事务支出 | C106: 548 | E106: 548 | F106: =SUM(F107:F108) -> -7 | J106: 0 | K106: 540 | L106: =SUM(L107:L108) -> 0 | M106: 540 | N106: -1 | O106: 调减人员经费
A107: 2013601 | B107: 行政运行 | C107: 392 | E107: 392 | F107: -5 | J107: 0 | K107: 386 | M107: 386 | N107: =(M107/E107-1)*100 -> -1
A108: 2013699 | B108: 其他共产党事务支出 | C108: 156 | E108: 156 | F108: -2 | J108: 0 | K108: 154 | M108: 154 | N108: -1
A109: 20199 | B109: 其他一般公共服务支出 | C109: 1904 | D109: 200 | E109: 2104 | F109: =F110 -> -332 | J109: 200 | K109: 1572 | L109: =L110 -> 400 | M109: 1972 | N109: -6 | O109: 调减公共资源交易中心预留搬迁购置设备费、党政内网机房改造经费、巨灾保险费区级配套资金、行政大厅运转经费和人员经费
A110: 2019999 | B110: 其他一般公共服务支出 | C110: 1904 | D110: 200 | E110: 2104 | F110: -332 | J110: 200 | K110: 1572 | L110: 400 | M110: 1972 | N110: -6
A111: 203 | B111: 国防支出 | C111: 564 | D111: 0 | E111: 564 | F111: =SUM(F112,F116) -> -40 | J111: 0 | K111: 524 | L111: =SUM(L112,L116) -> 0 | M111: 524 | N111: -7
A112: 20306 | B112: 国防动员 | C112: 147 | E112: 147 | F112: -30 | J112: 0 | K112: 117 | M112: 117 | N112: -20 | O112: 调减编制濠江人防工程总体规划和人员经费等
A113: 2030601 | B113: 兵役征集 | C113: 20 | E113: 20 | J113: 0 | K113: 20 | M113: 20 | N113: 0
A114: 2030603 | B114: 人民防空 | C114: 87 | E114: 87 | F114: -30 | J114: 0 | K114: 57 | M114: 57 | N114: -35
A115: 2030607 | B115: 民兵 | C115: 40 | E115: 40 | J115: 0 | K115: 40 | M115: 40 | N115: 0
A116: 20399 | B116: 其他国防支出 | C116: 417 | E116: 417 | F116: -10 | J116: 0 | K116: 407 | M116: 407 | N116: -2 | O116: 调减人员经费
A117: 2039901 | B117: 其他国防支出 | C117: 417 | E117: 417 | F117: -10 | J117: 0 | K117: 407 | M117: 407 | N117: -2
A118: 204 | B118: 公共安全支出 | C118: 3480 | D118: 321 | E118: 3801 | F118: =SUM(F119,F122,F125,F128,F131,F140) -> -154 | J118: 30 | K118: 3326 | L118: =SUM(L119,L122,L125,L128,L131,L140) -> 351 | M118: 3678 | N118: -3
A119: 20401 | B119: 武装警察 | C119: 313 | D119: 70 | E119: 383 | F119: -17 | J119: 0 | K119: 296 | L119: =L120+L121 -> 70 | M119: 366 | N119: -5 | O119: 调减政府专职消防人员经费
A120: 2040102 | B120: 边防 | C120: 0 | D120: 53 | E120: 53 | J120: 0 | K120: 0 | L120: 53 | M120: 53 | N120: 0
A121: 2040103 | B121: 消防 | C121: 313 | D121: 17 | E121: 330 | F121: -17 | J121: 0 | K121: 296 | L121: 17 | M121: 313 | N121: -5
A122: 20402 | B122: 公安 | C122: 1727 | E122: 1727 | F122: -1 | J122: 0 | K122: 1726 | M122: 1726 | N122: -0 | O122: 调增区公安分局辅警人员经费，调减平安海滩活动经费和消防工作经费
A123: 2040204 | B123: 治安管理 | C123: 20 | E123: 20 | J123: 0 | K123: 20 | M123: 20 | N123: 0
A124: 2040299 | B124: 其他公安支出 | C124: 1707 | E124: 1707 | F124: -1 | J124: 0 | K124: 1706 | M124: 1706 | N124: -0
A125: 20404 | B125: 检察 | C125: 196 | E125: 196 | J125: 0 | K125: 196 | M125: 196 | N125: 0
A126: 2040401 | B126: 行政运行 | C126: 140 | E126: 140 | J126: 0 | K126: 140 | M126: 140 | N126: 0
A127: 2040499 | B127: 其他检察支出 | C127: 56 | E127: 56 | J127: 0 | K127: 56 | M127: 56 | N127: 0
A128: 20405 | B128: 法院 | C128: 246 | E128: 246 | F128: 40 | J128: 0 | K128: 286 | M128: 286 | N128: 16 | O128: 调增区法院执行工作专项经费
A129: 2040501 | B129: 行政运行 | C129: 161 | E129: 161 | J129: 0 | K129: 161 | M129: 161 | N129: 0
A130: 2040599 | B130: 其他法院支出 | C130: 85 | E130: 85 | F130: 40 | J130: 0 | K130: 125 | M130: 125 | N130: 47
A131: 20406 | B131: 司法 | C131: 801 | D131: 181 | E131: 982 | F131: -34 | J131: 0 | K131: 767 | L131: =SUM(L132:L139) -> 181 | M131: 948 | N131: -3 | O131: 调减专职人民调解员购买服务费用和人员经费等
A132: 2040601 | B132: 行政运行 | C132: 463 | E132: 463 | F132: -15 | J132: 0 | K132: 447 | M132: 447 | N132: -3
A133: 2040602 | B133: 一般行政管理事务 | C133: 45 | E133: 45 | F133: -13 | J133: 0 | K133: 32 | M133: 32 | N133: -28
A134: 2040604 | B134: 基层司法业务 | C134: 10 | D134: 35 | E134: 45 | J134: 0 | K134: 10 | L134: 35 | M134: 45 | N134: 0
A135: 2040605 | B135: 普法宣传 | C135: 10 | D135: 10 | E135: 20 | J135: 0 | K135: =C135+F135 -> 10 | L135: 10 | M135: 20 | N135: 0
A136: 2040606 | B136: 律师公证管理 | C136: 25 | E136: 25 | F136: -5 | J136: =L136-D136 -> 0 | K136: 20 | M136: 20 | N136: -20
A137: 2040607 | B137: 法律援助 | C137: 90 | D137: 55 | E137: 146 | F137: -1 | J137: 0 | K137: 90 | L137: 55 | M137: 145 | N137: -0
A138: 2040610 | B138: 社区矫正 | C138: 158 | D138: 17 | E138: 175 | J138: 0 | K138: 158 | L138: 17 | M138: 175 | N138: 0
A139: 2040699 | B139: 其他司法支出 | C139: 0 | D139: 65 | E139: 65 | J139: 0 | K139: 0 | L139: 65 | M139: 65 | N139: 0
A140: 20499 | B140: 其他公共安全支出 | C140: 197 | D140: 70 | E140: 267 | F140: -141 | J140: 30 | K140: 56 | L140: =L141 -> 100 | M140: 156 | N140: -42 | O140: 调减磊广路珠浦路口交通信号灯、见义勇为奖励经费和人员经费等
A141: 2049901 | B141: 其他公共安全支出 | C141: 197 | D141: 70 | E141: 267 | F141: -141 | J141: 30 | K141: 56 | L141: 100 | M141: 156 | N141: -42
A142: 205 | B142: 教育支出 | C142: 44016 | D142: 5012 | E142: 49028 | F142: =F143+F146+F152+F155+F157+F160++F162 -> -443 | J142: 2323 | K142: 43574 | L142: =L143+L146+L152+L155+L157+L160++L162 -> 7335 | M142: 50909 | N142: 4
A143: 20501 | B143: 教育管理事务 | C143: 580 | E143: 580 | F143: -7 | J143: 1 | K143: 573 | L143: =L144+L145 -> 1 | M143: 574 | N143: -1 | O143: 调减人员经费
A144: 2050101 | B144: 行政运行 | C144: 580 | E144: 580 | F144: -7 | J144: 0 | K144: 573 | M144: 573 | N144: -1
A145: 2050102 | B145: 一般行政管理事务 | J145: 1 | L145: 1 | M145: =K145+L145 -> 1
A146: 20502 | B146: 普通教育 | C146: 39619 | D146: 4858 | E146: =C146+D146 -> 44478 | F146: =SUM(F147:F151) -> -763 | J146: 2307 | K146: =C146+F146 -> 38857 | L146: =SUM(L147:L151) -> 7165 | M146: 46022 | N146: =(M146/E146-1)*100 -> 3 | O146: 调增华南师范大学附属濠江实验学校建设项目，调减捐资助学支出、2018年普通高中国家助学金配套资金和人员经费等，税收返还调整科目
A147: 2050201 | B147: 学前教育 | C147: 448 | D147: 459 | E147: 908 | F147: -16 | J147: 15 | K147: 432 | L147: 474 | M147: 907 | N147: -0
A148: 2050202 | B148: 小学教育 | C148: 17580 | D148: 2505 | E148: 20085 | F148: =-70.13-0.65 -> -71 | J148: 0 | K148: 17509 | L148: 2505 | M148: 20015 | N148: -0
A149: 2050203 | B149: 初中教育 | C149: 7573 | D149: 1093 | E149: 8666 | F149: =-260.71-37.82 -> -299 | J149: 0 | K149: 7275 | L149: 1093 | M149: 8368 | N149: -3
A150: 2050204 | B150: 高中教育 | C150: 11947 | D150: 143 | E150: 12090 | F150: =-268.15+38.47 -> -230 | J150: 0 | K150: 11717 | L150: 143 | M150: 11860 | N150: -2
A151: 2050299 | B151: 其他普通教育支出 | C151: 2071 | D151: 657 | E151: 2728 | F151: =-0.55-102-45 -> -148 | J151: 2292 | K151: 1923 | L151: 2949 | M151: 4872 | N151: 79
A152: 20503 | B152: 职业教育 | C152: 815 | D152: 9 | E152: 824 | F152: =F153+F154 -> -30 | J152: 5 | K152: 785 | L152: =L153+L154 -> 15 | M152: 800 | N152: -3 | O152: 调减新校区搬迁及改造资金
A153: 2050302 | B153: 中专教育 | C153: 811 | D153: 9 | E153: 821 | F153: =-54.12+24 -> -30 | J153: 5 | K153: 781 | L153: 15 | M153: 796 | N153: -3
A154: 2050399 | B154: 其他职业教育支出 | C154: 4 | E154: 4 | J154: 0 | K154: 4 | M154: 4 | N154: 0
A155: 20507 | B155: 特殊教育 | C155: 16 | D155: 43 | E155: 59 | J155: 0 | K155: 16 | L155: =L156 -> 43 | M155: 59 | N155: 0
A156: 2050701 | B156: 特殊学校教育 | C156: 16 | D156: 43 | E156: 59 | J156: 0 | K156: 16 | L156: 43 | M156: 59 | N156: 0
A157: 20508 | B157: 进修及培训 | C157: 13 | E157: 13 | J157: 8 | K157: 13 | L157: =L158+L159 -> 8 | M157: 21 | N157: 62
A158: 2050801 | B158: 教师进修 | J158: 8 | L158: 8 | M158: 8
A159: 2050803 | B159: 培训支出 | C159: 13 | E159: =C159+D159 -> 13 | J159: 0 | K159: =C159+F159 -> 13 | M159: 13 | N159: 0
A160: 20509 | B160: 教育费附加安排的支出 | C160: 2974 | E160: 2974 | F160: 357 | J160: 0 | K160: 3331 | L160: =L161 -> 0 | M160: 3331 | N160: 12 | O160: 调增华南师范大学附属濠江实验学校建设项目华南师范大学附属濠江实验学校建设项目
A161: 2050999 | B161: 其他教育费附加安排的支出 | C161: 2974 | E161: 2974 | F161: 357 | J161: 0 | K161: 3331 | M161: 3331 | N161: 12
A162: 20599 | B162: 其他教育支出 | C162: 0 | D162: 101 | E162: 101 | J162: 2 | K162: 0 | L162: =L163 -> 103 | M162: 103 | N162: 2
A163: 2059999 | B163: 其他教育支出 | C163: 0 | D163: 101 | E163: 101 | J163: 2 | K163: 0 | L163: 103 | M163: 103 | N163: 2
A164: 206 | B164: 科学技术支出 | C164: 1189 | D164: 33 | E164: 1221 | F164: =F165+F167+F170+F172+F175 -> 0 | J164: -551 | K164: 1189 | L164: =L165+L167+L170+L172+L175 -> -518 | M164: 671 | N164: -45
A165: 20601 | B165: 科学技术管理事务 | C165: 6 | E165: 6 | J165: 0 | K165: 6 | M165: 6 | N165: 0
A166: 2060101 | B166: 行政运行 | C166: 6 | E166: 6 | J166: 0 | K166: 6 | M166: 6 | N166: 0
A167: 20604 | B167: 技术研究与开发 | C167: 800 | D167: -306 | E167: 493 | J167: -551 | K167: 800 | L167: =L168+L169 -> -857 | M167: -57 | N167: -112
A168: 2060403 | B168: 产业技术研究与开发 | C168: 820 | D168: -174 | E168: 646 | J168: -1107 | K168: 820 | L168: -1281 | M168: -461 | N168: -171
A169: 2060499 | B169: 其他技术研究与开发支出 | C169: -20 | D169: -132 | E169: -152 | J169: 556 | K169: -20 | L169: 424 | M169: 404 | N169: -365
A170: 20606 | B170: 社会科学 | C170: 0 | D170: 3 | E170: 3 | J170: 0 | K170: 0 | L170: =L171 -> 3 | M170: 3 | N170: 0
A171: 2060602 | B171: 社会科学研究 | C171: 0 | D171: 3 | E171: 3 | J171: 0 | K171: 0 | L171: 3 | M171: 3 | N171: 0
A172: 20607 | B172: 科学技术普及 | C172: 14 | D172: 10 | E172: 24 | J172: 0 | K172: 14 | L172: =L173 -> 10 | M172: 24 | N172: 0
A173: 2060702 | B173: 科普活动 | C173: 0 | D173: 10 | E173: 10 | J173: 0 | K173: 0 | L173: 10 | M173: 10 | N173: 0
A174: 2060799 | B174: 其他科学技术普及支出 | C174: 14 | E174: 14 | J174: 0 | K174: 14 | M174: 14 | N174: 0
A175: 20699 | B175: 其他科学技术支出 | C175: 369 | D175: 326 | E175: 695 | J175: 0 | K175: 369 | L175: =L176+L177 -> 326 | M175: 695 | N175: 0
A176: 2069901 | B176: 科技奖励 | C176: 0 | D176: 26 | E176: 26 | J176: 0 | K176: 0 | L176: 26 | M176: 26 | N176: 0
A177: 2069999 | B177: 其他科学技术支出 | C177: 369 | D177: 300 | E177: 669 | J177: 0 | K177: 369 | L177: 300 | M177: =K177+L177 -> 669 | N177: =(M177/E177-1)*100 -> 0
A178: 207 | B178: 文化体育与传媒支出 | C178: 4734 | D178: 280 | E178: 5014 | F178: =F179+F184+F186+F188 -> -247 | J178: 1498 | K178: 4486 | L178: =L179+L184+L186+L188 -> 1778 | M178: 6264 | N178: 25
A179: 20701 | B179: 文化 | C179: 197 | D179: 266 | E179: 463 | F179: -5 | J179: 0 | K179: 192 | L179: =L180+L181+L182+L183 -> 266 | M179: 458 | N179: -1 | O179: 调减人员经费
A180: 2070104 | B180: 图书馆 | C180: 21 | E180: 21 | F180: -0 | J180: 0 | K180: 21 | M180: 21 | N180: -0
A181: 2070109 | B181: 群众文化 | C181: 120 | E181: 120 | F181: -5 | J181: 0 | K181: 116 | M181: 116 | N181: -4
A182: 2070112 | B182: 文化市场管理 | C182: 2 | E182: 2 | J182: 0 | K182: 2 | M182: 2 | N182: 0
A183: 2070199 | B183: 其他文化支出 | C183: 53 | D183: 266 | E183: 319 | J183: 0 | K183: 53 | L183: 266 | M183: 319 | N183: 0
A184: 20702 | B184: 文物 | C184: 2 | E184: 2 | J184: 0 | K184: 2 | M184: 2 | N184: 0
A185: 2070204 | B185: 文物保护 | C185: 2 | E185: 2 | J185: 0 | K185: 2 | M185: 2 | N185: 0
A186: 20703 | B186: 体育 | C186: 12 | E186: 12 | J186: 0 | K186: 12 | M186: 12 | N186: 0
A187: 2070308 | B187: 群众体育 | C187: 12 | E187: 12 | J187: 0 | K187: 12 | M187: 12 | N187: 0
A188: 20799 | B188: 其他文化体育与传媒支出 | C188: 4523 | D188: 14 | E188: 4537 | F188: -243 | J188: 1498 | K188: 4280 | L188: =L189 -> 1512 | M188: 5792 | N188: 28 | O188: 调减预留创文经费和开展文化体育系列活动经费等
A189: 2079999 | B189: 其他文化体育与传媒支出 | C189: 4523 | D189: 14 | E189: 4537 | F189: -243 | J189: 1498 | K189: 4280 | L189: 1512 | M189: 5792 | N189: 28
A190: 208 | B190: 社会保障和就业支出 | C190: 11150 | D190: 11293 | E190: 22443 | F190: =F191+F197+F205+F212+F219+F224+F229+F234+F242+F245+F248+F250+F253+F256+F259 -> -254 | J190: 754 | K190: 10896 | L190: =L191+L197+L205+L212+L219+L224+L229+L234+L242+L245+L248+L250+L253+L256+L259+L239 -> 12047 | M190: 22943 | N190: 2
A191: 20801 | B191: 人力资源和社会保障管理事务 | C191: 901 | D191: 40 | E191: 941 | F191: -36 | J191: 0 | K191: 865 | L191: =SUM(L192:L196) -> 40 | M191: 905 | N191: -4 | O191: 调减人员经费
A192: 2080101 | B192: 行政运行 | C192: 442 | E192: 442 | F192: -2 | J192: 0 | K192: 440 | M192: 440 | N192: -0
A193: 2080102 | B193: 一般行政管理事务 | C193: 154 | E193: 154 | J193: 0 | K193: 154 | M193: 154 | N193: 0
A194: 2080104 | B194: 综合业务管理 | C194: 43 | E194: 43 | F194: -30 | J194: 0 | K194: 13 | M194: 13 | N194: -70
A195: 2080111 | B195: 公共就业服务和职业技能鉴定机构 | C195: 117 | E195: 117 | F195: -1 | J195: 0 | K195: 116 | M195: 116 | N195: -1
A196: 2080199 | B196: 其他人力资源和社会保障管理事务支出 | C196: 145 | D196: 40 | E196: 185 | F196: -3 | J196: 0 | K196: 142 | L196: 40 | M196: 182 | N196: -1
A197: 20802 | B197: 民政管理事务 | C197: 732 | D197: 138 | E197: 870 | F197: -101 | J197: 8 | K197: 631 | L197: =L198+L199+L200+L201+L202+L203+L204 -> 146 | M197: 777 | N197: -11 | O197: 调减地名普查成果转化、随军家属未就业生活补助和人员经费等
A198: 2080201 | B198: 行政运行 | C198: 250 | E198: 250 | F198: -1 | J198: 0 | K198: 249 | M198: 249 | N198: -1
A199: 2080202 | B199: 一般行政管理事务 | C199: 0 | D199: 28 | E199: 28 | J199: 0 | K199: 0 | L199: 28 | M199: 28 | N199: 0
A200: 2080204 | B200: 拥军优属 | C200: 200 | D200: 110 | E200: 310 | F200: -40 | J200: =L200-D200 -> 0 | K200: 160 | L200: 110 | M200: 270 | N200: -13
... 253 more rows

Sheet 公共财政项目调整表（附表三）
A1: 附表三
A2: 2018年本级公共财政预算调整项目表
I4: 单位：万元
A5: 调增情况 | F5: 调减情况
A6: 单位 | B6: 项目 | C6: 金额 | D6: 备注 | E6: 所属股室 | F6: 单位 | G6: 项目 | H6: 金额 | I6: 备注 | J6: 所属股室
A7: 调增合计 | C7: =SUM(C8:C33) -> 17375.80 | F7: 调减合计 | H7: =SUM(H8:H308) -> 13032.51 | L7: 基本 | M7: 433.32 | O7: =6500+1423 -> 7923
A8: 城建环保局 | B8: “一路一桥”工程款 | C8: 2850.00 | E8: 经建股 | F8: 城建环保局 | G8: 扶持建筑业发展资金区级配套 | H8: 15.31 | J8: 工贸股 | L8: 非税 | M8: =H7-M7-M9 -> 12430.08456
A9: 农林水务局 | B9: 绩效考核奖金和离退休慰问金 | C9: 2.00 | E9: 农业股 | F9: 财政局（代编） | G9: 新增规上限上专项资金 | H9: 90.00 | J9: 工贸股 | L9: 项目 | M9: 169.11 | O9: =C7-O7 -> 9452.795
A10: 海洋与渔业局 | B10: 清拆非法搭建涉海“高脚屋”专项行动相关费用 | C10: 11.10 | E10: 农业股 | F10: 财政局（代编） | G10: 预留扶持总部经济企业区级配套资金 | H10: 46.86 | J10: 工贸股
A11: 石街道 | B11: 葛除社区莘园大道污水管道建设补助经费 | C11: 60.00 | E11: 农业股 | F11: 南山湾办 | G11: 公厕建设专项资金 | H11: 80.00 | J11: 工贸股
A12: 城建环保局 | B12: 抗击“山竹”台风及灾后修复资金 | C12: 51.80 | E12: 农业股 | F12: 经信局 | G12: 稳增长调结构专项资金 | H12: 56.34 | J12: 工贸股 | M12: =C7-H7 -> 4343.280439
A13: 财政局（代编） | B13: 机关事业单位养老保险区级补助资金 | C13: 1613.00 | E13: 社保股 | F13: 财政局（代编） | G13: 预留工贸股各项经费 | H13: 242.00 | J13: 工贸股
A14: 人民医院 | B14: 人民医院改扩建 | C14: 1022.22 | D14: 省收回2017年下达的资金1344万元，医院实支1022.22万元，需本级补缺 | E14: 社保股 | F14: 财政局（代编） | G14: 预留工业企业技术改造事后奖补区级配套资金 | H14: 83.41 | J14: 工贸股
A15: 卫计局 | B15: 七个社区卫生中心标准化建设 | C15: 1664.00 | D15: 省收回2017年下达的资金1664万元，卫计实支1664万元，需本级补缺 | E15: 社保股 | F15: 农林水务局 | G15: 住房改革性津贴 | H15: 0.99 | J15: 农业股
A16: 国土资源局 | B16: 濠江区滴丢山坤合采石场矿山复绿治理工程 | C16: 50.00 | D16: 汕濠府办函[2018]370号 | E16: 综合股 | F16: 农林水务局 | G16: 人员经费 | H16: 23.22 | J16: 农业股
A17: 建筑施工劳保费管理中心 | B17: 新型墙体材料专项基金返退款 | C17: 100.10 | D17: 单位申请调增 | E17: 综合股 | F17: 广东省渔政总队濠江大队 | G17: 基本养老保险单位额 | H17: 0.00 | J17: 农业股
A18: 税务局 | B18: 地税局征管经费 | C18: 300.00 | E18: 预算股 | F18: 广东省渔政总队濠江大队 | G18: 人员经费 | H18: 7.20 | J18: 农业股
A19: 发规局 | B19: 优质纳税企业奖励 | C19: 150.00 | D19: 汕濠府办财函【2018】59号 | E19: 预算股 | F19: 海洋与渔业局 | G19: 人员经费 | H19: 4.19 | J19: 农业股
A20: 财政局（代编） | B20: 上解支出 | C20: 36.00 | E20: 预算股 | F20: 广东省渔政总队濠江大队 | G20: 人员经费 | H20: 12.30 | J20: 农业股
A21: 教育局 | B21: 学前教育生均公用经费 | C21: 7.06 | D21: 政府批增 | E21: 行财股 | F21: 环境保护监测站 | G21: 人员经费 | H21: 3.07 | J21: 农业股
A22: 党政办 | B22: 区政府大院发电机组及配电房低压柜改造工程经费 | C22: 10.88 | D22: 政府批增 | E22: 行财股 | F22: 濠江区国家海域动态监管中心 | G22: 人员经费 | H22: 1.52 | J22: 农业股
A23: 人民法院 | B23: 区法院执行工作专项经费 | C23: 40.00 | D23: 政府批增 | E23: 行财股 | F23: 动物疫病预防控制中心 | G23: 人员经费 | H23: 4.45 | J23: 农业股
A24: 汕头市公安局濠江分局 | B24: 区公安分局辅警人员经费 | C24: 40.00 | D24: 已报政府未批复 | E24: 行财股 | F24: 水利管养所 | G24: 人员经费 | H24: 0.04 | J24: 农业股
A25: 教育局（各学校汇总） | B25: 2018年城乡免费义务教育公用经费（区级） | C25: 40.98 | D25: 民生政策资金，区级需按实配套 | E25: 行财股 | F25: 水利管养所 | G25: 人员经费 | H25: 4.01 | J25: 农业股
A26: 达濠中学 | B26: 达濠中学2018年城乡免费义务教育公用经费（区级） | C26: 0.56 | D26: 民生政策资金，区级需按实配套 | E26: 行财股 | F26: 农机管理站 | G26: 人员经费 | H26: 1.42 | J26: 农业股
A27: 各单位 | B27: 2017年绩效考核奖金尾欠（人均8000元） | C27: 1423.00 | E27: 预算股 | F27: 农产品质量安全监督检测站 | G27: 人员经费 | H27: 3.97 | J27: 农业股
A28: 各单位 | B28: 2018年绩效考核奖金 | C28: 6500.00 | D28: 按人均2.8万测算，结转下年使用 | E28: 预算股 | F28: 动物疫病预防控制中心 | G28: 农业有害有毒卫生津贴 | H28: 0.74 | J28: 农业股
A29: 教育局 | B29: 华附项目前期费用 | C29: =357+4+98 -> 459.00 | D29: 使用2018年教附357万、2017年结转教附4万、2018年教育农税改98万 | E29: 综合股 | F29: 农机管理站 | G29: 拖拉机转型升级置换补贴 | H29: 9.60 | J29: 农业股
A30: 财政局（代编） | B30: 一般债券发行手续费 | C30: 1.92 | E30: 预算股 | F30: 农机管理站 | G30: 2015年上级结转2015年中央财政农机购置补贴资金 | H30: 3.13 | J30: 农业股
A31: 财政局（代编） | B31: 其他支出 | C31: 5.22 | D31: 主要是消化历年与上级往来结算资金进舍位累存5.22万元，冲减账面其他应收款。（审计要求） | E31: 预算股 | F31: 农机管理站 | G31: 2016年上级结转2016年中央农机购置补贴资金 | H31: 13.00 | J31: 农业股
A32: 海洋与渔业局 | B32: 入海排污水口监测经费 | C32: 12.95 | D32: 汕濠府办财函【2018】323 | E32: 农业股 | F32: 海洋与渔业局 | G32: 100吨执法船油料费及维修保障经费 | H32: 4.00 | J32: 农业股
A33: 财政局（代编） | B33: 2018年全国增资 | C33: 924.00 | F33: 海洋与渔业局 | G33: 疏港大桥水域安全监管系统运行、维护费用 | H33: 10.37 | J33: 农业股
F34: 海洋与渔业局 | G34: 疏港大桥水域安全监管系统人工调遣费 | H34: 6.00 | J34: 农业股
F35: 农林水务局 | G35: 政策性农村住房保险区级配套资金 | H35: 0.81 | J35: 农业股
F36: 农林水务局 | G36: 政策性农村住房保险工作经费 | H36: 2.00 | J36: 农业股
F37: 农林水务局 | G37: 农村土地承包经营权确权登记颁证工作经费 | H37: 8.00 | J37: 农业股
F38: 农林水务局 | G38: 政策性水稻种植保险区级配套 | H38: 6.85 | J38: 农业股
F39: 农林水务局 | G39: 农村经管工作经费 | H39: 2.00 | J39: 农业股
F40: 农林水务局 | G40: 生态景观林带建设租地款 | H40: 0.01 | J40: 农业股
F41: 农林水务局 | G41: 屠宰环节病害猪无害化处理财政补贴区级配套资金 | H41: 2.74 | J41: 农业股
F42: 农林水务局 | G42: 农业（畜禽））保险补贴 | H42: 2.00 | J42: 农业股
F43: 农林水务局 | G43: 新时期精准扶贫帮扶专项资金 | H43: =59.5039-10.25 -> 49.25 | J43: 农业股
F44: 农林水务局 | G44: 新时期精准扶贫小额信贷贴息专项资金 | H44: 0.90 | J44: 农业股
F45: 农林水务局 | G45: 10宗小型水库安全鉴定费用 | H45: 95.00 | J45: 农业股
F46: 农林水务局 | G46: 全区水利设施抢修维护资金 | H46: 15.00 | J46: 农业股
F47: 农林水务局 | G47: 工程项目第三方技术审查和监理费 | H47: 12.76 | J47: 农业股
F48: 农林水务局 | G48: 三屿围海堤达标加固工程区级配套资金 | H48: 797.85 | J48: 农业股
F49: 农林水务局 | G49: 村管小型水利工程管护经费（小型水管体制改革） | H49: 20.00 | J49: 农业股
F50: 广澳街道 | G50: 2017年本级结转洲角闸强排站建设前期工作经费 | H50: 31.70 | J50: 农业股
F51: 财政局(代编) | G51: 巨灾保险费区级配套资金 | H51: 15.40 | J51: 农业股
F52: 财政局(代编) | G52: 各单位死亡丧葬费和抚恤金 | H52: 36.57 | J52: 农业股
F53: 财政局(代编) | G53: “美丽乡村”绿化美化工作经费、"名镇名村"示范村工作经费、一事一议项目建设工作经费、"农村人居环境综合整治"工作经费 | H53: 16.00 | J53: 农业股
F54: 财政局(代编) | G54: 农口政策性预留（含岁修费） | H54: 55.56 | J54: 农业股
F55: 滨海街道社区卫生服务中心 | G55: 财政补助经费 | H55: 0.74 | J55: 社保股
F56: 滨海街道社区卫生服务中心 | G56: 人员经费 | H56: 1.25 | J56: 社保股
F57: 财政局（代编） | G57: 2017-2018年机关事业单位养老保险缴费 | H57: 13.46 | J57: 社保股
F58: 财政局（代编） | G58: 地名普查成果转化 | H58: 60.00 | J58: 社保股
F59: 财政局（代编） | G59: 各单位死亡丧葬费和抚恤金 | H59: 45.89 | J59: 社保股
F60: 财政局（代编） | G60: 困难企业部分军队退役人员及部分军转干部、国企退休职工欠缴社保费挂账 | H60: 100.00 | J60: 社保股
F61: 财政局（代编） | G61: 企业离休干部生活补贴和建国前参加革命属工人编制的退休老同志生活补贴 | H61: 0.00 | J61: 社保股
F62: 财政局（代编） | G62: 预留单位人员调动及新招人员等经费 | H62: 164.12 | J62: 社保股
F63: 财政局（代编） | G63: 预留工作性和政策性专项经费 | H63: 159.84 | J63: 社保股
F64: 财政局（代编） | G64: 预留机关养老和职业年金 | H64: 300.00 | J64: 社保股
F65: 财政局（代编） | G65: 预留人民医院和7个社区托管（协议到期）经费 | H65: 100.00 | J65: 社保股
F66: 残联 | G66: 残疾人医疗康复救助基金区级配套 | H66: 0.07 | J66: 社保股
F67: 残联 | G67: 公务交通补贴 | H67: 0.01 | J67: 社保股
F68: 残联 | G68: 基本养老金保险单位额 | H68: 0.01 | J68: 社保股
F69: 残联 | G69: 康复中心运行经费 | H69: 6.10 | J69: 社保股
F70: 残联 | G70: 贫困重度残疾人家庭无障碍改造区级配套资金 | H70: 0.00 | J70: 社保股
F71: 残联 | G71: 人员经费 | H71: 0.83 | J71: 社保股
F72: 残联 | G72: 住房改革性津贴 | H72: 0.10 | J72: 社保股
F73: 残联 | G73: 住房公积金 | H73: 0.01 | J73: 社保股
F74: 达濠街道 | G74: 老渔工生活补助 | H74: 96.18 | J74: 社保股
F75: 达濠街道社区卫生服务中心 | G75: 财政补助经费 | H75: 0.78 | J75: 社保股
F76: 达濠街道社区卫生服务中心 | G76: 人员经费 | H76: 0.53 | J76: 社保股
F77: 福利中心 | G77: 基本养老金保险单位额 | H77: 0.00 | J77: 社保股
F78: 福利中心 | G78: 人员经费 | H78: 0.76 | J78: 社保股
F79: 福利中心 | G79: 住房改革性津贴 | H79: 0.01 | J79: 社保股
F80: 妇幼保健计划生育服务中心 | G80: 住房改革性津贴 | H80: 0.22 | J80: 社保股
F81: 妇幼保健计划生育服务中心 | G81: 住房公积金 | H81: 0.01 | J81: 社保股
F82: 广澳街道社区卫生服务中心 | G82: 财政补助经费 | H82: 0.38 | J82: 社保股
F83: 广澳街道社区卫生服务中心 | G83: 人员经费 | H83: 1.65 | J83: 社保股
F84: 河浦街道社区卫生服务中心 | G84: 人员经费 | H84: 0.01 | J84: 社保股
F85: 河浦人民医院 | G85: 岗位责任奖 | H85: 2.04 | J85: 社保股
F86: 河浦人民医院 | G86: 住房改革性津贴 | H86: 0.01 | J86: 社保股
F87: 红十字会 | G87: 基本养老金保险单位额 | H87: 0.01 | J87: 社保股
F88: 红十字会 | G88: 人员经费 | H88: 0.79 | J88: 社保股
F89: 红十字会 | G89: 住房改革性津贴 | H89: 0.01 | J89: 社保股
F90: 红十字会 | G90: 住房公积金 | H90: 0.00 | J90: 社保股
F91: 疾病预防控制中心 | G91: 人员经费 | H91: 3.30 | J91: 社保股
F92: 疾病预防控制中心 | G92: 住房改革性津贴 | H92: 0.01 | J92: 社保股
F93: 劳动就业服务管理中心 | G93: 人员经费 | H93: 0.62 | J93: 社保股
F94: 劳动就业服务管理中心 | G94: 住房改革性津贴 | H94: 0.08 | J94: 社保股
F95: 劳动就业服务管理中心 | G95: 住房公积金 | H95: 0.01 | J95: 社保股
F96: 马窖街道社区卫生服务中心 | G96: 人员经费 | H96: 0.00 | J96: 社保股
F97: 民政局 | G97: “银龄安康”行动60周岁以上老人保险费 | H97: 0.01 | J97: 社保股
F98: 民政局 | G98: 2016年上级结转：2016年重点优抚对象生活费补助市级配套资金（16）46号 | H98: 0.94 | J98: 社保股
F99: 民政局 | G99: 2016年上级结转：省财政2016年事实无人托养儿童基本生活保障补助资金（16）167号 | H99: 7.00 | J99: 社保股
F100: 民政局 | G100: 2016年上级结转：中央和省财政2016年孤儿基本生活保障资金（15）268号 | H100: 12.27 | J100: 社保股
F101: 民政局 | G101: 百岁老人保健金 | H101: 0.00 | J101: 社保股
F102: 民政局 | G102: 殡葬惠民 | H102: 35.86 | J102: 社保股
F103: 民政局 | G103: 残疾人生活津贴和重度残疾人护理补贴 | H103: 137.00 | J103: 社保股
F104: 民政局 | G104: 城乡医疗救助 | H104: 382.00 | J104: 社保股
F105: 民政局 | G105: 城镇和农村退伍安置补助金（含西藏兵） | H105: 100.00 | J105: 社保股
F106: 民政局 | G106: 城镇三无人员 | H106: 8.07 | J106: 社保股
F107: 民政局 | G107: 城镇义务兵优待金（含高原兵） | H107: 0.45 | J107: 社保股
F108: 民政局 | G108: 低收入群众一次临时价格补贴市补助资金 社（18）6号 | H108: 0.00 | J108: 社保股
F109: 民政局 | G109: 复退军人服务组织专职人员经费 | H109: 20.27 | J109: 社保股
F110: 民政局 | G110: 高龄老人政府津贴（含80周岁以上五保、低保老人生活补助） | H110: 58.46 | J110: 社保股
F111: 民政局 | G111: 公务交通补贴 | H111: 0.45 | J111: 社保股
F112: 民政局 | G112: 公用经费 | H112: 0.01 | J112: 社保股
F113: 民政局 | G113: 基本养老金保险单位额 | H113: 1.39 | J113: 社保股
F114: 民政局 | G114: 精简退职 | H114: 0.21 | J114: 社保股
F115: 民政局 | G115: 临时救助资金 | H115: 0.00 | J115: 社保股
F116: 民政局 | G116: 农村低保 | H116: 200.96 | J116: 社保股
F117: 民政局 | G117: 农村五保金 | H117: 62.98 | J117: 社保股
F118: 汕头市濠江区民政局 | G118: 农村义务兵优待金 | H118: 21.33 | J118: 社保股
F119: 民政局 | G119: 人员经费 | H119: 0.01 | J119: 社保股
F120: 民政局 | G120: 随军家属未就业生活补助 | H120: 40.00 | J120: 社保股
F121: 民政局 | G121: 退役军人待安置期间生活补 | H121: 0.00 | J121: 社保股
F122: 民政局 | G122: 养老服务体系项目（福利中心消防项目） | H122: 0.00 | J122: 社保股
F123: 民政局 | G123: 医保 | H123: 0.08 | J123: 社保股
F124: 民政局 | G124: 优抚对象医疗保险资金 | H124: 0.00 | J124: 社保股
F125: 民政局 | G125: 住房改革性津贴 | H125: 0.86 | J125: 社保股
F126: 民政局 | G126: 住房公积金 | H126: 0.44 | J126: 社保股
F127: 礐石街道社区卫生服务中心 | G127: 人员经费 | H127: 0.00 | J127: 社保股
F128: 人社局 | G128: 2016年上级结转：2016年度创业带动就业专项补助资金（15）299号 | H128: 9.50 | J128: 社保股
F129: 人社局 | G129: 城乡居民基本医疗保险 | H129: 109.93 | J129: 社保股
F130: 人社局 | G130: 创业带动就业补贴 | H130: 1.00 | J130: 社保股
F131: 人社局 | G131: 创业带动就业租金补贴 | H131: 1.00 | J131: 社保股
F132: 人社局 | G132: 创业孵化补贴 | H132: 1.00 | J132: 社保股
F133: 人社局 | G133: 创业资助 | H133: 1.50 | J133: 社保股
F134: 人社局 | G134: 大学生见习补贴 | H134: 1.00 | J134: 社保股
F135: 人社局 | G135: 岗位补贴 | H135: 11.72 | J135: 社保股
F136: 人社局 | G136: 高校毕业生临时生活补贴 | H136: 1.50 | J136: 社保股
F137: 人社局 | G137: 公务交通补贴 | H137: 0.01 | J137: 社保股
F138: 人社局 | G138: 公用经费 | H138: 0.01 | J138: 社保股
F139: 人社局 | G139: 基本养老金保险单位额 | H139: 0.01 | J139: 社保股
F140: 人社局 | G140: 技工院校建档立卡贫困家庭学生生活费区级补助资金 | H140: 0.00 | J140: 社保股
F141: 人社局 | G141: 就业失业监测补贴 | H141: 0.00 | J141: 社保股
F142: 人社局 | G142: 军转干部节日慰问 | H142: 0.08 | J142: 社保股
F143: 人社局 | G143: 军转干部生活补助 | H143: 2.41 | J143: 社保股
F144: 人社局 | G144: 农村劳动力技能晋升培训补贴资金 | H144: 13.88 | J144: 社保股
F145: 人社局 | G145: 人员经费 | H145: 0.76 | J145: 社保股
F146: 人社局 | G146: 三支一扶大学生生活补贴 | H146: 0.36 | J146: 社保股
F147: 人社局 | G147: 社会保险补贴 | H147: 12.00 | J147: 社保股
F148: 人社局 | G148: 小额担保贷款贴息 | H148: 10.11 | J148: 社保股
F149: 人社局 | G149: 医保 | H149: 0.15 | J149: 社保股
F150: 人社局 | G150: 中小微企业招用应届高校毕业生一次性补贴 | H150: 3.00 | J150: 社保股
F151: 人社局 | G151: 住房改革性津贴 | H151: 0.84 | J151: 社保股
F152: 人社局 | G152: 住房公积金 | H152: 0.43 | J152: 社保股
F153: 人力资源培训中心 | G153: 公用经费 | H153: 0.27 | J153: 社保股
F154: 人力资源培训中心 | G154: 基本养老金保险单位额 | H154: 0.62 | J154: 社保股
F155: 人力资源培训中心 | G155: 人员经费 | H155: 1.67 | J155: 社保股
F156: 人力资源培训中心 | G156: 医保 | H156: 0.23 | J156: 社保股
F157: 人力资源培训中心 | G157: 住房改革性津贴 | H157: 0.73 | J157: 社保股
F158: 人力资源培训中心 | G158: 住房公积金 | H158: 0.65 | J158: 社保股
F159: 人民医院 | G159: 人员经费 | H159: 0.01 | J159: 社保股
F160: 食品药品监督管理局 | G160: 公用经费 | H160: 0.00 | J160: 社保股
F161: 食品药品监督管理局 | G161: 医保 | H161: 0.01 | J161: 社保股
F162: 食品药品监督管理局 | G162: 住房改革性津贴 | H162: 0.01 | J162: 社保股
F163: 食品药品监督管理局 | G163: 住房公积金 | H163: 0.00 | J163: 社保股
F164: 卫计局 | G164: 2016年上级结转：2016年第一批农村接生员和赤脚医生生活困难市级财政补助经费（15）302号 | H164: 1.58 | J164: 社保股
F165: 卫计局 | G165: 2016年上级结转：2016年农村已离岗接生员和赤脚医生生活困难省级补助经费（15）338号 | H165: 1.33 | J165: 社保股
F166: 卫计局 | G166: 2016年上级结转：2016年汕头市迟报、漏报农村接生员和赤脚医生生活困难补助经费（16）186号 | H166: 0.95 | J166: 社保股
F167: 卫计局 | G167: 2016年上级结转：2016年汕头市农村计划生育节育奖励金补助经费（16）74号 | H167: 0.07 | J167: 社保股
F168: 卫计局 | G168: 2017年上级结转：2017年第二批严重精神障碍患者监护市级补助经费（17）242号 | H168: 0.01 | J168: 社保股
F169: 卫计局 | G169: 2018年濠江区农村妇女“两癌”免费检查区级配套经费 | H169: 0.01 | J169: 社保股
F170: 卫计局 | G170: 出生缺陷综合防控项目目标人群专项经费 | H170: 14.80 | J170: 社保股
F171: 卫计局 | G171: 处级干部体检经费 | H171: 9.98 | J171: 社保股
F172: 卫计局 | G172: 公务交通补贴 | H172: 0.69 | J172: 社保股
F173: 卫计局 | G173: 公用经费 | H173: 0.03 | J173: 社保股
F174: 卫计局 | G174: 基本公共卫生服务 | H174: 3.38 | J174: 社保股
F175: 卫计局 | G175: 计划生育服务绩效奖励经费 | H175: 0.76 | J175: 社保股
F176: 卫计局 | G176: 计生家庭特别扶助 | H176: 2.88 | J176: 社保股
F177: 卫计局 | G177: 计生家庭意外伤害保险 | H177: 1.66 | J177: 社保股
F178: 卫计局 | G178: 计生家庭子女就学补助和保险 | H178: 0.10 | J178: 社保股
F179: 卫计局 | G179: 离休干部医药费 | H179: 6.18 | J179: 社保股
F180: 卫计局 | G180: 农村已离岗接生员和赤脚医生生活困难补助 | H180: 2.65 | J180: 社保股
F181: 卫计局 | G181: 七个社区及侨院协议接管前离退休人员经费 | H181: 76.00 | J181: 社保股
F182: 卫计局 | G182: 人员经费 | H182: 2.68 | J182: 社保股
F183: 卫计局 | G183: 省农村部分计划生育家庭奖励 | H183: 1.64 | J183: 社保股
F184: 卫计局 | G184: 市计划生育家庭节育奖 | H184: 0.18 | J184: 社保股
F185: 卫计局 | G185: 四术经费 | H185: 7.79 | J185: 社保股
F186: 卫计局 | G186: 医保 | H186: 0.38 | J186: 社保股
F187: 卫计局 | G187: 住房改革性津贴 | H187: 1.69 | J187: 社保股
F188: 卫计局 | G188: 住房公积金 | H188: 1.08 | J188: 社保股
F189: 玉新街道社区卫生服务中心 | G189: 人员经费 | H189: 0.00 | J189: 社保股
F190: 职业介绍所 | G190: 人员经费 | H190: 0.09 | J190: 社保股
F191: 职业介绍所 | G191: 住房改革性津贴 | H191: 0.00 | J191: 社保股
F192: 珠浦医院 | G192: 人员经费 | H192: 16.86 | J192: 社保股
F193: 珠浦医院 | G193: 事业单位节日慰问金 | H193: 0.01 | J193: 社保股
F194: 珠浦医院 | G194: 住房改革性津贴 | H194: 0.00 | J194: 社保股
F195: 残联 | G195: 残疾人康复中心建设资金 | H195: 418.84 | I195: 调减，列入2019年部门预算 | J195: 综合股
F196: 国土房产测绘队 | G196: 濠江区2000国家大地坐标系建设项目 | H196: 7.54 | I196: 项目结束 | J196: 综合股
F197: 各街道 | G197: 街道计生经费 | H197: 37.56 | I197: 社会抚养费收入减少相应调减支出 | J197: 综合股
F198: 卫计局 | G198: 计生工作专项补助经费 | H198: 7.00 | I198: 社会抚养费收入减少相应调减支出 | J198: 综合股
F199: 城建环保局 | G199: 编制濠江人防工程总体规划 | H199: 30.00 | I199: 调减，列入2019年部门预算 | J199: 综合股
F200: 司法局 | G200: 公证处办证办案工作经费 | H200: 2.00 | I200: 收入减少相应调减支出 | J200: 综合股
F201: 司法局 | G201: 公证会费、赔偿基金 | H201: 3.00 | I201: 收入减少相应调减支出 | J201: 综合股
... 107 more rows

Sheet 公共财政列支挂存表（附件四以此为准）
A1: 附表三
A2: 2018年公共财政预算列支挂存表
I3: 单位：万元
A4: 单位名称 | B4: 列支挂存的项目 | D4: 科目 | F4: 金额 | I4: 备注 | J4: 股室
F5: 本级 | G5: 上级 | H5: 合计
F6: =SUM(F7:F161) -> 2478.04 | G6: =SUM(G162:G310) -> 14963.31 | H6: =+F6+G6 -> 17441.35
A7: 汕头市濠江区财政局 | B7: 01180074 | C7: 协税经费补助 | D7: 2010699 | E7: 其他财政事务支出 | F7: 43.50 | H7: =+F7+G7 -> 43.50 | J7: 支付办
A8: 汕头市濠江区发展规划局 | B8: 02180537 | C8: 濠江区营商环境整体评估及优化报告课题合作经费 | D8: 2019999 | E8: 其他一般公共服务支出 | F8: 23.70 | H8: =+F8+G8 -> 23.70 | J8: 支付办
A9: 汕头市濠江区司法局 | B9: 02180373 | C9: 专职人民调解员购买服务费用 | D9: 2040602 | E9: 一般行政管理事务 | F9: 7.33 | H9: 7.33 | J9: 支付办
A10: 汕头市濠江区司法局 | B10: 02180212 | C10: 区两级社区矫正平台建设经费 | D10: 2040610 | E10: 社区矫正 | F10: 4.74 | H10: 4.74 | J10: 支付办
A11: 中共汕头市濠江区委统战部 | B11: 0002 | C11: 公用经费 | D11: 2013401 | E11: 行政运行 | F11: 1.22 | H11: 1.22 | J11: 支付办
A12: 汕头市濠江区总工会 | B12: 0002 | C12: 公用经费 | D12: 2012901 | E12: 行政运行 | F12: 0.35 | H12: 0.35 | J12: 支付办
A13: 汕头市濠江区妇女联合会 | B13: 0002 | C13: 公用经费 | D13: 2012901 | E13: 行政运行 | F13: 0.17 | H13: 0.17 | J13: 支付办
A14: 汕头市濠江区工商业联合会 | B14: 0002 | C14: 公用经费 | D14: 2012801 | E14: 行政运行 | F14: 0.03 | H14: =+F14+G14 -> 0.03 | J14: 支付办
A15: 汕头市濠江区经济和信息化局 | B15: 05180036 | C15: 2017年区级节能专项资金 | D15: 2119901 | E15: 其他节能环保支出 | F15: 1.57 | H15: 1.57 | J15: 支付办
A16: 中共汕头市濠江区委组织部 | B16: 02180476 | C16: 社区党组织书记就读学历大专班学费 | D16: 2013299 | E16: 其他组织事务支出 | F16: 0.96 | H16: 0.96 | J16: 支付办
A17: 中共汕头市濠江区委组织部 | B17: 02180208 | C17: 区第一、二批优秀拔尖人才津贴 | D17: 2013299 | E17: 其他组织事务支出 | F17: 5.80 | H17: 5.80 | J17: 支付办
A18: 中共汕头市濠江区委组织部 | B18: 02180226 | C18: 全区党员教育培训工作专项经费 | D18: 2013299 | E18: 其他组织事务支出 | F18: 0.48 | H18: 0.48 | J18: 支付办
A19: 中共汕头市濠江区委组织部 | B19: 02180078 | C19: 党建办和党代表联络服务工作经费 | D19: 2013299 | E19: 其他组织事务支出 | F19: 5.61 | H19: 5.61 | J19: 支付办
A20: 中共汕头市濠江区委组织部 | B20: 02180084 | C20: 党政群干部训练事业费 | D20: 2013299 | E20: 其他组织事务支出 | F20: 14.20 | H20: 14.20 | J20: 支付办
A21: 中共汕头市濠江区委组织部 | B21: 06180102 | C21: 建国初期参加革命退休老干部医疗补助 | D21: 2101399 | E21: 其他医疗救助支出 | F21: 0.30 | H21: 0.30 | J21: 支付办
A22: 中共汕头市濠江区委宣传部 | B22: 02180533 | C22: 增拨创文工作经费 | D22: 2079999 | E22: 其他文化体育与传媒支出 | F22: 20.00 | H22: 20.00 | J22: 支付办
A23: 中共汕头市濠江区委宣传部 | B23: 02180159 | C23: 精神文明工作经费 | D23: 2019999 | E23: 其他一般公共服务支出 | F23: 0.01 | H23: 0.01 | J23: 支付办
A24: 中共汕头市濠江区委宣传部 | B24: 02180440 | C24: 区综合文化活动中心新建400KVA箱变工程资金 | D24: 2079999 | E24: 其他文化体育与传媒支出 | F24: 1.75 | H24: 1.75 | J24: 支付办
A25: 中共汕头市濠江区委政法委员会 | B25: 02180196 | C25: 平安创建工作经费 | D25: 2013699 | E25: 其他共产党事务支出 | F25: 6.89 | H25: 6.89 | J25: 支付办
A26: 中共汕头市濠江区委政法委员会 | B26: 02180426 | C26: 扫黑除恶专项斗争工作经费 | D26: 2019999 | E26: 其他一般公共服务支出 | F26: 15.49 | H26: 15.49 | J26: 支付办
A27: 中共汕头市濠江区委政法委员会 | B27: 02180286 | C27: 维稳工作经费 | D27: 2013699 | E27: 其他共产党事务支出 | F27: 7.31 | H27: 7.31 | J27: 支付办
A28: 汕头市濠江区食品药品监督管理局 | B28: 06180292 | C28: 2018年濠江区食品安全监督抽检和农贸市场食用农产品快检经费 | D28: 2101099 | E28: 其他食品和药品监督管理事务支出 | F28: 11.78 | H28: 11.78 | J28: 支付办
A29: 汕头市濠江区食品药品监督管理局 | B29: 06180144 | C29: 食品安全监督检查测仪器、送检费、试剂费等费用 | D29: 2101016 | E29: 食品安全事务 | F29: 9.19 | H29: 9.19 | J29: 支付办
A30: 汕头市濠江区食品药品监督管理局 | B30: 06180145 | C30: 食品安全专项经费 | D30: 2101016 | E30: 食品安全事务 | F30: 1.93 | H30: 1.93 | J30: 支付办
A31: 汕头市濠江区供销合作社 | B31: 0002 | C31: 公用经费 | D31: 2160299 | E31: 其他商业流通事务支出 | F31: 0.29 | H31: 0.29 | J31: 支付办
A32: 汕头市濠江区旅游局 | B32: 02180036 | C32: 2018年旅游专项经费 | D32: 2160599 | E32: 其他旅游业管理与服务支出 | F32: 33.37 | H32: 33.37 | J32: 支付办
A33: 汕头市濠江区残疾人联合会 | B33: 06180112 | C33: 康复中心运行经费 | D33: 2081199 | E33: 其他残疾人事业支出 | F33: 1.34 | H33: 1.34 | J33: 支付办
A34: 汕头市濠江区残疾人联合会 | B34: 0002 | C34: 公用经费 | D34: 2081101 | E34: 行政运行 | F34: 0.11 | H34: 0.11 | J34: 支付办
A35: 汕头市濠江区残疾人联合会 | B35: 06180354 | C35: 贫困重度残疾人家庭无障碍改造区级配套资金 | D35: 2081199 | E35: 其他残疾人事业支出 | F35: 0.11 | H35: 0.11 | J35: 支付办
A36: 汕头市濠江区残疾人联合会 | B36: 06180111 | C36: 康复经费 | D36: 2081104 | E36: 残疾人康复 | F36: 1.44 | H36: 1.44 | J36: 支付办
A37: 汕头市濠江区城市综合执法局 | B37: 02180368 | C37: 治超工作专项经费 | D37: 2019999 | E37: 其他一般公共服务支出 | F37: 8.05 | H37: 8.05 | J37: 支付办
A38: 汕头市濠江区城市综合执法局 | B38: 0001 | C38: 人员经费 | D38: 2080504 | E38: 未归口管理的行政单位离退休 | F38: 0.07 | H38: 0.07 | J38: 支付办
A39: 汕头市濠江区城市综合执法局 | B39: 02180170 | C39: 劳动保障监察专项经费 | D39: 2019999 | E39: 其他一般公共服务支出 | F39: 1.00 | H39: 1.00 | J39: 支付办
A40: 汕头市濠江区城市综合执法局 | B40: 02180347 | C40: 招聘街道安全生产监督检查员 | D40: 2019999 | E40: 其他一般公共服务支出 | F40: 0.00 | H40: 0.00 | J40: 支付办
A41: 汕头市濠江区城市综合执法局 | B41: 02180093 | C41: 动物防疫专项经费 | D41: 2019999 | E41: 其他一般公共服务支出 | F41: 2.00 | H41: 2.00 | J41: 支付办
A42: 汕头市濠江区城市综合执法局 | B42: 02180042 | C42: 安全生产专项经费 | D42: 2150605 | E42: 安全监管监察专项 | F42: 4.50 | H42: 4.50 | J42: 支付办
A43: 汕头市濠江区环境卫生管理局 | B43: 02180538 | C43: 广澳垃圾压缩站和公厕配套水电排污设施建设费用 | D43: 2120501 | E43: 城乡社区环境卫生 | F43: 33.82 | H43: 33.82 | J43: 支付办
A44: 汕头市濠江区旧城改造办公室 | B44: 03180050 | C44: 金中预留发展用地回迁户办理房产登记等经费 | D44: 2129999 | E44: 其他城乡社区支出 | F44: 4.28 | H44: 4.28 | J44: 支付办
A45: 汕头市濠江区动物疫病预防控制中心 | B45: 04180027 | C45: 动物病虫害防治 | D45: 2130108 | E45: 病虫害控制 | F45: 3.53 | H45: 3.53 | J45: 支付办
A46: 汕头市濠江区卫生和计划生育局 | B46: 06180355 | C46: 2018年濠江区农村妇女“两癌”免费检查区级配套经费 | D46: 2100799 | E46: 其他计划生育事务支出 | F46: 1.49 | H46: 1.49 | J46: 支付办
A47: 汕头市濠江区卫生和计划生育局 | B47: 06180314 | C47: 河浦医院更换变压器专项经费 | D47: 2109901 | E47: 其他医疗卫生与计划生育支出 | F47: 35.00 | H47: 35.00 | J47: 支付办
A48: 汕头市濠江区卫生和计划生育局 | B48: 06180167 | C48: 宣传经费 | D48: 2100799 | E48: 其他计划生育事务支出 | F48: 3.10 | H48: 3.10 | J48: 支付办
A49: 汕头市濠江区卫生和计划生育局 | B49: 06180168 | C49: 严重精神障碍患者监护补助费用 | D49: 2100499 | E49: 其他公共卫生支出 | F49: 56.63 | H49: 56.63 | J49: 支付办
A50: 汕头市濠江区卫生和计划生育局 | B50: 06180068 | C50: 妇幼保健 | D50: 2100408 | E50: 基本公共卫生服务 | F50: 2.00 | H50: 2.00 | J50: 支付办
A51: 汕头市濠江区卫生和计划生育局 | B51: 06180121 | C51: 免费孕前优生健康检查专项经费 | D51: 2100717 | E51: 计划生育服务 | F51: 4.07 | H51: 4.07 | J51: 支付办
A52: 汕头市濠江区卫生和计划生育局 | B52: 06180134 | C52: 人口和计生目标责任制考核奖励 | D52: 2100799 | E52: 其他计划生育事务支出 | F52: 40.00 | H52: 40.00 | J52: 支付办
A53: 汕头市濠江区卫生和计划生育局 | B53: 06180246 | C53: 2018年巩固发展国家卫生城市复审迎检工作经费 | D53: 2109901 | E53: 其他医疗卫生与计划生育支出 | F53: 0.31 | H53: 0.31 | J53: 支付办
A54: 汕头市濠江区卫生和计划生育局 | B54: 06180049 | C54: 除四害工作经费 | D54: 2100409 | E54: 重大公共卫生专项 | F54: 1.04 | H54: 1.04 | J54: 支付办
A55: 汕头市濠江区卫生和计划生育局 | B55: 06180100 | C55: 计生专项工作经费 | D55: 2100799 | E55: 其他计划生育事务支出 | F55: 0.42 | H55: 0.42 | J55: 支付办
A56: 汕头市濠江区卫生和计划生育局 | B56: 06180174 | C56: 育儿项目指导经费 | D56: 2100799 | E56: 其他计划生育事务支出 | F56: 0.35 | H56: 0.35 | J56: 支付办
A57: 汕头市濠江区卫生和计划生育局 | B57: 06180048 | C57: 出生缺陷综合防控项目目标人群专项经费 | D57: 2100499 | E57: 其他公共卫生支出 | F57: 31.00 | H57: 31.00 | J57: 支付办
A58: 汕头市濠江区卫生和计划生育局 | B58: 06180066 | C58: 督查经费 | D58: 2100799 | E58: 其他计划生育事务支出 | F58: 4.00 | H58: 4.00 | J58: 支付办
A59: 汕头市濠江区广澳街道社区卫生服务中心 | B59: 0001 | C59: 人员经费 | D59: 2100301 | E59: 城市社区卫生机构 | F59: 16.22 | H59: 16.22 | J59: 支付办
A60: 汕头市濠江区达濠街道社区卫生服务中心 | B60: 0001 | C60: 人员经费 | D60: 2100301 | E60: 城市社区卫生机构 | F60: 54.06 | H60: 54.06 | J60: 支付办
A61: 汕头市濠江区达濠街道社区卫生服务中心 | B61: 0001 | C61: 人员经费 | D61: 2080599 | E61: 其他行政事业单位离退休支出 | F61: 8.53 | H61: 8.53 | J61: 支付办
A62: 汕头市濠江区马窖街道社区卫生服务中心 | B62: 0001 | C62: 人员经费 | D62: 2100301 | E62: 城市社区卫生机构 | F62: 24.32 | H62: 24.32 | J62: 支付办
A63: 汕头市濠江区马窖街道社区卫生服务中心 | B63: 0001 | C63: 人员经费 | D63: 2080599 | E63: 其他行政事业单位离退休支出 | F63: 0.95 | H63: 0.95 | J63: 支付办
A64: 汕头市濠江区礐石街道社区卫生服务中心 | B64: 0001 | C64: 人员经费 | D64: 2100301 | E64: 城市社区卫生机构 | F64: 29.73 | H64: 29.73 | J64: 支付办
A65: 汕头市濠江区礐石街道社区卫生服务中心 | B65: 0001 | C65: 人员经费 | D65: 2080599 | E65: 其他行政事业单位离退休支出 | F65: 13.26 | H65: 13.26 | J65: 支付办
A66: 汕头市濠江区河浦街道社区卫生服务中心 | B66: 0001 | C66: 人员经费 | D66: 2100301 | E66: 城市社区卫生机构 | F66: 40.54 | H66: 40.54 | J66: 支付办
A67: 汕头市濠江区河浦街道社区卫生服务中心 | B67: 0001 | C67: 人员经费 | D67: 2080599 | E67: 其他行政事业单位离退休支出 | F67: 0.95 | H67: 0.95 | J67: 支付办
A68: 汕头市濠江区滨海街道社区卫生服务中心 | B68: 0001 | C68: 人员经费 | D68: 2100301 | E68: 城市社区卫生机构 | F68: 18.92 | H68: 18.92 | J68: 支付办
A69: 汕头市濠江区滨海街道社区卫生服务中心 | B69: 0001 | C69: 人员经费 | D69: 2080599 | E69: 其他行政事业单位离退休支出 | F69: 1.89 | H69: 1.89 | J69: 支付办
A70: 汕头市濠江区玉新街道社区卫生服务中心 | B70: 0001 | C70: 人员经费 | D70: 2100301 | E70: 城市社区卫生机构 | F70: 21.62 | H70: 21.62 | J70: 支付办
A71: 汕头市濠江区玉新街道社区卫生服务中心 | B71: 0001 | C71: 人员经费 | D71: 2080599 | E71: 其他行政事业单位离退休支出 | F71: 0.95 | H71: 0.95 | J71: 支付办
A72: 汕头市濠江区人民法院 | B72: 02180441 | C72: 区法院补充工作经费 | D72: 2019999 | E72: 其他一般公共服务支出 | F72: 4.57 | H72: 4.57 | J72: 支付办
A73: 汕头市濠江区审计局 | B73: 02180354 | C73: 正常审计经费 | D73: 2010804 | E73: 审计业务 | F73: 1.00 | H73: 1.00 | J73: 支付办
A74: 汕头市濠江区审计局 | B74: 0002 | C74: 公用经费 | D74: 2010801 | E74: 行政运行 | F74: 1.03 | H74: 1.03 | J74: 支付办
A75: 汕头市濠江区人民政府办公室 | B75: 02180207 | C75: 区档案馆配套设施设备经费 | D75: 2010399 | E75: 其他政府办公厅（室）及相关机构事务支出 | F75: 55.84 | H75: 55.84 | J75: 支付办
A76: 汕头市濠江区人民政府办公室 | B76: 02180566 | C76: 区政府大院发电机组及配电房低压柜改造工程经费 | D76: 2010399 | E76: 其他政府办公厅（室）及相关机构事务支出 | F76: 80.92 | H76: 80.92 | J76: 支付办
A77: 汕头市濠江区人民政府办公室 | B77: 02180350 | C77: 招商引资和重点项目经费 | D77: 2010399 | E77: 其他政府办公厅（室）及相关机构事务支出 | F77: 19.18 | H77: 19.18 | J77: 支付办
A78: 汕头市濠江区人民政府办公室 | B78: 02180027 | C78: 调研督查工作经费 | D78: 2010399 | E78: 其他政府办公厅（室）及相关机构事务支出 | F78: 1.82 | H78: =+F78+G78 -> 1.82 | J78: 支付办
A79: 汕头市濠江区人民政府办公室 | B79: 02180192 | C79: 培训经费 | D79: 2010399 | E79: 其他政府办公厅（室）及相关机构事务支出 | F79: 7.66 | H79: 7.66 | J79: 支付办
A80: 汕头市濠江区人民政府办公室 | B80: 02180543 | C80: 区人民来访接待中心修缮改造项目经费 | D80: 2010399 | E80: 其他政府办公厅（室）及相关机构事务支出 | F80: 42.60 | H80: 42.60 | J80: 支付办
A81: 汕头市濠江区人民政府办公室 | B81: 02180025 | C81: 政府大院零星修缮经费 | D81: 2010399 | E81: 其他政府办公厅（室）及相关机构事务支出 | F81: 5.45 | H81: 5.45 | J81: 支付办
A82: 汕头市濠江区人民政府办公室 | B82: 02180305 | C82: 信访信息化建设经费 | D82: 2010399 | E82: 其他政府办公厅（室）及相关机构事务支出 | F82: 5.68 | H82: 5.68 | J82: 支付办
A83: 汕头市濠江区人民政府办公室 | B83: 02180015 | C83: 机关事务管理经费 | D83: 2010399 | E83: 其他政府办公厅（室）及相关机构事务支出 | F83: 2.66 | H83: 2.66 | J83: 支付办
A84: 汕头市濠江区人民政府办公室 | B84: 02180076 | C84: 档案保护经费 | D84: 2010399 | E84: 其他政府办公厅（室）及相关机构事务支出 | F84: 3.00 | H84: 3.00 | J84: 支付办
A85: 汕头市濠江区人民政府办公室 | B85: 02180517 | C85: 区机关集体宿舍保洁服务费 | D85: 2019999 | E85: 其他一般公共服务支出 | F85: 1.20 | H85: 1.20 | J85: 支付办
A86: 汕头市濠江区人民政府办公室 | B86: 02180021 | C86: 《濠江年鉴》编纂出版及修志人员聘用经费 | D86: 2079999 | E86: 其他文化体育与传媒支出 | F86: 12.60 | H86: 12.60 | J86: 支付办
A87: 汕头市濠江区人民政府办公室 | B87: 02180112 | C87: 工作经费补助 | D87: 2010399 | E87: 其他政府办公厅（室）及相关机构事务支出 | F87: 22.15 | H87: 22.15 | J87: 支付办
A88: 汕头市濠江区人民政府办公室 | B88: 02180017 | C88: 宣传工作经费 | D88: 2010399 | E88: 其他政府办公厅（室）及相关机构事务支出 | F88: 4.00 | H88: 4.00 | J88: 支付办
A89: 汕头市濠江区人民政府办公室 | B89: 02180218 | C89: 区委区政府法律顾问服务费 | D89: 2010399 | E89: 其他政府办公厅（室）及相关机构事务支出 | F89: 20.97 | H89: 20.97 | J89: 支付办
A90: 汕头市濠江区人民政府办公室 | B90: 02180229 | C90: 全区政务公开工作经费 | D90: 2010399 | E90: 其他政府办公厅（室）及相关机构事务支出 | F90: 3.00 | H90: 3.00 | J90: 支付办
A91: 汕头市濠江区人力资源和社会保障局 | B91: 06180138 | C91: 三支一扶大学生生活补贴 | D91: 2130152 | E91: 对高校毕业生到基层任职补助 | F91: 1.44 | H91: 1.44 | J91: 支付办
A92: 汕头市濠江区人力资源和社会保障局 | B92: 06180305 | C92: 社保工作相关责任单位专项补助经费 | D92: 2089901 | E92: 其他社会保障和就业支出 | F92: 20.33 | H92: 20.33 | J92: 支付办
A93: 汕头市濠江区人力资源和社会保障局 | B93: 06180285 | C93: 技工院校建档立卡贫困家庭学生生活费区级补助资金 | D93: 2089901 | E93: 其他社会保障和就业支出 | F93: 0.42 | H93: 0.42 | J93: 支付办
A94: 汕头市濠江区教育局 | B94: 0001 | C94: 人员经费 | D94: 2050202 | E94: 小学教育 | F94: 0.41 | H94: 0.41 | J94: 支付办
A95: 汕头市濠江区教育局 | B95: 0027 | C95: 住房改革性津贴 | D95: 2050202 | E95: 小学教育 | F95: 0.16 | H95: 0.16 | J95: 支付办
A96: 汕头市濠江区教育局 | B96: 02180160 | C96: 精准扶贫建档立卡等家庭经济困难学生补助资金 | D96: 2050299 | E96: 其他普通教育支出 | F96: 28.00 | H96: 28.00 | J96: 支付办
A97: 汕头市濠江区教育局 | B97: 02180034 | C97: 2018年濠江区创建教育现代化中小学教育装备建设项目 | D97: 2050201 | E97: 学前教育 | F97: 0.31 | H97: 0.31 | J97: 支付办
A98: 汕头市濠江区教育局 | B98: 02180282 | C98: 2017年教育发展专项资金（民办教育发展用途） | D98: 2050299 | E98: 其他普通教育支出 | F98: 10.00 | H98: 10.00 | J98: 支付办
A99: 汕头市濠江区教育局 | B99: 08180009 | C99: 3所足球特色学校运动场及配套建设补助资金 | D99: 2050999 | E99: 其他教育费附加安排的支出 | F99: 5.45 | H99: 5.45 | J99: 支付办
A100: 中国共产党汕头市濠江区纪律检查委员会 | B100: 0002 | C100: 公用经费 | D100: 2011101 | E100: 行政运行 | F100: 0.73 | H100: 0.73 | J100: 支付办
A101: 中国共产党汕头市濠江区纪律检查委员会 | B101: 02180190 | C101: 派驻派出机构 | D101: 2011105 | E101: 派驻派出机构 | F101: 0.03 | H101: 0.03 | J101: 支付办
A102: 汕头市濠江区海洋与渔业局 | B102: 03180042 | C102: 濠江区养殖水域滩涂规划项目经费 | D102: 2200204 | E102: 海域使用管理 | F102: 3.00 | H102: 3.00 | J102: 支付办
A103: 汕头市濠江区海洋与渔业局 | B103: 04180065 | C103: 农业资金审计 | D103: 2130112 | E103: 农业行业业务管理 | F103: 2.00 | H103: 2.00 | J103: 支付办
A104: 汕头市濠江区海洋与渔业局 | B104: 04180014 | C104: 100吨执法船油料费及维护保障经费 | D104: 2130110 | E104: 执法监管 | F104: 4.59 | H104: 4.59 | J104: 支付办
A105: 汕头市濠江区统计局 | B105: 02180274 | C105: 统计工作经费 | D105: 2010502 | E105: 一般行政管理事务 | F105: 1.13 | H105: 1.13 | J105: 支付办
A106: 汕头市濠江区统计局 | B106: 02180503 | C106: 增拨第三次全国农业普查经费 | D106: 2019999 | E106: 其他一般公共服务支出 | F106: 3.00 | H106: 3.00 | J106: 支付办
A107: 汕头市濠江区统计局 | B107: 02180089 | C107: 第四次全国经济普查经费 | D107: 2010507 | E107: 专项普查活动 | F107: 8.38 | H107: 8.38 | J107: 支付办
A108: 汕头市濠江区统计局 | B108: 02180061 | C108: 城乡一体化统计调查经费 | D108: 2010508 | E108: 统计抽样调查 | F108: 1.95 | H108: 1.95 | J108: 支付办
A109: 汕头市濠江区粮食局 | B109: 0002 | C109: 公用经费 | D109: 2220199 | E109: 其他粮油事务支出 | F109: 0.25 | H109: 0.25 | J109: 支付办
A110: 汕头市濠江区粮食局 | B110: 05180035 | C110: “粮安工程”粮库智能化升级改造配套资金 | D110: 2220199 | E110: 其他粮油事务支出 | F110: 40.00 | H110: 40.00 | J110: 支付办
A111: 汕头市濠江区农林水务局 | B111: 04180071 | C111: 三屿围海堤达标加固工程区级配套资金 | D111: 2130305 | E111: 水利工程建设 | F111: 0.82 | H111: 0.82 | J111: 支付办
A112: 汕头市濠江区农林水务局 | B112: 04180128 | C112: 车载移动式排水泵站使用维护管养经费 | D112: 2139999 | E112: 其他农林水支出 | F112: 3.00 | H112: 3.00 | J112: 支付办
A113: 汕头市濠江区农林水务局 | B113: 04180166 | C113: 农村人居环境综合整治建设工作经费 | D113: 2079999 | E113: 其他文化体育与传媒支出 | F113: 31.55 | H113: 31.55 | J113: 支付办
A114: 汕头市濠江区农林水务局 | B114: 04180054 | C114: 农村土地经营权确权登记颁证工作经费 | D114: 2130112 | E114: 农业行业业务管理 | F114: 0.26 | H114: 0.26 | J114: 支付办
A115: 汕头市濠江区农林水务局 | B115: 04180136 | C115: 春绿满濠江2018年植树项目 | D115: 2079999 | E115: 其他文化体育与传媒支出 | F115: 39.71 | H115: 39.71 | J115: 支付办
A116: 汕头市濠江区农林水务局 | B116: 04180069 | C116: 全区水利设施抢修维护资金 | D116: 2130399 | E116: 其他水利支出 | F116: 0.40 | H116: 0.40 | J116: 支付办
A117: 汕头市濠江区农林水务局 | B117: 04180011 | C117: "农村人居环境综合整治"工作经费 | D117: 2130199 | E117: 其他农业支出 | F117: 10.00 | H117: 10.00 | J117: 支付办
A118: 汕头市濠江区农林水务局 | B118: 04180135 | C118: 濠江区森林防火网格化管理工作经费 | D118: 2139999 | E118: 其他农林水支出 | F118: 2.42 | H118: 2.42 | J118: 支付办
A119: 汕头市濠江区农林水务局 | B119: 04180137 | C119: 河长制工作经费 | D119: 2139999 | E119: 其他农林水支出 | F119: 11.50 | H119: 11.50 | J119: 支付办
A120: 汕头市濠江区企业投资管理服务中心 | B120: 02180349 | C120: 招商引资工作经费 | D120: 2019999 | E120: 其他一般公共服务支出 | F120: 4.10 | H120: 4.10 | J120: 支付办
A121: 汕头市濠江区企业投资管理服务中心 | B121: 0002 | C121: 公用经费 | D121: 2010301 | E121: 行政运行 | F121: 0.00 | H121: 0.00 | J121: 支付办
A122: 汕头市濠江区城市建设管理和环境保护局 | B122: 02180481 | C122: 第二次全国污染源普查工作经费 | D122: 2019999 | E122: 其他一般公共服务支出 | F122: 1.16 | H122: 1.16 | J122: 支付办
A123: 汕头市濠江区城市建设管理和环境保护局 | B123: 03180065 | C123: 人防知识教育进社区 | D123: 2030603 | E123: 人民防空 | F123: 8.87 | H123: 8.87 | J123: 支付办
A124: 汕头市濠江区城市建设管理和环境保护局 | B124: 03180065 | C124: 人防知识教育进社区 | D124: 2030603 | E124: 人民防空 | F124: 3.00 | H124: 3.00 | J124: 支付办
A125: 汕头市濠江区质监站(安监站） | B125: 02180572 | C125: 预拌混凝土生产企业原材料检测费 | D125: 2019999 | E125: 其他一般公共服务支出 | F125: 1.84 | H125: 1.84 | J125: 支付办
A126: 汕头市濠江区建筑施工劳保费管理中心 | B126: 02180540 | C126: 采用采购服务方式采集发布濠江区建设工程造价信息经费 | D126: 2019999 | E126: 其他一般公共服务支出 | F126: 6.85 | H126: 6.85 | J126: 支付办
A127: 汕头市濠江区民政局 | B127: 04180043 | C127: 居务监督委员会成员培训费 | D127: 2080208 | E127: 基层政权和社区建设 | F127: 5.00 | H127: 5.00 | J127: 支付办
A128: 汕头市濠江区民政局 | B128: 04180026 | C128: 村居统一社会信用代码赋码工作经费 | D128: 2080208 | E128: 基层政权和社区建设 | F128: 5.00 | H128: 5.00 | J128: 支付办
A129: 汕头市濠江区民政局 | B129: 06180089 | C129: 婚姻登记工本费 | D129: 2080299 | E129: 其他民政管理事务支出 | F129: 2.20 | H129: 2.20 | J129: 支付办
A130: 汕头市濠江区民政局 | B130: 06180313 | C130: 地名普查成果转化 | D130: 2080207 | E130: 行政区划和地名管理 | F130: 40.00 | H130: 40.00 | J130: 支付办
A131: 汕头市濠江区民政局 | B131: 06180104 | C131: 街道基层社会组织联合会建设 | D131: 2080208 | E131: 基层政权和社区建设 | F131: 8.00 | H131: 8.00 | J131: 支付办
A132: 汕头市濠江区民政局 | B132: 06180037 | C132: 残疾人生活津贴和重度残疾人护理补贴 | D132: 2081107 | E132: 残疾人生活和护理补贴 | F132: 117.96 | H132: 117.96 | J132: 支付办
A133: 汕头市濠江职业技术教育中心 | B133: 02170629 | C133: 2017年市级中职教育发展资金 | D133: 2050302 | E133: 中专教育 | F133: 70.00 | H133: 70.00 | J133: 支付办
A134: 汕头市濠江区人民医院 | B134: 0001 | C134: 人员经费 | D134: 2080599 | E134: 其他行政事业单位离退休支出 | F134: 117.47 | H134: 117.47 | J134: 支付办
A135: 汕头市濠江区人民医院 | B135: 0001 | C135: 人员经费 | D135: 2100201 | E135: 综合医院 | F135: 294.59 | H135: 294.59 | J135: 支付办
A136: 汕头市礐石中学 | B136: 02180030 | C136: 2018年城乡免费义务教育公用经费（区级） | D136: 2050203 | E136: 初中教育 | F136: 1.19 | H136: 1.19 | J136: 支付办
A137: 汕头市达濠中学 | B137: 02180030 | C137: 2018年城乡免费义务教育公用经费（区级） | D137: 2050203 | E137: 初中教育 | F137: 0.52 | H137: 0.52 | J137: 支付办
A138: 汕头市达濠第三中学 | B138: 02180030 | C138: 2018年城乡免费义务教育公用经费（区级） | D138: 2050203 | E138: 初中教育 | F138: 25.80 | H138: 25.80 | J138: 支付办
A139: 汕头市滨海中学 | B139: 02180030 | C139: 2018年城乡免费义务教育公用经费（区级） | D139: 2050203 | E139: 初中教育 | F139: 0.73 | H139: 0.73 | J139: 支付办
A140: 汕头市广澳中学 | B140: 02180030 | C140: 2018年城乡免费义务教育公用经费（区级） | D140: 2050203 | E140: 初中教育 | F140: 1.12 | H140: 1.12 | J140: 支付办
A141: 汕头市濠江区疾病预防控制中心 | B141: 06180161 | C141: 卫生监测工作经费 | D141: 2100408 | E141: 基本公共卫生服务 | F141: 0.63 | H141: 0.63 | J141: 支付办
A142: 汕头市濠江区疾病预防控制中心 | B142: 06180267 | C142: 安排市科技计划项目经费 | D142: 2100499 | E142: 其他公共卫生支出 | F142: 1.00 | H142: =+F142+G142 -> 1.00 | J142: 支付办
A143: 汕头市濠江区礐石街道办事处 | B143: 01180012 | C143: 创文经费 | D143: 2079999 | E143: 其他文化体育与传媒支出 | F143: 74.30 | H143: 74.30 | J143: 支付办
A144: 汕头市濠江区马滘街道办事处 | B144: 01180052 | C144: 两委岗位补贴 | D144: 2120199 | E144: 其他城乡社区管理事务支出 | F144: 0.29 | H144: 0.29 | J144: 支付办
A145: 汕头市濠江区玉新街道办事处 | B145: 01180052 | C145: 两委岗位补贴 | D145: 2120199 | E145: 其他城乡社区管理事务支出 | F145: 0.29 | H145: 0.29 | J145: 支付办
A146: 汕头市濠江区玉新街道办事处 | B146: 01180070 | C146: 税收返还 | D146: 2100799 | E146: 其他计划生育事务支出 | F146: 5.00 | H146: 5.00 | J146: 支付办
A147: 汕头市濠江区玉新街道办事处 | B147: 0002 | C147: 公用经费 | D147: 2120199 | E147: 其他城乡社区管理事务支出 | F147: 4.23 | H147: 4.23 | J147: 支付办
A148: 汕头市濠江区玉新街道办事处 | B148: 01180046 | C148: 困难社区办公经费补助 | D148: 2120199 | E148: 其他城乡社区管理事务支出 | F148: 21.00 | H148: 21.00 | J148: 支付办
A149: 汕头市濠江区玉新街道办事处 | B149: 01180013 | C149: 农村基层社区办公经费区级补助 | D149: 2120199 | E149: 其他城乡社区管理事务支出 | F149: 3.00 | H149: 3.00 | J149: 支付办
A150: 汕头市濠江区玉新街道办事处 | B150: 01180070 | C150: 税收返还 | D150: 2120199 | E150: 其他城乡社区管理事务支出 | F150: 35.00 | H150: 35.00 | J150: 支付办
A151: 汕头市濠江区财政局经建股（代编） | B151: 08180012 | C151: 财政委托业务支出经费 | D151: 2299901 | E151: 其他支出 | F151: 0.00 | H151: 0.00 | J151: 支付办
A152: 汕头市濠江区工商行政管理局 | B152: 02180239 | C152: 商事登记及市场监管专项支出 | D152: 2011504 | E152: 工商行政管理专项 | F152: 0.70 | H152: 0.70 | J152: 支付办
A153: 汕头市濠江区工商行政管理局 | B153: 02180193 | C153: 品牌战略经费 | D153: 2011702 | E153: 一般行政管理事务 | F153: 2.01 | H153: 2.01 | J153: 支付办
A154: 汕头市濠江区工商行政管理局 | B154: 02180070 | C154: 打击传销和变相传销专项经费 | D154: 2011505 | E154: 执法办案专项 | F154: 0.15 | H154: 0.15 | J154: 支付办
A155: 汕头市濠江区工商行政管理局 | B155: 02180205 | C155: 清理无照经营工作补助经费 | D155: 2011599 | E155: 其他工商行政管理事务支出 | F155: 0.21 | H155: 0.21 | J155: 支付办
A156: 汕头市濠江区工商行政管理局 | B156: 02180055 | C156: 产品质量监管专项经费 | D156: 2011706 | E156: 质量技术监督行政执法及业务管理 | F156: 0.51 | H156: 0.51 | J156: 支付办
A157: 汕头市濠江区工商行政管理局 | B157: 02180049 | C157: 标准化和民生计量监管工作经费 | D157: 2011706 | E157: 质量技术监督行政执法及业务管理 | F157: 0.02 | H157: 0.02 | J157: 支付办
A158: 汕头市濠江区工商行政管理局 | B158: 02180308 | C158: 信息化建设经费 | D158: 2011507 | E158: 信息化建设 | F158: 0.18 | H158: 0.18 | J158: 支付办
A159: 汕头市濠江区教育局 | C159: 2018年濠江区创建教育现代化中小学教育装备建设项目 | D159: 2050299 | F159: 300.00 | H159: 300.00 | J159: 行财股
A160: 汕头市濠江区教育局（各学校汇总） | C160: 2018年濠江区创建教育现代化中小学教育装备建设项目 | D160: 2050999 | F160: 48.00 | H160: 48.00 | J160: 行财股
A161: 汕头市达濠第三中学 | C161: 2018年濠江区创建教育现代化中小学教育装备建设项目 | D161: 2050999 | F161: 50.00 | H161: 50.00 | J161: 行财股
A162: 汕头市濠江区发展规划局 | B162: 08180060 | C162: 2018年省级基建投资有关工作经费 | D162: 2010499 | E162: 其他发展与改革事务支出 | G162: 2.50 | H162: =+F162+G162 -> 2.50 | J162: 支付办
A163: 汕头市濠江区司法局 | B163: 02180424 | C163: 2018年中央及省级政法转移支付资金 | D163: 2040699 | E163: 其他司法支出 | G163: 18.19 | H163: 18.19 | J163: 支付办
A164: 汕头市濠江区经济和信息化局 | B164: 02180444 | C164: 2018年度专利申请（授权）资助专项资金 | D164: 2011499 | E164: 其他知识产权事务支出 | G164: 10.97 | H164: 10.97 | J164: 支付办
A165: 汕头市濠江区经济和信息化局 | B165: 05180026 | C165: 提前下达中央财政2018年暨2017年度城市出租车、农村道路行业成品油价格改革补助资金 | D165: 2140403 | E165: 对出租车的补贴 | G165: 15.10 | H165: 15.10 | J165: 支付办
A166: 中共汕头市濠江区委组织部 | B166: 02180262 | C166: 提前下达2018年“两新”组织党建工作经费 | D166: 2013299 | E166: 其他组织事务支出 | G166: 5.58 | H166: 5.58 | J166: 支付办
A167: 中共汕头市濠江区委宣传部 | B167: 02180488 | C167: 社区综合性文化服务中心全覆盖建设 | D167: 2079999 | E167: 其他文化体育与传媒支出 | G167: 5.00 | H167: 5.00 | J167: 支付办
A168: 中共汕头市濠江区委宣传部 | B168: 02180492 | C168: 2018年文化消费补贴资金 | D168: 2079999 | E168: 其他文化体育与传媒支出 | G168: 11.64 | H168: 11.64 | J168: 支付办
A169: 汕头市濠江区食品药品监督管理局 | B169: 06180204 | C169: 2018年医疗卫生健康事业发展发展专项资金（食品药品安全）社（17）290号 | D169: 2101099 | E169: 其他食品和药品监督管理事务支出 | G169: 15.24 | H169: 15.24 | J169: 支付办
A170: 汕头市濠江区残疾人联合会 | B170: 03180016 | C170: 残疾人康复中心建设资金 | D170: 2081199 | E170: 其他残疾人事业支出 | G170: 147.93 | H170: 147.93 | J170: 支付办
A171: 汕头市濠江区残疾人联合会 | B171: 06180222 | C171: 2017年度汕头市残疾人就业保障金 社（17）303号 | D171: 2081199 | E171: 其他残疾人事业支出 | G171: 39.00 | H171: 39.00 | J171: 支付办
A172: 汕头市濠江区残疾人联合会 | B172: 06180349 | C172: 2017年度残疾人就业保障金及年审工作经费 社（18）187号 | D172: 2081199 | E172: 其他残疾人事业支出 | G172: 2.46 | H172: 2.46 | J172: 支付办
A173: 汕头市濠江区残疾人联合会 | B173: 06180284 | C173: 2018年度社会福利省级补助专项资金（发展残疾人事业）社（18）74号 | D173: 2081199 | E173: 其他残疾人事业支出 | G173: 0.12 | H173: 0.12 | J173: 支付办
A174: 汕头市濠江区城市综合执法局 | B174: 05180053 | C174: 提前下达2018年省社会治理专项资金（安全生产方向） | D174: 2150699 | E174: 其他安全生产监管支出 | G174: 0.02 | H174: 0.02 | J174: 支付办
A175: 汕头市濠江区环境卫生管理局 | B175: 02180228 | C175: 全区生活垃圾转运后端采购项目经费 | D175: 2120501 | E175: 城乡社区环境卫生 | G175: 2.70 | H175: 2.70 | J175: 支付办
A176: 汕头市濠江区卫生和计划生育局 | B176: 06180329 | C176: 2018年中央财政城市公立医院改革补助资金（第二批） 社（18）193号 | D176: 2100299 | E176: 其他公立医院支出 | G176: 20.00 | H176: 20.00 | J176: 支付办
A177: 汕头市濠江区卫生和计划生育局 | B177: 06180250 | C177: 2018年农村接生员和赤脚医生生活困难补助经费 社（17）263号 | D177: 2100302 | E177: 乡镇卫生院 | G177: 0.48 | H177: 0.48 | J177: 支付办
A178: 汕头市濠江区卫生和计划生育局 | B178: 06180257 | C178: 2018年农村已离岗接生员和赤脚医生生活困难省级补助资金 社（17）300号 | D178: 2100302 | E178: 乡镇卫生院 | G178: 1.39 | H178: 1.39 | J178: 支付办
A179: 汕头市濠江区卫生和计划生育局 | B179: 06180279 | C179: 2018年基层医疗卫生机构全科医生特设岗位省级补助资金 社（18）64号 | D179: 2100399 | E179: 其他基层医疗卫生机构支出 | G179: 84.00 | H179: 84.00 | J179: 支付办
A180: 汕头市濠江区卫生和计划生育局 | B180: 06180251 | C180: 2018年广东省出生缺陷综合防控项目市级配套资金 社（17）264号 | D180: 2100409 | E180: 重大公共卫生专项 | G180: 31.00 | H180: 31.00 | J180: 支付办
A181: 汕头市濠江区卫生和计划生育局 | B181: 06180341 | C181: 2018年重大公共卫生项目市级补助资金-增补叶酸预防神经管缺陷 社（18）198号 | D181: 2100409 | E181: 重大公共卫生专项 | G181: 0.54 | H181: 0.54 | J181: 支付办
A182: 汕头市濠江区卫生和计划生育局 | B182: 06180225 | C182: 2018年中央重大公共卫生服务补助资金 社（17）309号 | D182: 2100409 | E182: 重大公共卫生专项 | G182: 18.03 | H182: 18.03 | J182: 支付办
A183: 汕头市濠江区卫生和计划生育局 | B183: 06180333 | C183: 2018年第二批中央财政补助重大公共卫生服务项目资金-艾滋病防治 社（18）195号 | D183: 2100409 | E183: 重大公共卫生专项 | G183: 13.08 | H183: 13.08 | J183: 支付办
A184: 汕头市濠江区卫生和计划生育局 | B184: 06180334 | C184: 2018年第二批中央财政补助重大公共卫生服务项目资金-增补叶酸预防神经管缺陷 社（18）195号 | D184: 2100409 | E184: 重大公共卫生专项 | G184: 0.24 | H184: 0.24 | J184: 支付办
A185: 汕头市濠江区卫生和计划生育局 | B185: 06180335 | C185: 2018年第二批中央财政补助重大公共卫生服务项目资金-免费孕前优生健康检查 社（18）195号 | D185: 2100409 | E185: 重大公共卫生专项 | G185: 3.00 | H185: 3.00 | J185: 支付办
A186: 汕头市濠江区卫生和计划生育局 | B186: 06180219 | C186: 2018年严重精神障碍患者监护市级补助经费 社（17）256号 | D186: 2100499 | E186: 其他公共卫生支出 | G186: 22.00 | H186: 22.00 | J186: 支付办
A187: 汕头市濠江区卫生和计划生育局 | B187: 06180277 | C187: 2018年出生缺陷综合防控省级补助资金 社（18）64号 | D187: 2100499 | E187: 其他公共卫生支出 | G187: 74.00 | H187: 74.00 | J187: 支付办
A188: 汕头市濠江区卫生和计划生育局 | B188: 06180278 | C188: 2018年疫病防控专项省级补助资金（增补叶酸预防神经管缺陷项目） 社（18）64号 | D188: 2100499 | E188: 其他公共卫生支出 | G188: 1.00 | H188: 1.00 | J188: 支付办
A189: 汕头市濠江区卫生和计划生育局 | B189: 06180328 | C189: 2018年第四批省级医疗卫生健康事业发展专项资金-农村妇女“两癌”免费检查项目 社（18）176号 | D189: 2100499 | E189: 其他公共卫生支出 | G189: 11.87 | H189: 11.87 | J189: 支付办
A190: 汕头市濠江区卫生和计划生育局 | B190: 06180249 | C190: 2018年度省农村部分计划生育家庭奖励市级配套资金 社（17）262号 | D190: 2100717 | E190: 计划生育服务 | G190: 0.06 | H190: 0.06 | J190: 支付办
A191: 汕头市濠江区卫生和计划生育局 | B191: SM180003 | C191: 2018年省级财政计划生育技术服务经费 社（18）129号 | D191: 2100717 | E191: 计划生育服务 | G191: 11.38 | H191: 11.38 | J191: 支付办
A192: 汕头市濠江区卫生和计划生育局 | B192: 06180247 | C192: 2018年免费孕前优生健康检查项目市级补助经费 社（17）259号 | D192: 2100799 | E192: 其他计划生育事务支出 | G192: 2.00 | H192: 2.00 | J192: 支付办
A193: 汕头市濠江区卫生和计划生育局 | B193: 06180248 | C193: 2018年度农村计划生育节育奖励市级补助资金 社（17）260号 | D193: 2100799 | E193: 其他计划生育事务支出 | G193: 0.08 | H193: 0.08 | J193: 支付办
A194: 汕头市濠江区卫生和计划生育局 | B194: 06180274 | C194: 2017年市配套计划生育技术服务经费 社（18）66号 | D194: 2100799 | E194: 其他计划生育事务支出 | G194: 8.77 | H194: 8.77 | J194: 支付办
A195: 汕头市濠江区卫生和计划生育局 | B195: 06180307 | C195: 2018年城镇独生子女父母奖励金标准及清算2017年奖励金 社（18）107号 | D195: 2100799 | E195: 其他计划生育事务支出 | G195: 0.52 | H195: 0.52 | J195: 支付办
A196: 汕头市濠江区卫生和计划生育局 | B196: 06180351 | C196: 2018年广东省农村妇女“两癌”免费检查项目市级配套经费 社（18）201号 | D196: 2100799 | E196: 其他计划生育事务支出 | G196: 1.49 | H196: 1.49 | J196: 支付办
A197: 汕头市濠江区人民政府办公室 | B197: 02180467 | C197: 省文化繁荣发展专项资金 | D197: 2012604 | E197: 档案馆 | G197: 5.25 | H197: 5.25 | J197: 支付办
A198: 汕头市濠江区人力资源和社会保障局 | B198: 06180260 | C198: 濠江区人社局档案室建设经费 社（18）28号 | D198: 2080199 | E198: 其他人力资源和社会保障管理事务支出 | G198: 28.66 | H198: 28.66 | J198: 支付办
A199: 汕头市濠江区人力资源和社会保障局 | B199: 06180241 | C199: 2018年度促进就业创业发展专项省级补助资金（技能晋升培训补贴） 社（17）284号 | D199: 2080702 | E199: 职业培训补贴 | G199: 0.20 | H199: 0.20 | J199: 支付办
A200: 汕头市濠江区人力资源和社会保障局 | B200: 06180263 | C200: 博士和博士后创新创业孵化基地市级补助经费 社（18）31号 | D200: 2080799 | E200: 其他就业补助支出 | G200: 100.00 | H200: 100.00 | J200: 支付办
... 110 more rows

Sheet 2018年基金预算收入计划调整表（附表五）
A1: 附表五
A2: 2018年基金预算收入计划调整表
J3: 单位：万元
A4: 项目 | B4: 第三次调整计划数 | D4: 变动 | F4: 第四次调整计划数 | H4: 比增 % | J4: 备注
B6: 总库 | C6: 本级 | D6: 总库 | E6: 本级 | F6: 总库 | G6: 本级 | H6: 总库 | I6: 本级
A7: 1、地方森林植被恢复费 | C7: 0
A8: 2、公共租赁住房租金收入 | B8: 0 | C8: 0
A9: 3、国有土地收益基金收入 | B9: 7,347 | C9: 7,347 | D9: =F9-B9 -> -830 | E9: =G9-C9 -> -830 | F9: 6,517 | G9: 6,517 | H9: =+(F9/B9-1)*100 -> -11 | I9: =+(G9/C9-1)*100 -> -11
A10: 4、农业土地开发资金收入 | B10: 1,000 | C10: 1,000 | D10: =F10-B10 -> -798 | E10: =G10-C10 -> -798 | F10: 202 | G10: 202 | H10: =+(F10/B10-1)*100 -> -80 | I10: -80
A11: 5、土地出让价款收入 | B11: 137,372 | C11: 137,372 | D11: -13,852 | E11: -13,852 | F11: 123,520 | G11: 123,520 | H11: -10 | I11: -10
A12: 6、其他土地出让收入 | B12: 0 | C12: 0 | D12: 0 | E12: 0
A13: 7、补缴的土地价款 | B13: 23,912 | C13: 23,912 | D13: 39,931 | E13: 39,931 | F13: 63,843 | G13: 63,843 | H13: 167 | I13: 167
A14: 8、划拨土地收入 | B14: 6,164 | C14: 6,164 | D14: -845 | E14: -845 | F14: 5,319 | G14: 5,319 | H14: -14 | I14: -14
A15: 9、教育资金收入 | B15: 0 | D15: 0 | E15: 0
A16: 10、农田水利建设资金收入 | B16: 0 | D16: 0 | E16: 0
A17: 11、缴纳新增建设用地土地有偿使用费 | B17: -4,500 | C17: -4,500 | D17: 1,595 | E17: 1,595 | F17: -2,905 | G17: -2,905 | H17: -35 | I17: -35
A18: 12、福利彩票公益金收入 | B18: 60 | C18: 60 | D18: -6 | E18: -6 | F18: 54 | G18: 54 | H18: -10 | I18: -10
A19: 13、城市基础设施配套费收入 | B19: 8,000 | C19: 8,000 | D19: 700 | E19: 700 | F19: 8,700 | G19: 8,700 | H19: 9 | I19: 9
A20: 14、地方教育费附加收入 | B20: 0 | C20: 0 | D20: 0 | E20: 0
A21: 15、船舶港务费 | C21: 0 | D21: 0 | E21: 0
A22: 16、文化事业建设费收入 | C22: 0 | D22: 0 | E22: 0
A23: 17、残疾人就业保障金收入 | C23: 0 | D23: 0 | E23: 0
A24: 18、其他基金收入 | B24: 0 | C24: 0 | D24: 0 | E24: 0
A25: 征收收入小计 | B25: 179,355 | C25: 179,355 | D25: 25,895 | E25: 25,895 | F25: 205,250 | G25: 205,250 | H25: 14 | I25: 14
A26: 二.转移性收入 | B26: 64,445 | C26: 64,445 | D26: 0 | E26: 0 | F26: =SUM(F27:F30) -> 64,445 | G26: =SUM(G27:G30) -> 64,445 | H26: 0 | I26: 0
A27: 1.上级专项性补助收入 | B27: 600 | C27: 600 | D27: 0 | E27: 0 | F27: 600 | G27: 600 | H27: 0 | I27: 0
A28: 2.上年结余收入 | B28: 13,845 | C28: 13,845 | D28: 0 | E28: 0 | F28: 13,845 | G28: 13,845 | H28: 0 | I28: 0
A29: 3.上级债券收入 | B29: 50,000 | C29: 50,000 | D29: 0 | E29: 0 | F29: 50,000 | G29: 50,000 | H29: 0 | I29: 0
A30: 4.调入资金 | D30: 0 | E30: 0
A31: 财力合计 | B31: 243,800 | C31: 243,800 | D31: 25,895 | E31: 25,895 | F31: =F25+F26 -> 269,695 | G31: =G25+G26 -> 269,695 | H31: 11 | I31: 11

Sheet 调整后基金预算收入 (附表四) (hidden)
A1: 附表四
A2: 2018年本级政府性基金收入项目调整表
K5: 单位金额：万元
A6: 序号 | B6: 项目单位 | C6: 用地类别/项目 | D6: 位置 | E6: 面积（亩） | F6: 年初预算 | G6: 已完成 | H6: 上报调整 | I6: 预算调整 | J6: 增减 | K6: 备注 | L6: 出让方式
A7: 1
A8: 2
A9: 3
A10: 4
A11: 5
A12: ……
A13: 中信项目小计 | E13: =SUM(E7:E12) -> 0 | F13: =SUM(F7:F12) -> 0 | G13: =SUM(G7:G12) -> 0 | H13: =SUM(H7:H12) -> 0 | I13: =SUM(I7:I12) -> 0 | J13: =I13-F13 -> 0
A14: 1
A15: 2
A16: 3
A17: 4
A18: 5
A19: 6
A20: ……
A21: 土地基金区内项目小计
A22: 一、土地基金收入合计
A23: 二、城市基础设施配套费收入
A24: 三、福彩公益金收入
A25: 2018年度政府性基金收入合计
A26: 四、上 年 结 转
A27: 2018年政府性基金收入总计
A28: 其中：区内项目收入

Sheet 本级政府性基金收入项目调整表（附表六）
A1: 附表六
A2: 2018年本级政府性基金收入项目调整表
I5: 单位金额：万元
A6: 序号 | B6: 项目单位 | C6: 项目 | D6: 位置 | E6: 面积（亩） | F6: 第三次调整 预算收入 | G6: 第四次调整 预算收入 | H6: 变动 | I6: 备注 | J6: 出让方式
A7: 1 | B7: 中信 | C7: 统征地、商业，总部大厦（潮宏基项目） | D7: 中信滨海南滨片区02-04-10、02-04-12地块 | E7: =13.404+13.5315 -> 26.94 | F7: 11400 | G7: 11400 | H7: 0 | I7: 2017.12.18成交， 1月全缴 | J7: 挂牌
A8: 2 | B8: 中信 | C8: 统征地、商业，总部大厦（绿地项目） | D8: 中信滨海南滨片区02-04-02、02-04-05地块 | E8: 44 | F8: 18800 | G8: 18800 | H8: 0 | I8: 2017.12.26成交， 2月6日全缴 | J8: 挂牌
A9: 3 | B9: 中信 | C9: 统征地、商业（联泰万悦项目） | D9: 中信滨海南滨片区02-01-07地块 | E9: 50 | F9: 75100 | G9: 75100 | H9: 0 | I9: 2017.12.21成交， 2月5日缴全50% | J9: 挂牌
A10: 中信项目小计 | E10: =SUM(E7:E9) -> 120.94 | F10: 105300 | G10: 105300 | H10: 0
A11: 4 | B11: 国土局 | C11: 汕头市伟达房地产有限公司 | D11: 北山湾片区14宗用地 | E11: 345.00 | F11: 23078 | G11: 62898 | H11: 39820 | I11: 补缴 | J11: 补缴
A12: 5 | B12: 国土局 | C12: 上海电气风电集团项目 | D12: 广澳物流园区B01地块 | E12: 136.14 | F12: 2240 | G12: 2240 | H12: 0 | I12: 2017.12.26成交 | J12: 挂牌
A13: 6 | B13: 国土局 | C13: 电子电路工业基地（河浦片、台商片）A06-4地块 | D13: 电子电路工业基地 | E13: 1.20 | F13: 54 | G13: 0 | H13: -54 | I13: 近期拟挂牌出让 | J13: 挂牌
A14: 7 | B14: 国土局 | C14: 宏杰内衣项目 | D14: 河浦中心工业区A01-08地块 | E14: 2.40 | F14: 131 | G14: 131 | H14: 0 | I14: 2017.12.21成交 | J14: 挂牌
A15: 8 | B15: 土储 | C15: 下衙养老福利中心 | D15: 下衙居委“渡西寺”西南侧GP-2018-001地块 | E15: 79.42 | F15: 1759 | G15: 0 | H15: -1759 | I15: 划拨 | J15: 划拨
A16: 9 | B16: 土储 | C16: 柏亚项目 | D16: 广澳物流园区B02地块一 | E16: 14.51 | F16: 785 | G16: 785 | H16: 0 | I16: 2017.12.21成交 | J16: 挂牌
A17: 10 | B17: 土储 | C17: 潮州市雅华建筑材料有限公司、邱汉义、邱汉周名下三宗工业用地 | D17: 汕头市台商投资区濠江片 | E17: 123.56 | F17: 3200 | G17: 0 | H17: -3200 | J17: 挂牌
A18: 11 | B18: 土储 | C18: 美联项目 | D18: 疏港大道南侧用地（广澳物流园D01-02地块内） | E18: 11.67 | F18: 799 | G18: 0 | H18: -799 | I18: 5月23日征求意见 挂牌价840万元,10月22日流拍 | J18: 挂牌
A19: 12 | B19: 土储 | C19: 雨伞塭二期 | D19: 雨伞塭片区B-02-03地块西南侧 | E19: 22.62 | F19: 17550 | G19: 19950 | H19: 2400 | I19: 雨伞塭片区B-02-03地块西南侧22.62亩，评估价16654.79万元，10月22日成交19950万元 | J19: 挂牌
A20: 13 | B20: 招商局 南山湾办 | C20: 商服用地 | D20: 南山湾C01-01地块内 | E20: 33 | F20: 4950 | G20: 0 | H20: -4950 | I20: 2017.12.11流拍 | J20: 挂牌
A21: 14 | B21: 招商局 南山湾办 | C21: 广东省轻工机械产业计量 测试中心项目 | D21: 南山湾产业园C01-01东南侧地块 | E21: 30 | F21: 1224 | G21: 1248 | H21: 24 | I21: 40.8万元/亩 | J21: 划拨
A22: 15 | B22: 招商局 南山湾办 | C22: 敬宠实业项目 | D22: 滨海工业区A03-01 | E22: 22 | F22: 1115 | G22: 1115 | H22: 0 | I22: 2017.12.18成交 | J22: 挂牌
A23: 16 | B23: 招商局 南山湾办 | C23: 商业商务用地（景峰投资公司） | D23: 台商投资区B02-4、D01-2地块 | E23: 35 | F23: 5680 | G23: 0 | H23: -5680 | I23: 5月18日征求意见）挂牌价5680万元 | J23: 挂牌
A24: 17 | B24: 区供销社 | C24: 濠江区肉食品安全生产基地 | D24: 广澳物流园 | E24: 15 | F24: 499 | G24: 499 | H24: 0 | J24: 划拨
A25: 18 | B25: 国土局 | C25: 澳头经联社三旧改造项目 | D25: 澳头经联社 | E25: 24.70 | F25: 812 | G25: 812 | H25: 0 | J25: 协议
A26: 19 | B26: 国土局 | C26: 和记房产公司三旧改造项目 | F26: 34 | G26: 34 | H26: 0 | J26: 补缴
A27: 20 | B27: 国土局 | C27: 广东汕粮实业投资有限公司 | E27: 60 | F27: 2269 | G27: 2269 | H27: 0 | J27: 划拨
A28: 21 | B28: 国土局 | C28: 汕头市三河中学用地确权 | F28: 361 | G28: 361 | H28: 0 | J28: 补缴
A29: 22 | B29: 招商局 南山湾办 | C29: 工矿仓储用地 （昆明创辉） | D29: 台商投资区A03-1西北侧地块 | E29: 7.05 | F29: 317 | G29: 0 | H29: -317 | I29: 已组织评估，出让地价款缴交时间预计11月底 | J29: 挂牌
A30: 23 | B30: 招商局 南山湾办 | C30: 商服用地（航运中心项目，原李丽娟地块65亩范围） | D30: 广澳物流园片区E01-02地块内 | E30: 14 | F30: 2250 | G30: 0 | H30: -2250 | I30: 土地平整，10月收入。 | J30: 挂牌
A31: 24 | B31: 招商局 南山湾办 | C31: 工矿仓储用地 （鲁邦建材公司） | D31: 台商投资区A02地块内， | E31: 12 | F31: 540 | G31: 0 | H31: -540 | I31: 用地规划调整，12月份预收。 | J31: 挂牌
A32: 25 | B32: 招商局 南山湾办 | C32: 工矿仓储用地 （天泰机械公司） | D32: 台商投资区A02地块内 | E32: 11 | F32: 495 | G32: 0 | H32: -495 | I32: 用地规划调整，12月份预收。 | J32: 挂牌
A33: 26 | B33: 土储 | C33: 公共管理与公共服务用地 (残疾人康复中心项目） | D33: 达濠西田路5号 | E33: 2.20 | F33: 53 | G33: 53 | H33: 0 | J33: 划拨
A34: 27 | B34: 代编 | C34: 其他零星项目 | F34: 800 | G34: 1800 | H34: 1000 | J34: 补缴
A35: 28 | B35: 代编 | C35: 上缴新增建设用地有偿使用费及有关资金 | F35: -5000 | G35: -3000 | H35: 2000
A36: 土地基金区内项目小计 | E36: =SUM(E11:E35) -> 1002.46 | F36: 65995 | G36: 91196 | H36: 25201
A37: 一、土地基金收入合计 | E37: =E10+E36 -> 1123.40 | F37: 171295 | G37: 196496 | H37: 25201
A38: 二、城市基础设施配套费收入 | F38: 8000 | G38: 8700 | H38: 700
A39: 三、福彩公益金收入 | F39: 60 | G39: 54 | H39: -6
A40: 2018年度政府性基金收入 | F40: =SUM(F37:F39) -> 179355 | G40: 205250 | H40: 25895
A41: 其中：区级项目收入 | F41: =F40-F10 -> 74055 | G41: =G40-G10 -> 99950 | H41: =H36+H38+H39 -> 25895

Sheet 基金预算支出计划调整表（附表七）
A1: 附表七
A2: 2018年基金预算支出计划调整表
P3: 单位：万元
A4: 科目编码 | C4: 项目 | D4: 第三次调整计划数 | G4: 变动因素 | M4: 第四次调整计划数 | P4: 比增 % | Q4: 备注
D5: 合计 | E5: 本级支出 | F5: 上级支出 | G5: 政策性 调整 | H5: 批增 | I5: 其他 调整 | J5: 同类 调剂 | K5: 跨类 调剂 | L5: 上级支出 | M5: 本级支出 | N5: 上级支出 | O5: 合计
A6: 205 | C6: 教育 | E6: =E7 -> 0 | G6: 0 | H6: 0 | I6: 0 | J6: 0 | K6: 0 | M6: =E6+G6+H6+I6+J6+K6 -> 0 | P6: =IF(E6=0,IF(M6=0,0,100),100*(M6/E6-1)) -> 0
A7: 20510 | C7: 地方教育附加安排的支出 | E7: =SUM(E8:E9) -> 0 | G7: 0 | H7: 0 | I7: 0 | J7: 0 | K7: 0 | M7: 0 | P7: 0
A8: 2051001 | C8: 农村中小学校舍建设 | M8: 0 | P8: 0
A9: 2051099 | C9: 其他地方教育附加安排的支出 | M9: 0 | P9: 0
A10: 207 | C10: 文化体育与传媒 | E10: =E13 -> 0 | G10: 0 | H10: 0 | I10: 0 | J10: 0 | K10: 0 | M10: 0 | P10: 0
A11: 20707 | C11: 国家电影事业发展专项资金及对应专项债务收入安排的支出
A12: 2070799 | C12: 其他国家电影事业发展专项资金支出
A13: 20799 | C13: 其他文化体育与传媒支出 | E13: =E14 -> 0 | G13: 0 | H13: 0 | I13: 0 | J13: 0 | K13: 0 | M13: =E13+G13+H13+I13+J13+K13 -> 0 | P13: =IF(E13=0,IF(M13=0,0,100),100*(M13/E13-1)) -> 0
A14: 2079901 | C14: 文化事业建设费支出 | M14: 0 | P14: 0
A15: 208 | C15: 社会保障和就业 | E15: =E16+E19 -> 0 | G15: 0 | H15: 0 | I15: 0 | J15: 0 | K15: 0 | M15: 0 | P15: 0
A16: 20811 | C16: 残疾人事业 | E16: =SUM(E17:E18) -> 0 | G16: 0 | H16: 0 | I16: 0 | J16: 0 | K16: 0 | M16: 0 | P16: 0
A17: 2081107 | C17: 扶持农村残疾人生产 | M17: 0 | P17: 0
A18: 2081199 | C18: 其他残疾人就业保障金支出 | M18: 0 | P18: 0
A19: 20860 | C19: 残疾人就业保障金支出 | E19: =E20 -> 0 | G19: 0 | H19: 0 | I19: 0 | J19: 0 | K19: 0 | M19: 0 | P19: 0
A20: 2086099 | C20: 其他残疾人就业保障金支出 | M20: 0 | P20: 0
A21: 212 | C21: 城乡社区事务 | D21: =E21+F21 -> 211,667 | E21: 211,067 | F21: 600 | G21: =M21-E21 -> 15,460 | M21: =M24+M41+M49+M45 -> 226,527 | N21: 600 | O21: =M21+N21 -> 227,127 | P21: =+(O21/D21-1)*100 -> 7
A22: 21207 | C22: 政府住房基金支出 | D22: 0 | E22: 0 | F22: 0 | G22: =M22-E22 -> 0 | N22: 0 | O22: =M22+N22 -> 0
A23: 2120705 | C23: 公共租赁住房租金支出 | D23: 0 | E23: 0 | F23: 0 | G23: 0 | N23: 0 | O23: 0
A24: 21208 | C24: 国有土地使用权出让收入安排的支出 | D24: 182,159 | E24: 181,559 | F24: 600 | G24: 31,774 | M24: =SUM(M25:M36) -> 213,333 | N24: 600 | O24: 213,933 | P24: =+(O24/D24-1)*100 -> 17
A25: 2120801 | C25: 征地和拆迁补偿支出 | D25: 36,740 | E25: 36,740 | F25: 0 | G25: -3,975 | M25: =10748+22016.7 -> 32,765 | N25: 0 | O25: 32,765 | P25: =+(O25/D25-1)*100 -> -11
A26: 2120802 | C26: 土地开发支出 | D26: 99,992 | E26: 99,992 | F26: 0 | G26: 13,900 | M26: =111122+2770 -> 113,892 | N26: 0 | O26: 113,892 | P26: 14
A27: 2120803 | C27: 城市建设支出 | D27: 25,099 | E27: 25,099 | F27: 0 | G27: 27,357 | M27: =31247+25000+359.04-4150 -> 52,456 | N27: 0 | O27: 52,456 | P27: 109
A28: 2120804 | C28: 农村基础设施建设支出 | D28: 0 | E28: 0 | G28: 0 | O28: 0
A29: 2120805 | C29: 补助被征地农民支出 | D29: 822 | E29: 822 | F29: 0 | G29: -26 | M29: =583+213.3 -> 796 | N29: 0 | O29: 796 | P29: -3
A30: 2120806 | C30: 土地出让业务支出 | D30: 1,731 | E30: 1,731 | F30: 0 | G30: -365 | M30: 1,366 | N30: 0 | O30: 1,366 | P30: -21
A31: 2120807 | C31: 廉租住房支出 | D31: 0 | E31: 0 | F31: 0 | G31: 0 | N31: 0 | O31: 0
A32: 2120808 | C32: 教育资金安排的支出 | D32: 0 | E32: 0 | F32: 0 | G32: 0 | N32: 0 | O32: 0
A33: 2120809 | C33: 支付破产或改制企业职工安置费 | D33: 0 | E33: 0 | F33: 0 | G33: 0 | N33: 0 | O33: 0
A34: 2120811 | C34: 公共租赁住房支出 | D34: 783 | E34: 783 | F34: 0 | G34: -718 | M34: 65 | N34: 0 | O34: 65 | P34: -92
A35: 2120812 | C35: 农田水利建设资金安排的支出 | D35: 0 | E35: 0 | F35: 0 | G35: 0 | N35: 0 | O35: 0
A36: 2120899 | C36: 其他国有土地使用权出让收入安排的支出 | D36: 16,992 | E36: 16,392 | F36: 600 | G36: -4,399 | M36: =11649+344.27 -> 11,993 | N36: 600 | O36: 12,593 | P36: -26
A37: 21209 | C37: 城市公用事业附加安排的支出 | D37: 0 | E37: 0 | F37: 0 | G37: 0 | N37: 0 | O37: 0
A38: 2120901 | C38: 城市公共设施 | D38: 0 | E38: 0 | F38: 0 | G38: 0 | N38: 0 | O38: 0
A39: 2120902 | C39: 城市环境卫生（城市公用事业附加安排的支出） | D39: 0 | E39: 0 | F39: 0 | G39: 0 | N39: 0 | O39: 0
A40: 2120999 | C40: 其他城市公用事业附加安排的支出 | D40: 0 | E40: 0 | F40: 0 | G40: 0 | N40: 0 | O40: 0
A41: 21210 | C41: 国有土地收益基金支出 | D41: 8,200 | E41: 8,200 | F41: 0 | G41: -1,000 | M41: 7,200 | N41: 0 | O41: 7,200 | P41: -12
A42: 2121001 | C42: 征地和拆迁补偿支出 | D42: 8,200 | E42: 8,200 | F42: 0 | G42: -1,000 | M42: 7,200 | N42: 0 | O42: 7,200 | P42: -12
A43: 2121002 | C43: 土地开发支出 | D43: 0 | E43: 0 | F43: 0 | G43: 0 | N43: 0 | O43: 0
A44: 2121099 | C44: 其他国有土地收益基金支出 | D44: 0 | E44: 0 | F44: 0 | G44: 0 | N44: 0 | O44: 0
A45: 21211 | C45: 农业土地开发资金支出 | D45: 524 | E45: 524 | G45: -117 | M45: 407 | O45: 407 | P45: -22
A46: 21212 | C46: 新增建设用地土地有偿使用费安排的支出 | D46: 0 | E46: 0 | F46: 0 | G46: 0 | N46: 0 | O46: 0
A47: 2121202 | C47: 基本农田建设和保护支出 | D47: 0 | E47: 0 | F47: 0 | G47: 0 | N47: 0 | O47: 0
A48: 2121203 | C48: 土地整理支出 | D48: 0 | E48: 0 | F48: 0 | G48: 0 | N48: 0 | O48: 0
A49: 21213 | C49: 城市基础设施配套费安排的支出 | D49: 20,784 | E49: 20,784 | F49: 0 | G49: -15,197 | M49: 5,587 | N49: 0 | O49: 5,587 | P49: -73
A50: 2121301 | C50: 城市公共设施 | D50: 663 | E50: 663 | F50: 0 | G50: 43 | M50: 706 | N50: 0 | O50: 706 | P50: 6
A51: 2121302 | C51: 城市环境卫生 | D51: 4,055 | E51: 4,055 | F51: 0 | G51: -230 | M51: 3,825 | N51: 0 | O51: 3,825 | P51: -6
A52: 2121399 | C52: 其他城市基础设施配套费安排的支出 | D52: 16,066 | E52: 16,066 | F52: 0 | G52: -15,010 | M52: 1,056 | N52: 0 | O52: 1,056 | P52: -93
A53: 213 | C53: 农林水事务 | D53: 0 | E53: 0 | F53: 0 | G53: 0 | N53: 0 | O53: 0
A54: 21362 | C54: 森林植被恢复费安排的支出 | D54: 0 | E54: 0 | F54: 0 | G54: =M54-E54 -> 0 | N54: 0 | O54: =M54+N54 -> 0
A55: 2136203 | C55: 森林培育 | D55: 0 | E55: 0 | F55: 0 | G55: 0 | N55: 0 | O55: 0
A56: 2136299 | C56: 其他森林植被恢复费安排的支出 | D56: 0 | E56: 0 | F56: 0 | G56: 0 | N56: 0 | O56: 0
A57: 21364 | C57: 地方水利建设基金支出 | D57: 0 | E57: 0 | F57: 0 | G57: 0 | N57: 0 | O57: 0 | P57: =+(O57/D57-1)*100 -> 
A58: 2136499 | C58: 其他地方水利建设基金支出 | D58: 0 | E58: 0 | F58: 0 | G58: 0 | N58: 0 | O58: 0
A59: 21370 | C59: 水土保持补偿费安排的支出 | D59: 0 | E59: 0 | F59: 0 | G59: 0 | N59: 0 | O59: 0
A60: 2137003 | C60: 其他水土保持补偿费安排的支出 | D60: 0 | E60: 0 | F60: 0 | G60: 0 | N60: 0 | O60: 0
A61: 214 | C61: 交通运输 | D61: 0 | E61: 0 | F61: 0 | G61: 0 | N61: 0 | O61: 0
A62: 21401 | C62: 公路水路运输 | D62: 0 | E62: 0 | F62: 0 | G62: 0 | N62: 0 | O62: 0
A63: 2140190 | C63: 船舶港务费安排的支出 | D63: 0 | E63: 0 | F63: 0 | G63: 0 | N63: 0 | O63: 0
A64: 215 | C64: 资源勘探信息等支出 | D64: 0 | E64: 0 | F64: 0 | G64: 0 | N64: 0 | O64: 0
A65: 21560 | C65: 散装水泥专项资金及对应专项债务收入安排的支出 | D65: 0 | E65: 0 | F65: 0 | G65: 0 | N65: 0 | O65: 0
A66: 2156099 | C66: 散装水泥专项资金安排的支出 | D66: 0 | E66: 0 | F66: 0 | G66: 0 | N66: 0 | O66: 0
A67: 21561 | C67: 新型墙体材料专项基金及对应专项债务收入安排的支出 | D67: 0 | E67: 0 | F67: 0 | G67: 0 | N67: 0 | O67: 0
A68: 2156199 | C68: 新型墙体材料专项基金安排的支出 | D68: 0 | E68: 0 | F68: 0 | G68: 0 | N68: 0 | O68: 0
A69: 216 | C69: 商业服务业等支出 | D69: 0 | G69: 0 | O69: 0
A70: 21660 | C70: 旅游发展基金支出 | D70: 0 | G70: 0 | O70: 0
A71: 2166004 | C71: 地方旅游开发项目补助 | D71: 0 | G71: 0 | O71: 0
A72: 229 | C72: 其他支出 | D72: 60 | E72: 60 | G72: 11 | M72: 71 | O72: 71 | P72: 18
A73: 22960 | C73: 彩票公益金安排的支出 | D73: 60 | E73: 60 | G73: 11 | M73: 71 | O73: 71 | P73: 18
A74: 2296001 | C74: 用于补充全国社会保障基金的彩票公益金支出 | D74: 0 | E74: 0 | F74: 0 | G74: 0 | N74: 0 | O74: 0
A75: 2296002 | C75: 用于社会福利的彩票公益金支出 | D75: 0 | E75: 0 | G75: 0 | O75: 0
A76: 2296003 | C76: 用于体育事业的彩票公益金支出 | D76: 0 | E76: 0 | F76: 0 | G76: 0 | N76: 0 | O76: 0
A77: 2296004 | C77: 用于教育事业的彩票公益金支出 | D77: 0 | E77: 0 | G77: 0 | O77: 0
A78: 2296006 | C78: 用于残疾人事务的彩票公益金支出 | D78: 0 | E78: 0 | G78: 0 | O78: 0
A79: 2296007 | C79: 用于城市医疗救助的彩票公益金支出 | D79: 0 | E79: 0 | F79: 0 | G79: 0 | N79: 0 | O79: 0
A80: 2296008 | C80: 用于农村医疗救助的彩票公益金支出 | D80: 0 | E80: 0 | F80: 0 | G80: 0 | N80: 0 | O80: 0
A81: 2296013 | C81: 用于城乡医疗救助的彩票公益金支出 | D81: 0 | E81: 0 | F81: 0 | G81: 0 | N81: 0 | O81: 0
A82: 2296099 | C82: 用于其他社会公益事业的彩票公益金支出 | D82: 60 | E82: 60 | F82: 0 | G82: 11 | M82: 71 | N82: 0 | O82: 71 | P82: 18
A83: 230 | C83: 转移性支出 | D83: 29,227 | E83: 29,227 | F83: 0 | G83: 10,424 | M83: =M84+M86+M87 -> 39,651 | N83: 0 | O83: 39,651 | P83: 36
A84: 23004 | C84: 政府性基金转移支付 | D84: 5,109 | E84: 5,109 | F84: 0 | G84: 0 | M84: 5,109 | N84: 0 | O84: 5,109 | P84: 0
A85: 2300401 | C85: 政府性基金补助支出 | D85: =E85+F85 -> 0 | E85: 0 | F85: 0 | G85: 0 | N85: 0 | O85: 0
A86: 23008 | C86: 调出资金 | D86: 22,673 | E86: 22,673 | F86: 0 | G86: 5,516 | M86: =28100+38.67+50 -> 28,189 | N86: 0 | O86: 28,189 | P86: 24
A87: 23009 | C87: 年终结余 | D87: 1,445 | E87: 1,445 | F87: 0 | G87: 4,908 | M87: =803+5550 -> 6,353 | N87: 0 | O87: 6,353 | P87: 340
A88: 231 | C88: 债务还本支出 | D88: 0 | E88: 0 | F88: 0 | G88: 0 | N88: 0 | O88: 0
A89: 2310411 | C89: 国有土地使用权出让金债务还本支出 | D89: 0 | E89: 0 | F89: 0 | G89: 0 | N89: 0 | O89: 0
A90: 232 | C90: 债务付息支出 | D90: 2,794 | E90: 2,794 | F90: 0 | G90: 0 | M90: 2,794 | N90: 0 | O90: 2,794 | P90: =+(O90/D90-1)*100 -> 0
A91: 2320411 | C91: 国有土地使用权出让金债务付息支出 | D91: 2,794 | E91: 2,794 | F91: 0 | G91: 0 | M91: 2,794 | N91: 0 | O91: 2,794 | P91: =+(O91/D91-1)*100 -> 0
A92: 233 | C92: 债务发行费用支出 | D92: 52 | E92: 52 | F92: 0 | G92: 0 | M92: 52 | N92: 0 | O92: 52 | P92: =+(O92/D92-1)*100 -> 0
A93: 2330411 | C93: 国有土地使用权出让金债务发行费用支出 | D93: 52 | E93: 52 | F93: 0 | G93: 0 | M93: 52 | N93: 0 | O93: 52 | P93: =+(O93/D93-1)*100 -> 0
C94: 基金预算支出合计 | D94: 243,800 | E94: =E21+E72+E83+E88+E90+E92 -> 243,200 | F94: 600 | G94: 25,895 | M94: =M21+M72+M83+M88+M90+M92 -> 269,095 | N94: 600 | O94: 269,695 | P94: =+(O94/D94-1)*100 -> 11

Sheet 本级基金预算支出项目（附表八）
A1: 附表八
A2: 2018年本级政府性基金支出项目计划调整表
J3: 单位：万元
A4: 序号 | B4: 归口股室 | C4: 项目单位 | D4: 项目名称 | E4: 第三次 预算调整 | F4: 截止至 10月底下达数 | G4: 11-12月 预计下达数 | H4: 第四次 预算调整 | I4: 变动数 | J4: 备注 | K4: 项目分类 | L4: 资金来源 | M4: 功能分类科目
A5: 1 | B5: 综合股（土地基金） | C5: 土储中心 | D5: 新城南滨片区统征地开发成本 | E5: 98945.53 | F5: 98945.53 | H5: 98945.53 | I5: =H5-E5 -> 0.00 | K5: 滨海新城 | L5: 土地基金 | M5: 2121001、2120802
A6: 中信项目小计 | E6: 98945.53 | F6: 98945.53 | G6: 0.00 | H6: 98945.53 | I6: 0.00
A7: 2 | B7: 社保股 | C7: 人社局 | D7: 被征地农民养老保障金 | E7: 139.00 | F7: 139.00 | H7: 139.00 | I7: 0.00 | K7: 征地收储 | L7: 土地基金 | M7: 2120805：补助被征地农民支出
A8: 3 | B8: 综合股（土地基金） | C8: 粮食局 | D8: 河浦粮库建设项目征地款 | E8: 478.09 | F8: 478.09 | H8: 478.09 | I8: 0.00 | J8: 汕濠府办财函【2018】83号，被征地农民养老保障资金262.8万已由土储在部门资金专户中先予安排 | K8: 征地收储 | L8: 土地基金 | M8: 2120801、2120805
A9: 4 | B9: 综合股（土地基金） | C9: 粮食局 | D9: 划还金源公司汕粮实业公司项目地价款 | G9: 2225.00 | H9: 2225.00 | I9: 2225.00 | J9: 广东汕粮实业投资有限公司58.532亩,每亩38万元划拨用地款（原市统征地） | K9: 征地收储 | L9: 土地基金 | M9: 2120801：征地和拆迁补偿支出
A10: 5 | B10: 综合股（土地基金） | C10: 达濠街道 | D10: 机械式公共停车楼前期拆迁及有关费用 | E10: 45.21 | F10: 45.21 | H10: 45.21 | I10: 0.00 | J10: 项目完成 | K10: 征地收储 | L10: 土地基金 | M10: 2120801：征地和拆迁补偿支出
A11: 6 | B11: 综合股（土地基金） | C11: 河浦街道 | D11: 河浦大道退耕征地补偿 | E11: 256.00 | F11: 255.43 | H11: 255.43 | I11: -0.57 | J11: 项目完成，余额调减 | K11: 征地收储 | L11: 土地基金 | M11: 2120801：征地和拆迁补偿支出
A12: 7 | B12: 综合股（土地基金） | C12: 玉新街道 | D12: 河浦大道退耕征地补偿 | E12: 70.00 | F12: 69.77 | H12: 69.77 | I12: -0.23 | J12: 项目完成，余额调减 | K12: 征地收储 | L12: 土地基金 | M12: 2120801：征地和拆迁补偿支出
A13: 8 | B13: 综合股（土地基金） | C13: 滨海街道 | D13: 河浦大道退耕征地补偿 | E13: 135.00 | F13: 134.27 | H13: 134.27 | I13: -0.73 | J13: 项目完成，余额调减 | K13: 征地收储 | L13: 土地基金 | M13: 2120801：征地和拆迁补偿支出
A14: 9 | B14: 综合股（土地基金） | C14: 滨海街道 | D14: 五一社区深汕高速河浦出入口征地项目历史征地欠款 | E14: 80.00 | F14: 80.00 | H14: 80.00 | I14: 0.00 | J14: 汕濠府办财函【2018】12号，已先从预留调剂支出 | K14: 征地收储 | L14: 土地基金 | M14: 2120801：征地和拆迁补偿支出
A15: 10 | B15: 综合股（土地基金） | C15: 广澳街道 | D15: 上海电气风电汕头基地项目用地范围内水池进行紧急抽水及开展青苗摸查和协调相关工作 | E15: 28.00 | F15: 28.00 | H15: 28.00 | I15: 0.00 | J15: 汕濠府办财函【2018】15号，已先从预留调剂支出 | K15: 征地收储 | L15: 土地基金 | M15: 2120801：征地和拆迁补偿支出
A16: 11 | B16: 综合股（土地基金） | C16: 广澳街道 | D16: 上海电气风电汕头基地项目用地启动仪式场地平整工程 | E16: 89.16 | F16: 89.16 | H16: 89.16 | I16: 0.00 | J16: 汕濠府办财函【2018】45号，已先从预留调剂支出 | K16: 征地收储 | L16: 土地基金 | M16: 2120802：土地开发支出
A17: 12 | B17: 综合股（土地基金） | C17: 土储中心 | D17: 倒地木 | E17: 66.60 | F17: 66.60 | G17: 0.00 | H17: 66.60 | I17: 0.00 | J17: 失地农民养老保障金66.6万 | K17: 征地收储 | L17: 土地基金 | M17: 2120805：补助被征地农民支出
A18: 13 | B18: 综合股（土地基金） | C18: 土储中心 | D18: 滨海工业园区 | E18: 60.00 | H18: 0.00 | I18: -60.00 | J18: 耕地占用税59.645万 | K18: 征地收储 | L18: 土地基金 | M18: 2120802：土地开发支出
A19: 14 | B19: 综合股（土地基金） | C19: 土储中心 | D19: 雨伞塭二期 | E19: 0.84 | F19: 0.84 | H19: 0.84 | I19: 0.00 | J19: 耕地占用税 | K19: 征地收储 | L19: 土地基金 | M19: 2120802：土地开发支出
A20: 15 | B20: 综合股（土地基金） | C20: 土储中心 | D20: 汕大附属项目 | E20: 353.54 | F20: 353.54 | G20: 0.00 | H20: 353.54 | I20: 0.00 | J20: 耕地占用税、征地协调费 | K20: 征地收储 | L20: 土地基金 | M20: 2120802：土地开发支出
A21: 16 | B21: 综合股（土地基金） | C21: 土储中心 | D21: 河玉路项目 | E21: 22.01 | H21: 0.00 | I21: -22.01 | J21: 耕地占用税22.01万 | K21: 征地收储 | L21: 土地基金 | M21: 2120802：土地开发支出
A22: 17 | B22: 综合股（土地基金） | C22: 土储中心 | D22: 青洲盐场用地收储项目（70.0915亩） | E22: 260.31 | F22: 260.31 | G22: 0.00 | H22: 260.31 | I22: 0.00 | J22: 项目完成，余额调减 | K22: 征地收储 | L22: 土地基金 | M22: 2120802：土地开发支出
A23: 18 | B23: 综合股（土地基金） | C23: 土储中心 | D23: 青洲盐场用地收储项目（300亩） | E23: 1260.00 | F23: 1260.00 | H23: 1260.00 | I23: 0.00 | J23: 收储300亩共2760万元，以前年度已付1500万元 | K23: 征地收储 | L23: 土地基金 | M23: 2120801：征地和拆迁补偿支出
A24: 19 | B24: 综合股（土地基金） | C24: 土储中心 | D24: 下衙养老福利中心项目 | E24: 115.00 | G24: 115.00 | H24: 115.00 | I24: 0.00 | J24: ①征地预存款708.5106；②社保114.3；③补充协议283.8504；④征地协调费7.9416；⑤清障奖励金15.8832；⑥利息69.375，共1115万元，其中1000万元债券安排 | K24: 征地收储 | L24: 土地基金 | M24: 2120805：补助被征地农民支出
A25: 20 | B25: 综合股（土地基金） | C25: 土储中心 | D25: 河浦中学北侧用地项目 | E25: 122.80 | H25: 0.00 | I25: -122.80 | J25: 项目特殊，正在请示区领导 | K25: 征地收储 | L25: 土地基金 | M25: 2120801：征地和拆迁补偿支出
A26: 21 | B26: 综合股（土地基金） | C26: 土储中心 | D26: 华南师范大学附属濠江实验学校项目征地资金 | E26: 50.17 | F26: 50.17 | G26: 0.00 | H26: 50.17 | I26: 0.00 | J26: 债券安排3200万，已先从预留调剂支出尾欠部分。汕濠府办财函【2018】7、91、122、185号 | K26: 征地收储 | L26: 土地基金 | M26: 2120801：征地和拆迁补偿支出
A27: 22 | B27: 综合股（土地基金） | C27: 土储中心 | D27: 产业园区河浦统征地项目（2013年度第十批）耕地占用税 | E27: 62.67 | F27: 62.67 | H27: 62.67 | I27: 0.00 | J27: 汕濠府办财函【2018】166号，已先从预留调剂支出 | K27: 征地收储 | L27: 土地基金 | M27: 2120802：土地开发支出
A28: 23 | B28: 综合股（土地基金） | C28: 土储中心 | D28: 河浦工业片区（联兴公司）收购项目 | E28: 2.04 | F28: 2.04 | H28: 2.04 | I28: 0.00 | J28: 收购协议4502.0408万元，其中债券安排4500万 | K28: 征地收储 | L28: 土地基金 | M28: 2120801：征地和拆迁补偿支出
A29: 24 | B29: 综合股（土地基金） | C29: 土储中心 | D29: 应山庵墓园二期征地项目森林植被费 | E29: 69.00 | F29: 68.93 | H29: 68.93 | I29: -0.07 | J29: 森林植被恢复费252.776万元，使用已下达结余资金183.848346万元，仍需68.927654万元 | K29: 征地收储 | L29: 土地基金 | M29: 2120802：土地开发支出
A30: 25 | B30: 综合股（土地基金） | C30: 土储中心 | D30: 汕头市广澳物流园E01地块内储备用地平整围护工程（广澳物流园李丽娟平整项目） | E30: 90.00 | G30: 13.20 | H30: 13.20 | I30: -76.80 | J30: 工程建安费约98万元、测量、设计、监理等其它前期费用约32万元；地上附着物拆迁补偿费140万元。债券已安排180万。 | K30: 征地收储 | L30: 土地基金 | M30: 2120802：土地开发支出
A31: 26 | B31: 综合股（土地基金） | C31: 土储中心 | D31: 达濠客运站用地收储项目 | E31: 900.00 | H31: 0.00 | I31: -900.00 | J31: 已入政府工作报告 | K31: 征地收储 | L31: 土地基金 | M31: 2120801：征地和拆迁补偿支出
A32: 27 | B32: 综合股（土地基金） | C32: 土储中心 | D32: 河浦工业区A03-4地块征地补偿款 | E32: 360.00 | G32: 347.00 | H32: 347.00 | I32: -13.00 | J32: 汕濠府办财函366号确定河浦工业区A03-4地块25.1亩按2018年征地标准补偿，其中历史征地补偿款85.34万元。（原得乐公司地块） | K32: 征地收储 | L32: 土地基金 | M32: 2120801：征地和拆迁补偿支出
A33: 28 | B33: 综合股（土地基金） | C33: 土储中心 | D33: 河浦中心区交通设施用地收储项目（河浦客运站） | E33: 170.00 | H33: 0.00 | I33: -170.00 | J33: 约5亩，①一次性包干约15.5万元/亩，计77.5万元；②社保约5万元/亩，计25万元；③耕地占用税3.3333万元/亩，计16.7万元；④划留资金9万/亩，计6.75万元。 | K33: 征地收储 | L33: 土地基金 | M33: 2120801、2120802、2120805
A34: 29 | B34: 综合股（土地基金） | C34: 土储中心 | D34: 巨峰景区入口前区A15-A16地块收购 | E34: 2651.55 | G34: 2651.55 | H34: 2651.55 | I34: 0.00 | J34: 收购协议3511.548万元(25.446亩，138万元/亩），其中债券资金860万元，计划2651.548万元 | K34: 征地收储 | L34: 土地基金 | M34: 2120801：征地和拆迁补偿支出
A35: 30 | B35: 综合股（土地基金） | C35: 南山湾办 | D35: 台商投资区道路坟墓补偿款 | G35: 25.82 | H35: 25.82 | I35: 25.82 | K35: 征地收储 | L35: 土地基金 | M35: 2120801：征地和拆迁补偿支出
A36: 31 | B36: 综合股（土地基金） | C36: 南山湾办 | D36: 台商投资区C01-3和C01-4地块土地平整清障补偿相关费用 | G36: 35.50 | H36: 35.50 | I36: 35.50 | J36: 区政府工作会议纪要第46期 | K36: 征地收储 | L36: 土地基金 | M36: 2120802：土地开发支出
A37: 32 | B37: 综合股（土地基金） | C37: 南山湾办 | D37: 河浦工业区A04-1地块征地补偿款 | G37: 627.00 | H37: 627.00 | I37: 627.00 | J37: 汕濠府办财函366号确定河浦工业区A04-1地块45.411亩按2018年征地标准补偿，其中历史征地补偿款154.3974万元。 | K37: 征地收储 | L37: 土地基金 | M37: 2120801：征地和拆迁补偿支出
A38: 33 | B38: 综合股（土地基金） | C38: 残联 | D38: 区残疾人康复中心项目用地划拨地价款 | E38: 52.85 | F38: 52.85 | H38: 52.85 | I38: 0.00 | J38: 汕濠府办财函【2018】128号 | K38: 征地收储 | L38: 土地基金 | M38: 2120899：其他国有土地使用权出让收入安排的支出
A39: 34 | B39: 综合股（土地基金） | C39: 教育局 | D39: 三河中学用地确权地价款 | E39: 360.53 | F39: 360.53 | H39: 360.53 | I39: 0.00 | J39: 汕濠府办财函【2018】129号 | K39: 征地收储 | L39: 土地基金 | M39: 2120899：其他国有土地使用权出让收入安排的支出
A40: 征地收储项目小计 | E40: =SUM(E7:E39) -> 8350.37 | F40: 3857.41 | G40: 6040.07 | H40: 9897.48 | I40: 1547.10
A41: 35 | B41: 工贸股 | C41: 工贸股代编 | D41: 预留企业扶持资金 | E41: 2751.00 | G41: 0.00 | H41: 0.00 | I41: -2751.00 | K41: 园区投入 | L41: 土地基金 | M41: 2120899：其他国有土地使用权出让收入安排的支出
A42: 36 | B42: 综合股（土地基金） | C42: 土储中心 | D42: 广澳物流园B02地块内（地块二）土地平整工程 | E42: 9.00 | F42: 3.77 | G42: 0.00 | H42: 3.77 | I42: -5.23 | J42: 工程建安费81.638222万元，监理费用2.8979万元。其中80万为债券支出。 | K42: 园区投入 | L42: 土地基金 | M42: 2120802：土地开发支出
A43: 37 | B43: 综合股（土地基金） | C43: 土储中心 | D43: 广澳物流园B01地块单独实施平整工程 | E43: 704.00 | F43: 476.21 | G43: 0.00 | H43: 476.21 | I43: -227.79 | J43: 工程中标价782.761519万元，监理费用19.68万元，17年已拨付118.646991万元。根据工程进度调减 | K43: 园区投入 | L43: 土地基金 | M43: 2120802：土地开发支出
A44: 38 | B44: 综合股（土地基金） | C44: 粤鑫公司 | D44: 广澳物流园道路建设 | E44: 700.00 | F44: 60.90 | G44: 47.00 | H44: 107.90 | I44: -592.10 | J44: 根据工程进度调减 | K44: 园区投入 | L44: 土地基金 | M44: 2120802：土地开发支出
A45: 39 | B45: 综合股（土地基金） | C45: 粤鑫公司 | D45: PC厂三条路 | E45: 500.00 | G45: 359.00 | H45: 359.00 | I45: -141.00 | J45: 已安排1000万债券支出，项目需359万，按进度拨付 | K45: 园区投入 | L45: 土地基金 | M45: 2120802：土地开发支出
A46: 40 | B46: 综合股（土地基金） | C46: 粤鑫公司 | D46: 河渡村电力线路迁改（疏港大道10kv澳柏线电力通道） | E46: 120.00 | F46: 31.27 | G46: 50.00 | H46: 81.27 | I46: -38.73 | J46: 汕濠法规【2018】99号文，项目变更为疏港大道10kv澳柏线电力通道，按进度拨付 | K46: 园区投入 | L46: 土地基金 | M46: 2120801：征地和拆迁补偿支出
A47: 41 | B47: 综合股（土地基金） | C47: 粤鑫公司 | D47: 广澳物流园自来水工程 | E47: 50.00 | G47: 50.00 | H47: 50.00 | I47: 0.00 | K47: 园区投入 | L47: 土地基金 | M47: 2120802：土地开发支出
A48: 42 | B48: 综合股（土地基金） | C48: 粤鑫公司 | D48: 广澳物流园电力通道 | E48: 410.00 | F48: 311.99 | G48: 40.00 | H48: 351.99 | I48: -58.01 | J48: 根据工程进度调减 | K48: 园区投入 | L48: 土地基金 | M48: 2120802：土地开发支出
A49: 43 | B49: 综合股（土地基金） | C49: 粤鑫公司 | D49: 滨海工业区电力通道 | E49: 165.00 | F49: 124.32 | G49: 20.00 | H49: 144.32 | I49: -20.68 | J49: 根据工程进度调减 | K49: 园区投入 | L49: 土地基金 | M49: 2120802：土地开发支出
A50: 44 | B50: 综合股（土地基金） | C50: 粤鑫公司 | D50: 滨海工业区道路建设 | E50: 124.00 | F50: 8.80 | G50: 174.00 | H50: 182.80 | I50: 58.80 | J50: 根据工程进度调增 | K50: 园区投入 | L50: 土地基金 | M50: 2120802：土地开发支出
A51: 45 | B51: 综合股（土地基金） | C51: 粤鑫公司 | D51: 滨海工业区经二路 | E51: 160.00 | F51: 151.43 | G51: 140.00 | H51: 291.43 | I51: 131.43 | J51: 根据工程进度调增 | K51: 园区投入 | L51: 土地基金 | M51: 2120802：土地开发支出
A52: 46 | B52: 综合股（土地基金） | C52: 粤鑫公司 | D52: 滨海工业区自来水工程 | E52: 50.00 | G52: 50.00 | H52: 50.00 | I52: 0.00 | K52: 园区投入 | L52: 土地基金 | M52: 2120802：土地开发支出
A53: 47 | B53: 综合股（土地基金） | C53: 南山湾办 | D53: 台商投资区后续工程 | E53: 200.00 | H53: 0.00 | I53: -200.00 | J53: 今年不考虑安排 | K53: 园区投入 | L53: 土地基金 | M53: 2120802：土地开发支出
A54: 48 | B54: 工贸股 | C54: 南山湾办 | D54: 南山湾产业园（一期）及连接主干道工程项目款项和银行贷款利息 | E54: 1000.00 | F54: 1000.00 | H54: 1000.00 | I54: 0.00 | K54: 园区投入 | L54: 土地基金 | M54: 2120802：土地开发支出
A55: 49 | B55: 工贸股 | C55: 南山湾办 | D55: 南山湾产业园（一期）及连接主干道工程项目款项和银行贷款利息 | E55: 750.00 | F55: 750.00 | G55: 724.58 | H55: 1474.58 | I55: 724.58 | J55: 固定资产贷款合同（银行贷款6.5亿的第三、四季度利息）1474.58万 | K55: 园区投入 | L55: 土地基金 | M55: 2120802：土地开发支出
A56: 50 | B56: 工贸股 | C56: 南山湾办 | D56: 南山湾产业园基础设施及连接主干道工程项目（一期）一园四干道达濠市政建设有限公司工程进度款 | G56: 15000.00 | H56: 15000.00 | I56: 15000.00 | K56: 园区投入 | L56: 土地基金 | M56: 2120802：土地开发支出
A57: 51 | B57: 综合股（土地基金） | C57: 土储中心 | D57: 疏港大道南侧用地项目（平整） | E57: 30.00 | H57: 0.00 | I57: -30.00 | J57: 200万元平整，30万元进村道路建设。另债券安排200万 | K57: 园区投入 | L57: 土地基金 | M57: 2120802：土地开发支出
A58: 52 | B58: 综合股（土地基金） | C58: 粤鑫公司 | D58: 广澳污水干管 | E58: 600.00 | H58: 0.00 | I58: -600.00 | J58: 并入全区污水管网建设 | K58: 园区投入 | L58: 土地基金 | M58: 2120802：土地开发支出
A59: 园区投入项目小计 | E59: =SUM(E41:E58) -> 8323.00 | F59: 2918.68 | G59: 16654.58 | H59: 19573.26 | I59: 11250.26
A60: 53 | B60: 经建股 | C60: 政府办 | D60: 区档案馆购置 | E60: 2163.16 | F60: 753.05 | G60: 1410.11 | H60: 2163.16 | I60: 0.00 | J60: 1、区档案馆购置及前期费用预算2448万元，实际档案馆购置中标价为23501769.30元、设计费38万元、招标代理费10万元，调减差额498230.70元；2、今年预计支出档案馆购置前两期费用21151592元，调减第三期费用2350177.30元，合计共调减2848408元。 | K60: 基建 | L60: 土地基金 | M60: 2120803：城市建设支出
A61: 54 | B61: 经建股 | C61: 政府办 | D61: 区委（区政府）大院内2号楼安装电梯及附属用房维修项目 | E61: 100.00 | F61: 92.42 | G61: 0.00 | H61: 92.42 | I61: -7.58 | J61: 余额收回 | K61: 基建 | L61: 土地基金 | M61: 2120899：其他国有土地使用权出让收入安排的支出
A62: 55 | B62: 经建股 | C62: 政府办 | D62: 区委（区政府）大院西侧停车楼、职工食堂附属用房维修改造项目 | E62: 100.00 | G62: 100.00 | H62: 100.00 | I62: 0.00 | K62: 基建 | L62: 土地基金 | M62: 2120899：其他国有土地使用权出让收入安排的支出
A63: 56 | B63: 经建股 | C63: 宣传部 | D63: 文化活动中心后期配套资金 | E63: 873.15 | F63: 638.52 | G63: 0.00 | H63: 638.52 | I63: -234.63 | K63: 基建 | L63: 土地基金 | M63: 2120803：城市建设支出
A64: 57 | B64: 经建股 | C64: 宣传部 | D64: 英领事署旧址修缮、保育活化费用 | E64: 400.00 | H64: 0.00 | I64: -400.00 | K64: 基建 | L64: 土地基金 | M64: 2120803：城市建设支出
A65: 58 | B65: 经建股 | C65: 宣传部 | D65: 区综合文化活动中心与地税局之间道路和墙体工程建设 | E65: 72.00 | G65: 72.00 | H65: 72.00 | I65: 0.00 | J65: 汕濠府办财函【2018】192号（项目建设资金） | K65: 基建 | L65: 土地基金 | M65: 2120803：城市建设支出
A66: 59 | B66: 经建股 | C66: 粮食局 | D66: 河浦粮库建设项目 | E66: 494.00 | H66: 0.00 | I66: -494.00 | K66: 基建 | L66: 土地基金 | M66: 2120803：城市建设支出
A67: 60 | B67: 经建股 | C67: 粮食局 | D67: 珠浦新粮仓建设专项资金 | E67: 280.15 | H67: 0.00 | I67: -280.15 | K67: 基建 | L67: 土地基金 | M67: 2120803：城市建设支出
A68: 61 | B68: 经建股 | C68: 教育局 | D68: 广澳中学、河北小学、教育发展中心、达濠第三中学前期、补偿、工程款 | E68: 1100.00 | F68: 100.87 | G68: 51.00 | H68: 151.87 | I68: -948.13 | J68: 调整支出预算项目名称为“广澳中学、河北小学、教育发展中心、青篮小学、河浦中学学生宿舍楼、达濠第三中学前期、补偿、工程款” | K68: 基建 | L68: 土地基金 | M68: 2120803：城市建设支出
A69: 62 | B69: 综合股（土地基金） | C69: 教育局 | D69: 华师大前期补偿、工程款费用 | E69: 3299.51 | G69: 881.00 | H69: 881.00 | I69: =H69-E69 -> -2418.51 | J69: 初步测算华师附中项目城市基础设施配套及人防工程异地建设费用1900万，其中700.49万在教育基础设施项目列支挂存资金中安排，459万用其他教育费附加、其他普通教育支出安排 | K69: 基建 | L69: 土地基金 | M69: 2120803：城市建设支出
A70: 63 | B70: 经建股 | C70: 教育局 | D70: 预留调出，青篮小学扩建教学综合楼项目 | E70: 80.00 | F70: 36.89 | G70: 0.00 | H70: 36.89 | I70: -43.11 | J70: 汕濠府办财函【2017】117号 | K70: 基建 | L70: 土地基金 | M70: 2120803：城市建设支出
A71: 64 | B71: 经建股 | C71: 城建局 | D71: 预留调出，南滨路石林大桥检测费用 | E71: 25.00 | F71: 25.00 | G71: 0.00 | H71: 25.00 | I71: 0.00 | J71: 汕濠府办财函【2018】113号 | K71: 基建 | L71: 土地基金 | M71: 2120803：城市建设支出
A72: 65 | B72: 经建股 | C72: 城建局 | D72: 预留调出，安海路路灯拆卸项目 | E72: 7.07 | F72: 7.07 | H72: 7.07 | I72: 0.00 | J72: 汕濠府办财函【2018】72号 | K72: 基建 | L72: 土地基金 | M72: 2120803：城市建设支出
A73: 66 | B73: 经建股 | C73: 城建局 | D73: 双泉公园及体育馆建设项目 | E73: 3500.00 | F73: 1487.13 | G73: 2000.00 | H73: 3487.13 | I73: -12.87 | J73: 预计市补助资金1000万元 | K73: 基建 | L73: 土地基金 | M73: 2120803：城市建设支出
A74: 67 | B74: 经建股 | C74: 城建局 | D74: 磊广路、达南路升级改造工程 | E74: 3.00 | F74: 3.00 | H74: 3.00 | I74: 0.00 | J74: 4500万改为债券资金安排 | K74: 基建 | L74: 土地基金 | M74: 2120803：城市建设支出
A75: 68 | B75: 经建股 | C75: 城建局 | D75: 濠江区武装部营院改造工程 | E75: 599.13 | F75: 282.77 | G75: 316.36 | H75: 599.13 | I75: 0.00 | K75: 基建 | L75: 土地基金 | M75: 2120803：城市建设支出
A76: 69 | B76: 经建股 | C76: 城建局 | D76: 澳头及河浦高速路口绿化专项资金 | E76: 100.00 | H76: 0.00 | I76: -100.00 | J76: 1400万改为17年债券资金安排 | K76: 基建 | L76: 土地基金 | M76: 2120803：城市建设支出
A77: 70 | B77: 经建股 | C77: 城建局 | D77: 河玉路西段升级改造（一期）工程 | E77: 649.24 | F77: 649.24 | H77: 649.24 | I77: 0.00 | J77: 该项目结算审核金额为22924699.11元，我局已下达16631120.50元，剩余结算尾款6293578.61元。区城建环保局要求核拨的6492374.61元中，还包括勘察审图费1430.00元、预算审核费184215.00元和招标代理费13151.00元三笔未纳入结算审核的费用，一并列入结算尾款。（汕濠财函【2018】628号）） | K77: 基建 | L77: 土地基金 | M77: 2120803：城市建设支出
A78: 71 | B78: 经建股 | C78: 城建局 | D78: 礐石领事馆石板路 | E78: 600.00 | G78: 600.00 | H78: 600.00 | I78: 0.00 | J78: 未报送资料 | K78: 基建 | L78: 土地基金 | M78: 2120803：城市建设支出
A79: 72 | B79: 综合股（土地基金） | C79: 城建局 | D79: 全区污水管网建设项目前期费用 | E79: 500.00 | F79: 138.06 | G79: 361.95 | H79: 500.00 | I79: 0.00 | J79: 污水管网建设PPP项目立项、咨询等费用。汕濠府办财函【2018】277号安排老项目费用 | K79: 基建 | L79: 土地基金 | M79: 2120803：城市建设支出
A80: 73 | B80: 综合股（土地基金） | C80: 财政局 | D80: 全区污水管网及东湖片区新型城镇化建设PPP项目技术审查咨询费用 | E80: 50.00 | F80: 45.00 | G80: 5.00 | H80: 50.00 | I80: 0.00 | J80: 汕濠府办财函【2018】167号 | K80: 基建 | L80: 土地基金 | M80: 2120803：城市建设支出
A81: 74 | B81: 综合股（土地基金） | C81: 财政局 | D81: 茂洲片区新型城镇化综合开发PPP项目财承调整编制费用 | E81: 25.00 | F81: 25.00 | H81: 25.00 | I81: 0.00 | J81: 汕濠府办财函【2018】96号 | K81: 基建 | L81: 土地基金 | M81: 2120803：城市建设支出
A82: 75 | B82: 经建股 | C82: 执法安监局 | D82: 治超点卸货场新建 | E82: 100.00 | G82: 0.00 | H82: 0.00 | I82: -100.00 | K82: 基建 | L82: 土地基金 | M82: 2120803：城市建设支出
A83: 76 | B83: 经建股 | C83: 政法委 | D83: 政法信息网工程建设经费 | E83: 80.00 | F83: 22.77 | G83: 53.13 | H83: 75.90 | I83: -4.10 | K83: 基建 | L83: 土地基金 | M83: 2120803：城市建设支出
A84: 77 | B84: 经建股 | C84: 区人民医院 | D84: 濠江区人民医院改扩建工程 | E84: 100.00 | H84: 0.00 | I84: -100.00 | K84: 基建 | L84: 土地基金 | M84: 2120803：城市建设支出
A85: 78 | B85: 经建股 | C85: 经信局 | D85: 濠江大桥及引道防撞栏实体标记工程 | E85: 5.95 | F85: 5.95 | G85: 0.00 | H85: 5.95 | I85: 0.00 | J85: 汕濠府办财函【2018】156号 | K85: 基建 | L85: 土地基金 | M85: 2120803：城市建设支出
A86: 79 | B86: 经建股 | C86: 海洋渔业局 | D86: 达濠一级渔港建设项目 | E86: 1000.00 | G86: 600.00 | H86: 600.00 | I86: -400.00 | J86: 汕濠府办财函【2018】176号（安全文明施工措施费） | K86: 基建 | L86: 土地基金 | M86: 2120803：城市建设支出
A87: 80 | B87: 经建股 | C87: 区人民医院 | D87: 区人民医院改扩建工程造价审核结算款 | G87: 886.36 | H87: 886.36 | I87: 886.36 | K87: 基建 | L87: 土地基金 | M87: 2120803：城市建设支出
A88: 81 | B88: 经建股 | C88: 达濠街道 | D88: 智慧型机械式公共停车楼出入通道建设 | E88: 60.11 | H88: 0.00 | I88: -60.11 | K88: 基建 | L88: 土地基金 | M88: 2120803：城市建设支出
A89: 82 | B89: 综合股（土地基金） | C89: 礐石街道 | D89: 礐石片区山体亮化二期工程项目前期费用 | E89: 300.00 | F89: 176.57 | G89: 90.00 | H89: 266.57 | I89: -33.43 | J89: 汕濠府办财函【2018】66号 | K89: 基建 | L89: 土地基金 | M89: 2120803、2120899
A90: 83 | B90: 经建股 | C90: 滨海街道 | D90: 滨海中学建设历史债务 | G90: 155.70 | H90: 155.70 | I90: 155.70 | K90: 基建 | L90: 土地基金 | M90: 2120803：城市建设支出
A91: 84 | B91: 经建股 | C91: 经建股代编 | D91: 预留建设前期工作费用等资金 | E91: 835.13 | G91: 230.00 | H91: 230.00 | I91: -605.13 | J91: 年初预留1000万，已调出部分 | K91: 基建 | L91: 土地基金 | M91: 2120803：城市建设支出
A92: 85 | B92: 经建股 | C92: 经建股代编 | D92: 预留调出，智慧型机械式公共停车楼新建630KVA箱变工程 | E92: 52.80 | F92: 52.80 | H92: 52.80 | I92: 0.00 | K92: 基建 | L92: 土地基金 | M92: 2120803：城市建设支出
A93: 86 | B93: 经建股 | C93: 城建环保局 | D93: 濠江区东湖东路和周边基础设施及东湖西路污水管网建设项目 | G93: =15000 -> 15000.00 | H93: =15000-4150 -> 10850.00 | I93: 10850.00 | K93: 基建 | L93: 土地基金 | M93: 2120803：城市建设支出
A94: 87 | B94: 综合股（土地基金） | C94: 礐石街道 | D94: 礐石片区山体亮化二期工程项目 | G94: 4100.00 | H94: 4100.00 | I94: 4100.00 | K94: 基建 | L94: 土地基金 | M94: 2120803：城市建设支出
A95: 基建项目小计 | E95: =SUM(E60:E94) -> 17554.40 | F95: 4542.12 | G95: 26912.59 | H95: 27304.71 | I95: 9750.32
A96: 88 | B96: 国资股 | C96: 粤鑫公司 | D96: 三路一桥项目2017年预计借款利息 | E96: 268.13 | H96: 0.00 | I96: -268.13 | K96: 其他 | L96: 土地基金 | M96: 2120899：其他国有土地使用权出让收入安排的支出
A97: 89 | B97: 国资股 | C97: 粤鑫公司 | D97: 三路一桥项目2018年预计借款利息 | E97: 750.00 | H97: 0.00 | I97: -750.00 | K97: 其他 | L97: 土地基金 | M97: 2120899：其他国有土地使用权出让收入安排的支出
A98: 90 | B98: 国资股 | C98: 濠星公司 | D98: 五南沟项目2017年借款利息 | E98: 13.27 | H98: 0.00 | I98: -13.27 | K98: 其他 | L98: 土地基金 | M98: 2120899：其他国有土地使用权出让收入安排的支出
A99: 91 | B99: 国资股 | C99: 濠星公司 | D99: 五南沟项目2018年预计借款利息 | E99: 34.00 | H99: 0.00 | I99: -34.00 | K99: 其他 | L99: 土地基金 | M99: 2120899：其他国有土地使用权出让收入安排的支出
A100: 92 | B100: 国资股 | C100: 濠星公司 | D100: 华侨中学项目2017年借款利息 | E100: 26.54 | H100: 0.00 | I100: -26.54 | K100: 其他 | L100: 土地基金 | M100: 2120899：其他国有土地使用权出让收入安排的支出
A101: 93 | B101: 国资股 | C101: 濠星公司 | D101: 华侨中学项目2018年预计借款利息 | E101: 26.54 | H101: 0.00 | I101: -26.54 | K101: 其他 | L101: 土地基金 | M101: 2120899：其他国有土地使用权出让收入安排的支出
A102: 94 | B102: 国资股 | C102: 濠星公司 | D102: 人民医院项目2017年借款利息 | E102: 13.27 | H102: 0.00 | I102: -13.27 | K102: 其他 | L102: 土地基金 | M102: 2120899：其他国有土地使用权出让收入安排的支出
A103: 95 | B103: 国资股 | C103: 濠星公司 | D103: 人民医院项目2018年预计借款利息 | E103: 40.00 | H103: 0.00 | I103: -40.00 | K103: 其他 | L103: 土地基金 | M103: 2120899：其他国有土地使用权出让收入安排的支出
A104: 96 | B104: 国资股 | C104: 濠星公司 | D104: 人民医院项目借款本金 | E104: 136.00 | H104: 0.00 | I104: -136.00 | K104: 其他 | L104: 土地基金 | M104: 2120899：其他国有土地使用权出让收入安排的支出
A105: 97 | B105: 国资股 | C105: 濠发公司 | D105: 一路一桥项目2017年借款利息 | E105: 208.25 | F105: 208.25 | H105: 208.25 | I105: 0.00 | K105: 其他 | L105: 土地基金 | M105: 2120899：其他国有土地使用权出让收入安排的支出
A106: 98 | B106: 国资股 | C106: 濠发公司 | D106: 一路一桥项目2018年预计借款利息 | E106: 1285.00 | F106: 522.26 | H106: 522.26 | I106: -762.74 | K106: 其他 | L106: 土地基金 | M106: 2120899：其他国有土地使用权出让收入安排的支出
A107: 99 | B107: 国资股 | C107: 濠新公司 | D107: 濠鑫公司注册资金 | E107: 50.00 | H107: 0.00 | I107: -50.00 | K107: 其他 | L107: 土地基金 | M107: 2120899：其他国有土地使用权出让收入安排的支出
A108: 100 | B108: 国资股 | C108: 行政服务中心 | D108: 业务用房购置 | E108: 3850.68 | F108: 2313.91 | G108: 1155.20 | H108: 3469.11 | I108: -381.57 | K108: 其他 | L108: 土地基金 | M108: 2120899：其他国有土地使用权出让收入安排的支出
A109: 101 | B109: 国资股 | C109: 城建局 | D109: 茂洲片区新型城镇化综合开发PPP项目股权投资 | E109: 1423.00 | F109: 500.00 | G109: 923.00 | H109: 1423.00 | I109: 0.00 | K109: 其他 | L109: 土地基金 | M109: 2120899：其他国有土地使用权出让收入安排的支出
A110: 102 | B110: 国资股 | C110: 国资股代编 | D110: 国土租用办公用房资金 | E110: 1449.32 | H110: 0.00 | I110: -1449.32 | K110: 其他 | L110: 土地基金 | M110: 2120899：其他国有土地使用权出让收入安排的支出
A111: 103 | B111: 国资股 | C111: 国资股代编 | D111: 2018年预留项目资本金 | E111: 2500.00 | F111: 2500.00 | H111: 2500.00 | I111: 0.00 | K111: 其他 | L111: 土地基金 | M111: 2120899：其他国有土地使用权出让收入安排的支出
A112: 104 | B112: 国资股 | C112: 国资股代编 | D112: 汕头市濠江区城市建设投资集团有限公司注册资本金 | G112: 2900.00 | H112: 2900.00 | I112: 2900.00 | K112: 其他 | L112: 土地基金 | M112: 2120899：其他国有土地使用权出让收入安排的支出
A113: 国有资产投入项目小计 | E113: =SUM(E96:E112) -> 12074.00 | F113: 6044.42 | G113: 4978.20 | H113: 11022.62 | I113: -1051.38
A114: 105 | B114: 预算股 | C114: 预算股代编 | D114: 地方专项债券利息 | E114: 2793.29 | F114: 2793.29 | H114: 2793.29 | I114: 0.00 | J114: 余额调减 | K114: 其他 | L114: 土地基金 | M114: 2320411：国有土地使用权出让金债务付息支出
A115: 106 | B115: 预算股 | C115: 预算股代编 | D115: 2017年小公园开埠区保护和改造资金上解 | E115: 5109.00 | G115: 5109.00 | H115: 5109.00 | I115: 0.00 | J115: 汕市财预【2018】108号，上解 | K115: 其他 | L115: 土地基金 | M115: 2300402：上解支出
A116: 107 | B116: 预算股 | C116: 预算股代编 | D116: 地方专项债券利息手续费 | E116: 0.14 | F116: 0.14 | H116: 0.14 | I116: 0.00 | K116: 其他 | L116: 土地基金 | M116: 2330411：国有土地使用权出让金债务发行费用支出
A117: 108 | B117: 预算股 | C117: 预算股代编 | D117: 地方专项债券发行费 | E117: 52.40 | F117: 52.40 | H117: 52.40 | I117: 0.00 | K117: 其他 | L117: 土地基金 | M117: 2330411、2330431
A118: 109 | B118: 综合股 | C118: 房管所 | D118: 公房修缮 | E118: 19.80 | G118: 19.80 | H118: 19.80 | I118: 0.00 | K118: 其他 | L118: 土地基金 | M118: 2120811：公共租赁住房支出
A119: 110 | B119: 综合股 | C119: 房管所 | D119: 海马池保障房物业管理费 | E119: 6.60 | F119: 6.60 | H119: 6.60 | I119: 0.00 | K119: 其他 | L119: 土地基金 | M119: 2120811：公共租赁住房支出
A120: 111 | B120: 综合股 | C120: 房管所 | D120: 住房保障工作经费 | E120: 10.00 | F120: 10.00 | H120: 10.00 | I120: 0.00 | K120: 其他 | L120: 土地基金 | M120: 2120811：公共租赁住房支出
A121: 112 | B121: 综合股 | C121: 综合股代编 | D121: 预留公共租赁住房支出 | E121: 718.04 | G121: 0.00 | H121: 0.00 | I121: -718.04 | J121: 没有项目安排调减 | K121: 其他 | L121: 土地基金 | M121: 2120811：公共租赁住房支出
A122: 113 | B122: 综合股 | C122: 房管所 | D122: 濠江教师公寓物业管理费 | E122: 8.10 | F122: 8.10 | H122: 8.10 | I122: 0.00 | K122: 其他 | L122: 土地基金 | M122: 2120811：公共租赁住房支出
A123: 114 | B123: 综合股 | C123: 房管所 | D123: 保障性住房租金补贴 | E123: 20.13 | F123: 20.13 | H123: 20.13 | I123: 0.00 | K123: 其他 | L123: 土地基金 | M123: 2120811：公共租赁住房支出
A124: 115 | B124: 综合股（土地基金） | C124: 土储中心 | D124: 土地储备业务费补充土储人员与基本经费 | E124: 42.00 | F124: 32.00 | G124: 10.00 | H124: 42.00 | I124: 0.00 | K124: 其他 | L124: 土地基金 | M124: 2120806：土地出让业务支出
A125: 116 | B125: 综合股（土地基金） | C125: 土储中心 | D125: 其他土地储备业务经费支出 | E125: 20.00 | F125: 8.38 | H125: 8.38 | I125: -11.62 | K125: 其他 | L125: 土地基金 | M125: 2120806：土地出让业务支出
A126: 117 | B126: 综合股（土地基金） | C126: 土储中心 | D126: 储备用地巡查和管养支出 | E126: 20.00 | F126: 22.92 | G126: 0.00 | H126: 22.92 | I126: 2.92 | K126: 其他 | L126: 土地基金 | M126: 2120806：土地出让业务支出
A127: 118 | B127: 综合股（土地基金） | C127: 土储中心 | D127: 购买服务支出 | E127: 12.00 | H127: 0.00 | I127: -12.00 | K127: 其他 | L127: 土地基金 | M127: 2120806：土地出让业务支出
A128: 119 | B128: 综合股（土地基金） | C128: 土储中心 | D128: 后勤管理服务支出 | E128: 20.00 | G128: 8.00 | H128: 8.00 | I128: -12.00 | K128: 其他 | L128: 土地基金 | M128: 2120806：土地出让业务支出
A129: 120 | B129: 综合股（土地基金） | C129: 土储中心 | D129: 土地储备项目前期经费支出 | E129: 150.00 | F129: 31.05 | G129: 36.04 | H129: 67.09 | I129: -82.91 | K129: 其他 | L129: 土地基金 | M129: 2120806：土地出让业务支出
A130: 121 | B130: 综合股（土地基金） | C130: 国土局 | D130: 机关公共管理事务支出 | E130: 70.00 | F130: 59.00 | G130: 11.00 | H130: 70.00 | I130: 0.00 | K130: 其他 | L130: 土地基金 | M130: 2120806：土地出让业务支出
A131: 122 | B131: 综合股（土地基金） | C131: 国土局 | D131: 其他国土资源事务支出 | E131: 100.00 | F131: 82.20 | G131: 17.80 | H131: 100.00 | I131: 0.00 | K131: 其他 | L131: 土地基金 | M131: 2120806：土地出让业务支出
A132: 123 | B132: 综合股（土地基金） | C132: 国土局 | D132: 办公设备采购 | E132: 12.80 | F132: 3.33 | G132: 9.47 | H132: 12.80 | I132: 0.00 | K132: 其他 | L132: 土地基金 | M132: 2120806：土地出让业务支出
A133: 124 | B133: 综合股（土地基金） | C133: 国土局 | D133: 服务类采购 | E133: 32.00 | F133: 12.37 | G133: 19.63 | H133: 32.00 | I133: =H133-E133 -> 0.00 | K133: 其他 | L133: 土地基金 | M133: 2120806：土地出让业务支出
A134: 125 | B134: 综合股（土地基金） | C134: 国土局 | D134: 临聘人员经费 | E134: 27.00 | F134: 23.05 | G134: 3.95 | H134: 27.00 | I134: 0.00 | K134: 其他 | L134: 土地基金 | M134: 2120806：土地出让业务支出
A135: 126 | B135: 综合股（土地基金） | C135: 国土局 | D135: 6.25土地日宣传经费 | E135: 7.00 | F135: 7.00 | G135: 0.00 | H135: 7.00 | I135: 0.00 | K135: 其他 | L135: 土地基金 | M135: 2120806：土地出让业务支出
A136: 127 | B136: 综合股（土地基金） | C136: 国土局 | D136: 开展市、县矿山地质环境详细调查 | E136: 59.00 | F136: 54.00 | G136: 0.00 | H136: 54.00 | I136: -5.00 | K136: 其他 | L136: 土地基金 | M136: 2120806：土地出让业务支出
A137: 128 | B137: 综合股（土地基金） | C137: 国土局 | D137: 地质灾害防治专项资金 | E137: 10.00 | F137: 3.10 | G137: 4.00 | H137: 7.10 | I137: -2.90 | K137: 其他 | L137: 土地基金 | M137: 2120806：土地出让业务支出
A138: 129 | B138: 综合股（土地基金） | C138: 国土局 | D138: 征地与出让业务支出 | E138: 30.00 | F138: 1.06 | G138: 7.40 | H138: 8.46 | I138: -21.54 | J138: 园区项目用地出让工作推进滞慢 | K138: 其他 | L138: 土地基金 | M138: 2120806：土地出让业务支出
A139: 130 | B139: 综合股（土地基金） | C139: 国土局 | D139: 编制年度土地供应计划费用 | E139: 5.00 | F139: 5.00 | G139: 0.00 | H139: 5.00 | I139: 0.00 | K139: 其他 | L139: 土地基金 | M139: 2120806：土地出让业务支出
A140: 131 | B140: 综合股（土地基金） | C140: 国土局 | D140: 国土执法监察办案经费 | E140: 52.00 | F140: 8.00 | G140: 10.25 | H140: 18.25 | I140: -33.75 | J140: 埭头信访案件9宗用地测量费、陈洪升非法取土案件地质勘测委托测量费 | K140: 其他 | L140: 土地基金 | M140: 2120806：土地出让业务支出
A141: 132 | B141: 综合股（土地基金） | C141: 国土局 | D141: 第三次全国土地调查 | E141: 232.00 | F141: 1.13 | G141: 200.98 | H141: 202.11 | I141: -29.89 | K141: 其他 | L141: 土地基金 | M141: 2120806：土地出让业务支出
A142: 133 | B142: 综合股（土地基金） | C142: 国土局 | D142: 2017年度变更调查 | E142: 5.60 | F142: 5.60 | G142: 0.00 | H142: 5.60 | I142: 0.00 | K142: 其他 | L142: 土地基金 | M142: 2120806：土地出让业务支出
A143: 134 | B143: 综合股（土地基金） | C143: 国土局 | D143: 农村地籍调查项目 | E143: 399.98 | G143: 275.35 | H143: 275.35 | I143: -124.63 | K143: 其他 | L143: 土地基金 | M143: 2120806：土地出让业务支出
A144: 135 | B144: 综合股（土地基金） | C144: 国土局 | D144: 不动产登记系统日常维护 | E144: 20.00 | G144: 20.00 | H144: 20.00 | I144: 0.00 | K144: 其他 | L144: 土地基金 | M144: 2120806：土地出让业务支出
A145: 136 | B145: 综合股（土地基金） | C145: 国土局 | D145: 不动产存量数据整合 | E145: 76.91 | F145: 76.91 | G145: 0.00 | H145: 76.91 | I145: -0.00 | J145: 政府采购合同 | K145: 其他 | L145: 土地基金 | M145: 2120806：土地出让业务支出
A146: 137 | B146: 综合股（土地基金） | C146: 国土局 | D146: 不动产存量档案扫描入库 | E146: 36.00 | G146: 14.40 | H146: 14.40 | I146: -21.60 | J146: 粤国土资登记发〔2018〕87号 | K146: 其他 | L146: 土地基金 | M146: 2120806：土地出让业务支出
A147: 138 | B147: 综合股（土地基金） | C147: 国土局 | D147: 国土管理业务工作专项购买服务 | E147: 90.00 | F147: 90.00 | G147: 0.00 | H147: 90.00 | I147: 0.00 | K147: 其他 | L147: 土地基金 | M147: 2120806：土地出让业务支出
A148: 139 | B148: 综合股（土地基金） | C148: 国土局 | D148: 土地开发、土地平整等前期摸查以及资料搜集、整理归档 | E148: 10.00 | F148: 5.00 | G148: 5.00 | H148: 10.00 | I148: 0.00 | K148: 其他 | L148: 土地基金 | M148: 2120806：土地出让业务支出
A149: 140 | B149: 综合股（土地基金） | C149: 国土局 | D149: 征地组件报批 | E149: 20.00 | F149: 10.00 | G149: 10.00 | H149: 20.00 | I149: 0.00 | K149: 其他 | L149: 土地基金 | M149: 2120806：土地出让业务支出
A150: 141 | B150: 综合股（土地基金） | C150: 国土局 | D150: 国有建设用地存量土地管养 | E150: 10.00 | H150: 0.00 | I150: -10.00 | K150: 其他 | L150: 土地基金 | M150: 2120806：土地出让业务支出
A151: 142 | B151: 综合股（土地基金） | C151: 国土局 | D151: 土地信息技术咨询服务 | E151: 10.00 | F151: 5.00 | G151: 5.00 | H151: 10.00 | I151: 0.00 | K151: 其他 | L151: 土地基金 | M151: 2120806：土地出让业务支出
A152: 143 | B152: 综合股（土地基金） | C152: 国土局 | D152: 基本农田保护经济补偿区级补助资金 | E152: 38.03 | G152: 38.03 | H152: 38.03 | I152: 0.00 | K152: 其他 | L152: 土地基金 | M152: 21211：农业土地开发资金及对应专项债务收入安排的支出
A153: 144 | B153: 综合股（土地基金） | C153: 国土局 | D153: 濠江区土地整治规划（2016-2020年） | E153: 10.00 | G153: 10.00 | H153: 10.00 | I153: 0.00 | K153: 其他 | L153: 土地基金 | M153: 21211：农业土地开发资金及对应专项债务收入安排的支出
A154: 145 | B154: 综合股（土地基金） | C154: 国土局 | D154: 垦造水田任务专项工作 | E154: 200.00 | F154: 11.00 | G154: 72.00 | H154: 83.00 | I154: -117.00 | K154: 其他 | L154: 土地基金 | M154: 21211：农业土地开发资金及对应专项债务收入安排的支出
A155: 146 | B155: 综合股（土地基金） | C155: 国土局 | D155: 改造水浇地任务（购买水浇地）指标 | E155: 227.68 | F155: 227.68 | G155: 0.00 | H155: 227.68 | I155: 0.00 | J155: 已先从预留调剂支出尾数部分 | K155: 其他 | L155: 土地基金 | M155: 21211：农业土地开发资金及对应专项债务收入安排的支出
A156: 147 | B156: 综合股（土地基金） | C156: 国土局 | D156: 濠江区永久基本农田整备区划定工作 | E156: 5.00 | G156: 5.00 | H156: 5.00 | I156: 0.00 | K156: 其他 | L156: 土地基金 | M156: 21211：农业土地开发资金及对应专项债务收入安排的支出
A157: 148 | B157: 综合股（土地基金） | C157: 国土局 | D157: 2017永久基本农田划定标识设置工作 | E157: 8.70 | F157: 8.70 | G157: 0.00 | H157: 8.70 | I157: 0.00 | K157: 其他 | L157: 土地基金 | M157: 21211：农业土地开发资金及对应专项债务收入安排的支出
A158: 149 | B158: 综合股（土地基金） | C158: 国土局 | D158: 不动产窗口规范化、信息化建设配套 | E158: 21.00 | G158: 21.00 | H158: 21.00 | I158: 0.00 | K158: 其他 | L158: 土地基金 | M158: 2120806：土地出让业务支出
A159: 150 | B159: 综合股（土地基金） | C159: 国土局 | D159: 国有土地使用权出让合同印花税资金 | E159: 107.02 | G159: 107.02 | H159: 107.02 | I159: 0.00 | J159: 汕濠府办财函【2018】205号，2017年6月26日至2018年6月25日出让的13总国有土地和使用权出让合同印花税107.0177万 | K159: 其他 | L159: 土地基金 | M159: 2120806：土地出让业务支出
A160: 151 | B160: 综合股（土地基金） | C160: 国土局 | D160: 开展永久基本农田划定质量检查和违法违规占用治理专项行动 | E160: 15.00 | F160: 15.00 | G160: 0.00 | H160: 15.00 | I160: 0.00 | K160: 其他 | L160: 土地基金 | M160: 21211：农业土地开发资金及对应专项债务收入安排的支出
A161: 152 | B161: 综合股（土地基金） | C161: 国土局 | D161: 地质灾害防治高标准“十有县”建设工作经费 | E161: 20.00 | G161: 20.00 | H161: 20.00 | I161: 0.00 | K161: 其他 | L161: 土地基金 | M161: 21211：农业土地开发资金及对应专项债务收入安排的支出
A162: 153 | B162: 综合股（土地基金） | C162: 达濠街道 | D162: 智慧型机械式公共停车楼建设项目补助经费 | E162: 5.40 | F162: 5.40 | H162: 5.40 | J162: 汕濠府办财函【2017】400号解决原区老干中心办公楼非法占地建设历史遗留问题补助资金 | K162: 其他 | L162: 土地基金 | M162: 2120899：其他国有土地使用权出让收入安排的支出
A163: 154 | B163: 综合股（土地基金） | C163: 南山湾办 | D163: 2017年度汕头市产业转移工业园土地集约利用更新评价费用 | E163: 23.80 | G163: 23.80 | H163: 23.80 | I163: =H163-E163 -> 0.00 | K163: 其他 | L163: 土地基金 | M163: 2120806：土地出让业务支出
A164: 155 | B164: 综合股（土地基金） | C164: 广澳街道 | D164: 广澳港区搬迁建设前期工作经费 | F164: 1150.00 | H164: 1150.00 | I164: 1150.00 | J164: 汕濠府办财函【2018】243号，广澳临时避风塘搬迁前期工作经费 | K164: 其他 | L164: 土地基金 | M164: 2120801：征地和拆迁补偿支出
A165: 其他项目小计 | E165: =SUM(E114:E164) -> 10998.41 | F165: 4854.53 | G165: 6093.92 | H165: 10948.45 | I165: -49.97
A166: 156 | B166: 综合股（土地基金） | C166: 综合股（土地基金）代编 | D166: 预留土地基金相关项目支出 | E166: 5000.00 | G166: 500.00 | H166: 500.00 | I166: -4500.00 | K166: 征地收储 | L166: 土地基金 | M166: 2120801：征地和拆迁补偿支出
A167: 一、土地基金支出合计 | E167: =E6+E40+E59+E95+E113+E165+E166 -> 161245.72 | F167: 121162.68 | G167: 61179.36 | H167: 178192.04 | I167: 16946.32
A168: 157 | B168: 预算股 | C168: 各街道 | D168: 保洁经费 | E168: 679.48 | F168: 622.86 | G168: 56.62 | H168: 679.48 | I168: 0.00 | K168: 其他 | L168: 配套费 | M168: 2121302：城市环境卫生
A169: 158 | B169: 行财股 | C169: 环卫局 | D169: 新增加主次干道清扫保洁经费（新移交广达大道） | E169: 197.60 | F169: 164.61 | G169: 32.92 | H169: 197.53 | I169: -0.07 | K169: 其他 | L169: 配套费 | M169: 2121302：城市环境卫生
A170: 159 | B170: 行财股 | C170: 环卫局 | D170: 全区主次干道清扫保洁采购项目经费 | E170: 238.40 | F170: 35.67 | G170: 22.96 | H170: 58.63 | I170: -179.77 | K170: 其他 | L170: 配套费 | M170: 2121302：城市环境卫生
A171: 160 | B171: 行财股 | C171: 环卫局 | D171: 全区生活垃圾转运（前端）采购项目经费 | E171: 275.11 | F171: 226.73 | G171: 45.84 | H171: 272.57 | I171: -2.54 | J171: 根据汕濠府办函【2018】206号，区政府明确2018年下半年垃圾转运基数、费用仍按上半年标准执行。因此下半年每月仍按22.923463万元拨付，余额调减 | K171: 其他 | L171: 配套费 | M171: 2121302：城市环境卫生
A172: 161 | B172: 行财股 | C172: 环卫局 | D172: 全区生活垃圾转运后端采购项目经费 | E172: 167.90 | F172: 125.93 | G172: 39.28 | H172: 165.20 | I172: -2.70 | J172: 根据汕濠府办函【2018】206号，区政府明确2018年下半年垃圾转运基数、费用仍按上半年标准执行。因此下半年每月仍按41.975万元拨付，余额调减 | K172: 其他 | L172: 配套费 | M172: 2121302：城市环境卫生
A173: 162 | B173: 行财股 | C173: 环卫局 | D173: 新增主次干道（中标路段新移交）清扫保洁经费（河浦大道、河中路、安海路、达南路） | E173: 364.10 | F173: 300.87 | G173: 63.18 | H173: 364.05 | I173: -0.05 | K173: 其他 | L173: 配套费 | M173: 2121302：城市环境卫生
A174: 163 | B174: 行财股 | C174: 环卫局 | D174: 新增加主次干道清扫保洁经费（新纳入市场化运营管理道路） | E174: 853.90 | F174: 710.58 | G174: 142.32 | H174: 852.90 | I174: -1.00 | K174: 其他 | L174: 配套费 | M174: 2121302：城市环境卫生
A175: 164 | B175: 行财股 | C175: 环卫局 | D175: 南沙湾绿道沙滩管养经费 | E175: 159.60 | F175: 132.45 | G175: 26.60 | H175: 159.05 | I175: -0.55 | K175: 其他 | L175: 配套费 | M175: 2121302：城市环境卫生
A176: 165 | B176: 行财股 | C176: 环卫局 | D176: 广澳物流园区（广奥路、广澳横二路）路面清扫保洁委托经费 | E176: 5.00 | H176: 0.00 | I176: -5.00 | J176: 根据汕濠府办函【2018】143号文，新增移交管理道路 | K176: 其他 | L176: 配套费 | M176: 2121302：城市环境卫生
A177: 166 | B177: 行财股 | C177: 环卫局 | D177: 滨海工业园区（纬一路）路面清扫保洁委托经费 | E177: 1.47 | H177: 0.00 | I177: -1.47 | J177: 根据汕濠府办函【2018】143号文，新增移交管理道路 | K177: 其他 | L177: 配套费 | M177: 2121302：城市环境卫生
A178: 167 | B178: 行财股 | C178: 环卫局 | D178: 南滨景观平台路面清扫保洁委托经费 | E178: 19.13 | H178: 0.00 | I178: -19.13 | K178: 其他 | L178: 配套费 | M178: 2121302：城市环境卫生
A179: 168 | B179: 行财股 | C179: 市政所 | D179: 市政设施购买服务管养维护经费 | E179: 1075.42 | F179: 740.78 | G179: 316.32 | H179: 1057.10 | I179: -18.32 | J179: 1、根据汕濠府办财函【2017】274、364号文，每月需安排管养经费98.03万元； 2、预计今年新增移交磊广路、达南路市政管养，从1月起核拨每月预计需27万元； 3、根据区政府工作会议纪要【2018】19期及汕濠府办函【2018】143号文，从6月起新增移交新增马滘横二路、广澳路、广澳横二路、滨海纬一路、南滨路景观配套项目、南滨路，每月预计11万元。 | K179: 其他 | L179: 配套费 | M179: 2121302：城市环境卫生
A180: 169 | B180: 行财股 | C180: 市政所 | D180: 市政设施路灯电费 | E180: 529.00 | F180: 363.16 | G180: 132.66 | H180: 495.82 | I180: -33.18 | J180: 根据上半年每月电费单预测 | K180: 其他 | L180: 配套费 | M180: 2121301：城市公共设施
A181: 170 | B181: 行财股 | C181: 市政所 | D181: 河浦工业园区管养费 | E181: 17.93 | F181: 17.93 | H181: 17.93 | I181: 0.00 | K181: 其他 | L181: 配套费 | M181: 2121302：城市环境卫生
A182: 171 | B182: 综合股 | C182: 市政所 | D182: 南滨片区夜景观照明配套电力设备工程 | E182: 76.53 | F182: 76.53 | H182: 76.53 | I182: 0.00 | K182: 其他 | L182: 配套费 | M182: 2121301：城市公共设施
A183: 172 | B183: 综合股 | C183: 市政所 | D183: 南岸二期山体景观变压器 | E183: 74.66 | F183: 74.66 | H183: 74.66 | I183: 0.00 | K183: 其他 | L183: 配套费 | M183: 2121301：城市公共设施
A184: 173 | B184: 综合股 | C184: 市政所 | D184: 天坛花园夜景设施配电改造工程项目经费 | E184: 24.88 | F184: 24.88 | H184: 24.88 | I184: 0.00 | K184: 其他 | L184: 配套费 | M184: 2121301：城市公共设施
A185: 174 | B185: 综合股 | C185: 礐石街道 | D185: 礐石片区山体亮化二期工程变压器购置费用 | E185: 34.30 | F185: 34.30 | H185: 34.30 | I185: 0.00 | K185: 其他 | L185: 配套费 | M185: 2121301：城市公共设施
A186: 175 | B186: 综合股 | C186: 发规局 | D186: 总体（详细）规划修编调研、踏勘、资料整理收集 | E186: 60.00 | F186: 60.00 | H186: 60.00 | I186: 0.00 | K186: 其他 | L186: 配套费 | M186: 2121399：其他城市基础设施配套费安排的支出
A187: 176 | B187: 综合股 | C187: 发规局 | D187: 重点地段修规编制、城市设计 | E187: 50.00 | F187: 50.00 | H187: 50.00 | I187: 0.00 | K187: 其他 | L187: 配套费 | M187: 2121399：其他城市基础设施配套费安排的支出
A188: 177 | B188: 综合股 | C188: 发规局 | D188: 村庄整治专项规划 | E188: 40.00 | F188: 40.00 | H188: 40.00 | I188: 0.00 | K188: 其他 | L188: 配套费 | M188: 2121399：其他城市基础设施配套费安排的支出
A189: 178 | B189: 综合股 | C189: 发规局 | D189: 治理数据测绘 | E189: 30.00 | F189: 30.00 | H189: 30.00 | I189: 0.00 | K189: 其他 | L189: 配套费 | M189: 2121399：其他城市基础设施配套费安排的支出
A190: 179 | B190: 综合股 | C190: 发规局 | D190: 城乡规划监督、宣传 | E190: 12.00 | F190: 12.00 | H190: 12.00 | I190: 0.00 | K190: 其他 | L190: 配套费 | M190: 2121399：其他城市基础设施配套费安排的支出
A191: 180 | B191: 综合股 | C191: 发规局 | D191: 设备配套更新、维护 | E191: 8.00 | F191: 8.00 | H191: 8.00 | I191: 0.00 | K191: 其他 | L191: 配套费 | M191: 2121399：其他城市基础设施配套费安排的支出
A192: 181 | B192: 综合股 | C192: 发规局 | D192: 专家评审费 | E192: 12.00 | F192: 12.00 | H192: 12.00 | I192: 0.00 | K192: 其他 | L192: 配套费 | M192: 2121399：其他城市基础设施配套费安排的支出
A193: 182 | B193: 综合股 | C193: 发规局 | D193: 维修（护）费 | E193: 9.60 | F193: 9.60 | H193: 9.60 | I193: 0.00 | K193: 其他 | L193: 配套费 | M193: 2121399：其他城市基础设施配套费安排的支出
A194: 183 | B194: 综合股 | C194: 发规局 | D194: 劳务费 | E194: 19.20 | F194: 19.20 | H194: 19.20 | I194: 0.00 | K194: 其他 | L194: 配套费 | M194: 2121399：其他城市基础设施配套费安排的支出
A195: 184 | B195: 综合股 | C195: 发规局 | D195: 信息管理系统建设 | E195: 12.00 | F195: 6.65 | G195: 5.35 | H195: 12.00 | I195: 0.00 | K195: 其他 | L195: 配套费 | M195: 2121399：其他城市基础设施配套费安排的支出
A196: 185 | B196: 综合股 | C196: 发规局 | D196: 规委会工作费用 | E196: 18.79 | F196: 18.79 | H196: 18.79 | I196: 0.00 | K196: 其他 | L196: 配套费 | M196: 2121399：其他城市基础设施配套费安排的支出
A197: 186 | B197: 综合股 | C197: 发规局 | D197: 汕头市濠江区（汕头南站）高铁新城片区控制性详细规划项目（二、三期） | E197: 265.30 | F197: 113.70 | G197: 151.60 | H197: 265.30 | I197: 0.00 | K197: 其他 | L197: 配套费 | M197: 2121399：其他城市基础设施配套费安排的支出
A198: 187 | B198: 综合股 | C198: 发规局 | D198: 汕头南站对外交通规划设计费（二期） | E198: 9.84 | H198: 0.00 | I198: -9.84 | J198: 调减，并入濠江区（汕头南站）高铁新城片区控制性详细规划项目 | K198: 其他 | L198: 配套费 | M198: 2121399：其他城市基础设施配套费安排的支出
A199: 188 | B199: 综合股 | C199: 发规局 | D199: 《中信滨海新城南滨片区控制性详细规划》建筑限高调整论证报告 | E199: 3.00 | F199: 3.00 | H199: 3.00 | I199: 0.00 | K199: 其他 | L199: 配套费 | M199: 2121399：其他城市基础设施配套费安排的支出
A200: 189 | B200: 综合股 | C200: 发规局 | D200: 汕头市濠江区葛洲片区控制性详细规划 | E200: 44.23 | H200: 0.00 | I200: -44.23 | J200: 调减，列入2019年度预算 | K200: 其他 | L200: 配套费 | M200: 2121399：其他城市基础设施配套费安排的支出
... 28 more rows

Sheet 政府性基金列支挂存表（附表九以此为准）
A1: 附表六
A2: 2018年政府性基金预算列支挂存表
I3: 单位：万元
A4: 预算单位 | B4: 列支挂存项目 | D4: 科目 | F4: 金额 | I4: 备注 | J4: 股室
F5: 本级 | G5: 上级 | H5: 合计
F6: =SUM(F7:F38) -> 6334.04 | G6: =SUM(G39:G43) -> 2260.86 | H6: =+F6+G6 -> 8594.90
A7: 汕头市濠江区发展规划局 | B7: 03180019 | C7: 村庄整治专项规划 | D7: 2121399 | E7: 其他城市基础设施配套费安排的支出 | F7: 5.00 | H7: =+F7+G7 -> 5.00 | J7: 支付办
A8: 汕头市濠江区发展规划局 | B8: 03180067 | C8: 汕头市濠江区（汕头南站）高铁新城片区控制性详细规划项目（二、三期） | D8: 2121399 | E8: 其他城市基础设施配套费安排的支出 | F8: 151.60 | H8: =+F8+G8 -> 151.60 | J8: 支付办
A9: 汕头市濠江区发展规划局 | B9: 03180072 | C9: 设备配套更新、维护 | D9: 2121399 | E9: 其他城市基础设施配套费安排的支出 | F9: 0.46 | H9: 0.46 | J9: 支付办
A10: 汕头市濠江区发展规划局 | B10: 03180090 | C10: 重点地段修规编制、城市设计 | D10: 2121399 | E10: 其他城市基础设施配套费安排的支出 | F10: 3.76 | H10: 3.76 | J10: 支付办
A11: 汕头市濠江区发展规划局 | B11: 03180105 | C11: 濠江区7个街道乡村振兴一村一规划-产业导入的各社区土地利用控制规划 | D11: 2121399 | E11: 其他城市基础设施配套费安排的支出 | F11: 32.50 | H11: 32.50 | J11: 支付办
A12: 汕头市濠江区经济和信息化局 | B12: 08180063 | C12: 濠江大桥及引道防撞栏实体标记工程 | D12: 2120803 | E12: 城市建设支出 | F12: 0.25 | H12: 0.25 | J12: 支付办
A13: 汕头市濠江区残疾人联合会 | B13: 06180112 | C13: 康复中心运行经费 | D13: 2296099 | E13: 用于其他社会公益事业的彩票公益金支出 | F13: 2.40 | H13: 2.40 | J13: 支付办
A14: 汕头市濠江区环境卫生管理局 | B14: 02180188 | C14: 南沙湾绿道沙滩管养经费 | D14: 2121302 | E14: 城市环境卫生 | F14: 0.27 | H14: 0.27 | J14: 支付办
A15: 汕头市濠江区环境卫生管理局 | B15: 02180227 | C15: 全区生活垃圾转运（前端）采购项目经费 | D15: 2121302 | E15: 城市环境卫生 | F15: 23.82 | H15: 23.82 | J15: 支付办
A16: 汕头市濠江区环境卫生管理局 | B16: 02180228 | C16: 全区生活垃圾转运后端采购项目经费 | D16: 2121302 | E16: 城市环境卫生 | F16: 39.28 | H16: 39.28 | J16: 支付办
A17: 汕头市濠江区环境卫生管理局 | B17: 02180230 | C17: 全区主次干道清扫保洁采购项目经费 | D17: 2121302 | E17: 城市环境卫生 | F17: 19.18 | H17: 19.18 | J17: 支付办
A18: 汕头市濠江区环境卫生管理局 | B18: 02180301 | C18: 新增加主次干道清扫保洁经费（新纳入市场化运营管理道路） | D18: 2121302 | E18: 城市环境卫生 | F18: 71.16 | H18: 71.16 | J18: 支付办
A19: 汕头市濠江区环境卫生管理局 | B19: 02180302 | C19: 新增加主次干道清扫保洁经费（新移交广达大道） | D19: 2121302 | E19: 城市环境卫生 | F19: 16.46 | H19: 16.46 | J19: 支付办
A20: 汕头市濠江区环境卫生管理局 | B20: 02180303 | C20: 新增主次干道（中标路段新移交）清扫保洁经费（河浦大道、河中路、安海路、达南路） | D20: 2121302 | E20: 城市环境卫生 | F20: 31.59 | H20: 31.59 | J20: 支付办
A21: 汕头市濠江区土地储备中心 | B21: 07180102 | C21: 得乐公司用地项目 | D21: 2120801 | E21: 征地和拆迁补偿支出 | F21: 34.64 | H21: 34.64 | J21: 支付办
A22: 汕头市濠江区土地储备中心 | B22: 07180028 | C22: 广澳物流园B02地块内（地块二）土地平整工程 | D22: 2120802 | E22: 土地开发支出 | F22: 1.90 | H22: 1.90 | J22: 支付办
A23: 汕头市濠江区土地储备中心 | B23: 07180085 | C23: 疏港大道南侧用地项目（平整） | D23: 2120802 | E23: 土地开发支出 | F23: 94.32 | H23: 94.32 | J23: 支付办
A24: 汕头市濠江区土地储备中心 | B24: 07180093 | C24: 马滘工业园区生活配套区基础设施工程项目（二期平整） | D24: 2120802 | E24: 土地开发支出 | F24: 604.97 | H24: 604.97 | J24: 支付办
A25: 汕头市濠江区土地储备中心 | B25: 07180019 | C25: 储备用地巡查和管养支出 | D25: 2120806 | E25: 土地出让业务支出 | F25: 1.19 | H25: 1.19 | J25: 支付办
A26: 汕头市濠江区土地储备中心 | B26: 07180055 | C26: 其他土地储备业务经费支出 | D26: 2120806 | E26: 土地出让业务支出 | F26: 0.95 | H26: 0.95 | J26: 支付办
A27: 汕头市濠江区土地储备中心 | B27: 07180061 | C27: 土地储备业务费补充土储人员与基本经费 | D27: 2120806 | E27: 土地出让业务支出 | F27: 0.28 | H27: 0.28 | J27: 支付办
A28: 汕头市濠江区人民政府办公室 | B28: 08180030 | C28: 区档案馆购置及前期费用 | D28: 2120803 | E28: 城市建设支出 | F28: 1.90 | H28: 1.90 | J28: 支付办
A29: 汕头市濠江区人民政府办公室 | B29: 08180082 | C29: 濠江区委、区政府大院西侧停车场及应急物资存放室建设（临建）项目 | D29: 2120899 | E29: 其他国有土地使用权出让收入安排的支出 | F29: 2.54 | H29: 2.54 | J29: 支付办
A30: 汕头市濠江区教育局 | B30: 08180068 | C30: 河浦中学学生宿舍楼及配套设施 | D30: 2120803 | E30: 城市建设支出 | F30: 311.12 | H30: 311.12 | J30: 支付办
A31: 汕头市濠江区教育局 | B31: 08180069 | C31: 河北小学教学用房及配套设施综合改建项目 | D31: 2120803 | E31: 城市建设支出 | F31: 500.00 | H31: 500.00 | J31: 支付办
A32: 汕头市濠江区教育局 | B32: 08180070 | C32: 广澳中学综合实训楼和学生宿舍楼建设项目 | D32: 2120803 | E32: 城市建设支出 | F32: 2922.95 | H32: 2,922.95 | J32: 支付办
A33: 汕头市濠江区城市建设管理和环境保护局 | B33: 08180038 | C33: 双泉公园及体育馆建设项目 | D33: 2120803 | E33: 城市建设支出 | F33: 774.15 | H33: 774.15 | J33: 支付办
A34: 汕头市濠江区城市建设管理和环境保护局 | B34: 08180075 | C34: 河玉路西段升级改造（一期）工程 | D34: 2120803 | E34: 城市建设支出 | F34: 110.00 | H34: 110.00 | J34: 支付办
A35: 汕头市濠江区达濠街道办事处 | B35: 08180067 | C35: 达濠古城墙修缮工程 | D35: 2120803 | E35: 城市建设支出 | F35: 203.68 | H35: 203.68 | J35: 支付办
A36: 汕头市濠江区礐石街道办事处 | B36: 07180001 | C36: 礐石片区山体亮化工程 | D36: 2120803 | E36: 城市建设支出 | F36: 88.38 | H36: 88.38 | J36: 支付办
A37: 汕头市濠江区国土资源局 | B37: 07180018 | C37: 不动产登记系统日常维护 | D37: 2120806 | E37: 土地出让业务支出 | F37: 8.00 | H37: 8.00 | J37: 支付办
A38: 汕头市濠江区国土资源局 | B38: 07180053 | C38: 农村地籍调查项目 | D38: 2120806 | E38: 土地出让业务支出 | F38: 275.35 | H38: 275.35 | J38: 支付办
A39: 中共汕头市濠江区委宣传部 | B39: 02180495 | C39: 濠江区体育馆建设资金 | D39: 2296003 | E39: 用于体育事业的彩票公益金支出 | G39: 175.00 | H39: 175.00 | J39: 支付办
A40: 中共汕头市濠江区委宣传部 | B40: 02180497 | C40: 2018年中央集中彩票公益金支持地方体育事业专项资金 | D40: 2296003 | E40: 用于体育事业的彩票公益金支出 | G40: 50.00 | H40: 50.00 | J40: 支付办
A41: 汕头市濠江区农林水务局 | B41: 04180188 | C41: 2018年乡村振兴战略（“百村示范、千村整治”美丽乡村建设）市级补助资金 | D41: 2120802 | E41: 土地开发支出 | G41: 2000.00 | H41: 2,000.00 | J41: 支付办
A42: 汕头市濠江区民政局 | B42: 06180296 | C42: 2018年市级福利彩票公益金资助项目（第一批）资金(资助居家养老服务项目) 社（18）104号 | D42: 2296002 | E42: 用于社会福利的彩票公益金支出 | G42: 0.86 | H42: 0.86 | J42: 支付办
A43: 汕头市濠江区民政局 | B43: 06180300 | C43: 2018年市级福利彩票公益金资助项目（第一批）资金(资助社会救助项目资金) 社（18）104号 | D43: 2296002 | E43: 用于社会福利的彩票公益金支出 | G43: 35.00 | H43: 35.00 | J43: 支付办

Sheet 国有资本经营收入表（附表十）
A1: 附表十
A2: 2018年国有资本经营预算收入计划调整表
E3: 单位：万元
A5: 科目 | B5: 年初预算数 | C5: 变动因素 | D5: 预算调整计划数 | E5: 备注
A7: 国有资本经营收入 | B7: 50 | C7: 8075 | D7: =D8+D9 -> 8125
A8: 1、利润收入 | B8: 50 | D8: 50
A9: 2、股利、股息收入 | B9: 0 | C9: 8075 | D9: 8075
A10: 3、产权转让收入
A11: 4、清算收入
A12: 5、其他国有资本经营预算收入
A13: 征收收入小计 | B13: 50 | C13: 8075 | D13: =D7 -> 8125
A14: 上年结余收入 | B14: 50 | D14: 50
A15: 财力合计 | B15: 100 | C15: 8075 | D15: =D13+D14 -> 8175

Sheet 国有资本经营支出表（附表十一）
A1: 附表十一
A2: 2018年国有资本经营预算支出计划调整表
G3: 单位：万元
A5: 科目分类 | C5: 科目 | D5: 年初预算数 | E5: 变动因素 | F5: 预算调整计划数 | G5: 备注
B6: 年初预算数
B7: 经济 分类
A8: 223 | C8: 国有资本经营预算支出 | D8: 100 | E8: 6280 | F8: 6380
A9: 22302 | C9: 国有企业资本金注入 | D9: 0 | E9: 6300 | F9: 6300
A10: 2230299 | C10: 其他国有企业资本金注入 | D10: 0 | E10: 6300 | F10: 6300
A11: 22399 | C11: 其他国有资本经营预算支出 | D11: 100 | E11: -21 | F11: 80
A12: 2239901 | C12: 其他国有资本经营预算支出 | D12: 100 | E12: -21 | F12: 80
A13: 230 | C13: 转移性支出 | E13: 1716 | F13: 1716
A14: 23008 | C14: 调出资金 | D14: 0 | E14: 1716 | F14: 1716
A15: 国有资本预算支出小计 | D15: 100 | E15: =F15-D15 -> 7996 | F15: =F14+F8 -> 8096
A16: 国有资本预算年终结余 | E16: 79 | F16: 79
A17: 国有资本预算支出合计 | D17: 100 | E17: =E16+E15 -> 8075 | F17: =F16+F15 -> 8175

Sheet 本级国有资本经营预算支出调整项目表（附表十二）
A1: 附表十二
A2: 2018年本级国有资本经营预算支出调整项目表
I4: 单位：万元
A5: 调增情况 | F5: 调减情况
A6: 单位 | B6: 项目 | C6: 金额 | D6: 备注 | E6: 所属股室 | F6: 单位 | G6: 项目 | H6: 金额 | I6: 备注 | J6: 所属股室
A7: 调增合计 | C7: 6300.00 | F7: 调减合计 | H7: 20.50
A8: 城建投 | B8: 新增城建投集团注册资本金 | C8: 6300.00 | F8: 达建总 | G8: 解决历史遗留问题专项经费 | H8: 20.50 | I8: 根据相关规定及市财政局有关指示，国有资本经营预算按相关比例调入一般公共财政预算。 | J8: 预算股
J9: 预算股
J10: 预算股
J11: 行财股
J12: 社保股
J13: 社保股

Sheet 社会保险基金收入表（附表十三）
A1: 附表十三
A2: 2018年社会保险基金预算收入计划调整表
E3: 单位：万元
A5: 科目 | B5: 年初预算数 | C5: 变动因素 | D5: 预算调整计划数 | E5: 备注
A9: 一.社会保险基金预算收入 | B9: 18366 | C9: =D9-B9 -> -1285 | D9: =D10+D17 -> 17081
A10: 城乡居民基本养老保险基金收入 | B10: =SUM(B11:B16) -> 7659 | C10: 677 | D10: =SUM(D11:D16) -> 8336
A11: 城乡居民基本养老保险基金缴费收入 | B11: 1121 | C11: -82 | D11: 1039
A12: 城乡居民基本养老保险基金财政补贴收入 | B12: 6111 | C12: 543 | D12: 6654
A13: 城乡居民基本养老保险基金利息收入 | B13: 202 | C13: 35 | D13: 237
A14: 城乡居民基本养老保险基金委托投资收益 | C14: 0
A15: 城乡居民基本养老保险基金集体补助收入 | B15: 225 | C15: 179 | D15: 404
A16: 城乡居民基本养老保险基金转移收入 | C16: 2 | D16: 2
A17: 机关事业单位基本养老保险基金收入 | B17: 10707 | C17: -1962 | D17: =SUM(D18:D20) -> 8745
A18: 机关事业单位基本养老保险费收入 | B18: 10648 | C18: -1955 | D18: 8693
A19: 机关事业单位基本养老保险基金财政补助收入 | C19: 50 | D19: 50
A20: 机关事业单位基本养老保险基金利息收入 | B20: 59 | C20: -57 | D20: 2
A21: 征收收入小计 | B21: =SUM(B9) -> 18366 | C21: -1285 | D21: =SUM(D9) -> 17081
A22: 二、转移性收入 | B22: =B23 -> 17885 | C22: 0 | D22: =D23 -> 17885
A23: 上年结余收入 | B23: 17885 | C23: 0 | D23: 17885
A24: 社会保险基金预算收入 | B24: =B21+B22 -> 36251 | C24: -1285 | D24: =D21+D22 -> 34966

Sheet 社会保险基金支出表（附表十四）
A1: 附表十四
A2: 2018年社会保险基金预算支出计划调整表
F3: 单位：万元
A5: 科目分类 | C5: 科目 | D5: 年初预算数 | E5: 变动因素 | F5: 预算调整计划数 | G5: 备注
A8: 209 | C8: 社会保险基金预算支出 | D8: 14931 | E8: =F8-D8 -> -943 | F8: =F9+F13 -> 13988
A9: 20910 | C9: 城乡居民基本养老保险基金支出 | D9: 6272 | E9: -420 | F9: =SUM(F10:F12) -> 5852
A10: 2091001 | C10: 基础养老金支出 | D10: 5811 | E10: -781 | F10: 5030
A11: 2091002 | C11: 个人账户养老金支出 | D11: 461 | E11: 331 | F11: 792
A12: 2091099 | C12: 其他城乡居民基本养老保险基金支出 | E12: 30 | F12: 30
A13: 20911 | C13: 机关事业单位基本养老保险基金支出 | D13: 8659 | E13: -523 | F13: =SUM(F14:F15) -> 8136
A14: 2091101 | C14: 基本养老金支出 | D14: 8659 | E14: -523 | F14: 8136
A15: 2091199 | C15: 其他机关事业单位基本养老保险基金支出 | E15: 0
A16: 230 | C16: 转移性支出 | D16: =D17 -> 21320 | E16: -342 | F16: =F17 -> 20978
A17: 2300903 | C17: 社会保险基金预算年终结余 | D17: 21320 | E17: -342 | F17: ='[1]社会保险基金收入表（基金局）'!D23+'[1]社会保险基金收入表（基金局）'!D21-'[1]社会保险基金支出表（基金局）'!F8 -> 20978
C18: 社会保险基金预算支出合计 | D18: =D8+D16 -> 36251 | E18: -1285 | F18: =F8+F16 -> 34966
